Organisation Code,Organisation Label,Effective Date,Organisational Unit,Service Division Label,Category Internal Name,Purpose,Detailed Expenditure Code,Payment Date,Transaction Number,Irrecoverable VAT Amount,Amount,Capital Or Revenue,Benificiary Name,Procurement Card
Http://opendatacommunities.org/id/metropolitan-district-council/leeds,Leeds City Council,30/06/2016,Environment & Housing,Leeds Building Services,Supplies and Services,Operational Materials,205,17-Jun-2016,1606-00001,0.00,55.98,R,A & A Electrical Distributors Ltd,No
Http://opendatacommunities.org/id/metropolitan-district-council/leeds,Leeds City Council,30/06/2016,Environment & Housing,Leeds Building Services,Supplies and Services,Stores - Central And Other Depots,005,07-Jun-2016,1606-00002,0.00,-564.40,R,A Andrews & Sons (Marbles & Tiles),No
Http://opendatacommunities.org/id/metropolitan-district-council/leeds,Leeds City Council,30/06/2016,Environment & Housing,Leeds Building Services,Supplies and Services,Stores - Central And Other Depots,005,07-Jun-2016,1606-00003,0.00,-358.60,R,A Andrews & Sons (Marbles & Tiles),No
Http://opendatacommunities.org/id/metropolitan-district-council/leeds,Leeds City Council,30/06/2016,Central & Corporate,Commercial Services Trading Services,Supplies and Services,Operational Materials,205,07-Jun-2016,1606-00004,0.00,68.48,R,A Andrews & Sons (Marbles & Tiles),No
Http://opendatacommunities.org/id/metropolitan-district-council/leeds,Leeds City Council,30/06/2016,Central & Corporate,Commercial Services Trading Services,Supplies and Services,Operational Materials,205,07-Jun-2016,1606-00005,0.00,210.00,R,A Andrews & Sons (Marbles & Tiles),No
Http://opendatacommunities.org/id/metropolitan-district-council/leeds,Leeds City Council,30/06/2016,Central & Corporate,Commercial Services Trading Services,Supplies and Services,Operational Materials,205,07-Jun-2016,1606-00006,0.00,15.91,R,A Andrews & Sons (Marbles & Tiles),No
Http://opendatacommunities.org/id/metropolitan-district-council/leeds,Leeds City Council,30/06/2016,Central & Corporate,Commercial Services Trading Services,Supplies and Services,Operational Materials,205,07-Jun-2016,1606-00007,0.00,5.78,R,A Andrews & Sons (Marbles & Tiles),No
Http://opendatacommunities.org/id/metropolitan-district-council/leeds,Leeds City Council,30/06/2016,Central & Corporate,Commercial Services Trading Services,Supplies and Services,Operational Materials,205,07-Jun-2016,1606-00008,0.00,127.63,R,A Andrews & Sons (Marbles & Tiles),No
Http://opendatacommunities.org/id/metropolitan-district-council/leeds,Leeds City Council,30/06/2016,Central & Corporate,Commercial Services Trading Services,Supplies and Services,Operational Materials,205,07-Jun-2016,1606-00009,0.00,9.11,R,A Andrews & Sons (Marbles & Tiles),No
Http://opendatacommunities.org/id/metropolitan-district-council/leeds,Leeds City Council,30/06/2016,Central & Corporate,Commercial Services Trading Services,Supplies and Services,Operational Materials,205,07-Jun-2016,1606-00010,0.00,40.03,R,A Andrews & Sons (Marbles & Tiles),No
Http://opendatacommunities.org/id/metropolitan-district-council/leeds,Leeds City Council,30/06/2016,Central & Corporate,Commercial Services Trading Services,Supplies and Services,Operational Materials,205,07-Jun-2016,1606-00011,0.00,49.02,R,A Andrews & Sons (Marbles & Tiles),No
Http://opendatacommunities.org/id/metropolitan-district-council/leeds,Leeds City Council,30/06/2016,Environment & Housing,Leeds Building Services,Supplies and Services,Operational Materials,205,07-Jun-2016,1606-00012,0.00,-8.33,R,A Andrews & Sons (Marbles & Tiles),No
Http://opendatacommunities.org/id/metropolitan-district-council/leeds,Leeds City Council,30/06/2016,Central & Corporate,Commercial Services Trading Services,Supplies and Services,Operational Materials,205,07-Jun-2016,1606-00013,0.00,39.72,R,A Andrews & Sons (Marbles & Tiles),No
Http://opendatacommunities.org/id/metropolitan-district-council/leeds,Leeds City Council,30/06/2016,Environment & Housing,Leeds Building Services,Supplies and Services,Operational Materials,205,07-Jun-2016,1606-00014,0.00,26.64,R,A Andrews & Sons (Marbles & Tiles),No
Http://opendatacommunities.org/id/metropolitan-district-council/leeds,Leeds City Council,30/06/2016,Environment & Housing,Leeds Building Services,Supplies and Services,Operational Materials,205,07-Jun-2016,1606-00015,0.00,6.16,R,A Andrews & Sons (Marbles & Tiles),No
Http://opendatacommunities.org/id/metropolitan-district-council/leeds,Leeds City Council,30/06/2016,Environment & Housing,Leeds Building Services,Supplies and Services,Operational Materials,205,07-Jun-2016,1606-00016,0.00,221.91,R,A Andrews & Sons (Marbles & Tiles),No
Http://opendatacommunities.org/id/metropolitan-district-council/leeds,Leeds City Council,30/06/2016,Environment & Housing,Leeds Building Services,Supplies and Services,Operational Materials,205,07-Jun-2016,1606-00017,0.00,13.60,R,A Andrews & Sons (Marbles & Tiles),No
Http://opendatacommunities.org/id/metropolitan-district-council/leeds,Leeds City Council,30/06/2016,Environment & Housing,Leeds Building Services,Supplies and Services,Operational Materials,205,07-Jun-2016,1606-00018,0.00,160.86,R,A Andrews & Sons (Marbles & Tiles),No
Http://opendatacommunities.org/id/metropolitan-district-council/leeds,Leeds City Council,30/06/2016,Environment & Housing,Leeds Building Services,Supplies and Services,Operational Materials,205,17-Jun-2016,1606-00019,0.00,1.72,R,A Andrews & Sons (Marbles & Tiles),No
Http://opendatacommunities.org/id/metropolitan-district-council/leeds,Leeds City Council,30/06/2016,Environment & Housing,Leeds Building Services,Supplies and Services,Operational Materials,205,24-Jun-2016,1606-00020,0.00,18.18,R,A Andrews & Sons (Marbles & Tiles),No
Http://opendatacommunities.org/id/metropolitan-district-council/leeds,Leeds City Council,30/06/2016,City Development,Libraries  Arts & Heritage,Supplies and Services,Operational Materials,205,09-Jun-2016,1606-00021,0.00,71.97,R,A C Special Projects Ltd,No
Http://opendatacommunities.org/id/metropolitan-district-council/leeds,Leeds City Council,30/06/2016,Childrens Services,Learning Skills & Universal,Third Party Payments,Services Rendered By Other Organisations,511,03-Jun-2016,1606-00022,0.00,32.33,R,A Clarkson,No
Http://opendatacommunities.org/id/metropolitan-district-council/leeds,Leeds City Council,30/06/2016,Childrens Services,Learning Skills & Universal,Third Party Payments,Services Rendered By Voluntary Sector,505,03-Jun-2016,1606-00023,0.00,673.33,R,A E Speight,No
Http://opendatacommunities.org/id/metropolitan-district-council/leeds,Leeds City Council,30/06/2016,Childrens Services,Learning Skills & Universal,Third Party Payments,Services Rendered By Other Organisations,511,03-Jun-2016,1606-00024,0.00,24.33,R,A Foley,No
Http://opendatacommunities.org/id/metropolitan-district-council/leeds,Leeds City Council,30/06/2016,Environment & Housing,Housing Leeds Service,Capital,Other Costs,7,16-Jun-2016,1606-00025,0.00,39.96,C,REDACTED PERSONAL DATA,No
Http://opendatacommunities.org/id/metropolitan-district-council/leeds,Leeds City Council,30/06/2016,Childrens Services,Learning Skills & Universal,Third Party Payments,Services Rendered By Other Organisations,511,03-Jun-2016,1606-00026,0.00,10.67,R,A Hayes,No
Http://opendatacommunities.org/id/metropolitan-district-council/leeds,Leeds City Council,30/06/2016,Childrens Services,Learning Skills & Universal,Third Party Payments,Services Rendered By Other Organisations,511,03-Jun-2016,1606-00027,0.00,12.67,R,A Hodgson,No
Http://opendatacommunities.org/id/metropolitan-district-council/leeds,Leeds City Council,30/06/2016,Environment & Housing,Leeds Building Services,Supplies and Services,Operational Materials,205,02-Jun-2016,1606-00028,0.00,182.00,R,A J H  Pump Supply & Repair Ltd,No
Http://opendatacommunities.org/id/metropolitan-district-council/leeds,Leeds City Council,30/06/2016,Environment & Housing,Leeds Building Services,Supplies and Services,Operational Materials,205,02-Jun-2016,1606-00029,0.00,50.10,R,A J H  Pump Supply & Repair Ltd,No
Http://opendatacommunities.org/id/metropolitan-district-council/leeds,Leeds City Council,30/06/2016,Environment & Housing,Leeds Building Services,Supplies and Services,Operational Materials,205,02-Jun-2016,1606-00030,0.00,38.00,R,A J H  Pump Supply & Repair Ltd,No
Http://opendatacommunities.org/id/metropolitan-district-council/leeds,Leeds City Council,30/06/2016,Environment & Housing,Leeds Building Services,Supplies and Services,Operational Materials,205,02-Jun-2016,1606-00031,0.00,305.00,R,A J H  Pump Supply & Repair Ltd,No
Http://opendatacommunities.org/id/metropolitan-district-council/leeds,Leeds City Council,30/06/2016,Environment & Housing,Leeds Building Services,Supplies and Services,Operational Materials,205,02-Jun-2016,1606-00032,0.00,133.90,R,A J H  Pump Supply & Repair Ltd,No
Http://opendatacommunities.org/id/metropolitan-district-council/leeds,Leeds City Council,30/06/2016,Environment & Housing,Leeds Building Services,Supplies and Services,Operational Materials,205,02-Jun-2016,1606-00033,0.00,132.75,R,A J H  Pump Supply & Repair Ltd,No
Http://opendatacommunities.org/id/metropolitan-district-council/leeds,Leeds City Council,30/06/2016,Environment & Housing,Leeds Building Services,Supplies and Services,Operational Materials,205,02-Jun-2016,1606-00034,0.00,45.34,R,A J H  Pump Supply & Repair Ltd,No
Http://opendatacommunities.org/id/metropolitan-district-council/leeds,Leeds City Council,30/06/2016,Environment & Housing,Leeds Building Services,Supplies and Services,Operational Materials,205,02-Jun-2016,1606-00035,0.00,384.95,R,A J H  Pump Supply & Repair Ltd,No
Http://opendatacommunities.org/id/metropolitan-district-council/leeds,Leeds City Council,30/06/2016,Environment & Housing,Leeds Building Services,Supplies and Services,Operational Materials,205,02-Jun-2016,1606-00036,0.00,58.93,R,A J H  Pump Supply & Repair Ltd,No
Http://opendatacommunities.org/id/metropolitan-district-council/leeds,Leeds City Council,30/06/2016,Environment & Housing,Leeds Building Services,Supplies and Services,Operational Materials,205,02-Jun-2016,1606-00037,0.00,22.51,R,A J H  Pump Supply & Repair Ltd,No
Http://opendatacommunities.org/id/metropolitan-district-council/leeds,Leeds City Council,30/06/2016,Environment & Housing,Leeds Building Services,Supplies and Services,Operational Furniture And Equipment,203,02-Jun-2016,1606-00038,0.00,214.00,R,A J H  Pump Supply & Repair Ltd,No
Http://opendatacommunities.org/id/metropolitan-district-council/leeds,Leeds City Council,30/06/2016,Environment & Housing,Leeds Building Services,Supplies and Services,Operational Materials,205,02-Jun-2016,1606-00039,0.00,75.00,R,A J H  Pump Supply & Repair Ltd,No
Http://opendatacommunities.org/id/metropolitan-district-council/leeds,Leeds City Council,30/06/2016,Environment & Housing,Leeds Building Services,Supplies and Services,Operational Materials,205,02-Jun-2016,1606-00040,0.00,75.00,R,A J H  Pump Supply & Repair Ltd,No
Http://opendatacommunities.org/id/metropolitan-district-council/leeds,Leeds City Council,30/06/2016,Environment & Housing,Leeds Building Services,Supplies and Services,Operational Materials,205,02-Jun-2016,1606-00041,0.00,65.00,R,A J H  Pump Supply & Repair Ltd,No
Http://opendatacommunities.org/id/metropolitan-district-council/leeds,Leeds City Council,30/06/2016,Environment & Housing,Leeds Building Services,Supplies and Services,Operational Materials,205,02-Jun-2016,1606-00042,0.00,94.50,R,A J H  Pump Supply & Repair Ltd,No
Http://opendatacommunities.org/id/metropolitan-district-council/leeds,Leeds City Council,30/06/2016,Environment & Housing,Leeds Building Services,Supplies and Services,Operational Materials,205,02-Jun-2016,1606-00043,0.00,16.66,R,A J H  Pump Supply & Repair Ltd,No
Http://opendatacommunities.org/id/metropolitan-district-council/leeds,Leeds City Council,30/06/2016,Environment & Housing,Leeds Building Services,Supplies and Services,Operational Materials,205,02-Jun-2016,1606-00044,0.00,195.50,R,A J H  Pump Supply & Repair Ltd,No
Http://opendatacommunities.org/id/metropolitan-district-council/leeds,Leeds City Council,30/06/2016,Environment & Housing,Leeds Building Services,Supplies and Services,Operational Materials,205,02-Jun-2016,1606-00045,0.00,18.33,R,A J H  Pump Supply & Repair Ltd,No
Http://opendatacommunities.org/id/metropolitan-district-council/leeds,Leeds City Council,30/06/2016,Environment & Housing,Leeds Building Services,Supplies and Services,Operational Materials,205,02-Jun-2016,1606-00046,0.00,388.80,R,A J H  Pump Supply & Repair Ltd,No
Http://opendatacommunities.org/id/metropolitan-district-council/leeds,Leeds City Council,30/06/2016,Environment & Housing,Leeds Building Services,Supplies and Services,Operational Materials,205,02-Jun-2016,1606-00047,0.00,415.00,R,A J H  Pump Supply & Repair Ltd,No
Http://opendatacommunities.org/id/metropolitan-district-council/leeds,Leeds City Council,30/06/2016,Environment & Housing,Leeds Building Services,Supplies and Services,Operational Materials,205,10-Jun-2016,1606-00048,0.00,687.90,R,A J H  Pump Supply & Repair Ltd,No
Http://opendatacommunities.org/id/metropolitan-district-council/leeds,Leeds City Council,30/06/2016,Environment & Housing,Leeds Building Services,Supplies and Services,Operational Materials,205,10-Jun-2016,1606-00049,0.00,105.00,R,A J H  Pump Supply & Repair Ltd,No
Http://opendatacommunities.org/id/metropolitan-district-council/leeds,Leeds City Council,30/06/2016,Environment & Housing,Leeds Building Services,Supplies and Services,Operational Materials,205,10-Jun-2016,1606-00050,0.00,24.22,R,A J H  Pump Supply & Repair Ltd,No
Http://opendatacommunities.org/id/metropolitan-district-council/leeds,Leeds City Council,30/06/2016,Environment & Housing,Leeds Building Services,Supplies and Services,Operational Materials,205,10-Jun-2016,1606-00051,0.00,18.10,R,A J H  Pump Supply & Repair Ltd,No
Http://opendatacommunities.org/id/metropolitan-district-council/leeds,Leeds City Council,30/06/2016,Environment & Housing,Leeds Building Services,Supplies and Services,Operational Materials,205,15-Jun-2016,1606-00052,0.00,65.83,R,A J H  Pump Supply & Repair Ltd,No
Http://opendatacommunities.org/id/metropolitan-district-council/leeds,Leeds City Council,30/06/2016,Environment & Housing,Leeds Building Services,Supplies and Services,Operational Materials,205,15-Jun-2016,1606-00053,0.00,149.00,R,A J H  Pump Supply & Repair Ltd,No
Http://opendatacommunities.org/id/metropolitan-district-council/leeds,Leeds City Council,30/06/2016,Environment & Housing,Leeds Building Services,Supplies and Services,Operational Materials,205,15-Jun-2016,1606-00054,0.00,19.36,R,A J H  Pump Supply & Repair Ltd,No
Http://opendatacommunities.org/id/metropolitan-district-council/leeds,Leeds City Council,30/06/2016,Environment & Housing,Leeds Building Services,Supplies and Services,Operational Materials,205,15-Jun-2016,1606-00055,0.00,126.00,R,A J H  Pump Supply & Repair Ltd,No
Http://opendatacommunities.org/id/metropolitan-district-council/leeds,Leeds City Council,30/06/2016,Environment & Housing,Leeds Building Services,Supplies and Services,Operational Materials,205,15-Jun-2016,1606-00056,0.00,356.95,R,A J H  Pump Supply & Repair Ltd,No
Http://opendatacommunities.org/id/metropolitan-district-council/leeds,Leeds City Council,30/06/2016,Environment & Housing,Leeds Building Services,Supplies and Services,Operational Materials,205,15-Jun-2016,1606-00057,0.00,955.00,R,A J H  Pump Supply & Repair Ltd,No
Http://opendatacommunities.org/id/metropolitan-district-council/leeds,Leeds City Council,30/06/2016,Environment & Housing,Leeds Building Services,Supplies and Services,Operational Materials,205,15-Jun-2016,1606-00058,0.00,16.45,R,A J H  Pump Supply & Repair Ltd,No
Http://opendatacommunities.org/id/metropolitan-district-council/leeds,Leeds City Council,30/06/2016,Environment & Housing,Leeds Building Services,Supplies and Services,Operational Materials,205,15-Jun-2016,1606-00059,0.00,46.50,R,A J H  Pump Supply & Repair Ltd,No
Http://opendatacommunities.org/id/metropolitan-district-council/leeds,Leeds City Council,30/06/2016,Environment & Housing,Leeds Building Services,Supplies and Services,Operational Materials,205,15-Jun-2016,1606-00060,0.00,38.00,R,A J H  Pump Supply & Repair Ltd,No
Http://opendatacommunities.org/id/metropolitan-district-council/leeds,Leeds City Council,30/06/2016,Environment & Housing,Leeds Building Services,Supplies and Services,Operational Materials,205,15-Jun-2016,1606-00061,0.00,29.00,R,A J H  Pump Supply & Repair Ltd,No
Http://opendatacommunities.org/id/metropolitan-district-council/leeds,Leeds City Council,30/06/2016,Environment & Housing,Leeds Building Services,Supplies and Services,Operational Materials,205,15-Jun-2016,1606-00062,0.00,75.80,R,A J H  Pump Supply & Repair Ltd,No
Http://opendatacommunities.org/id/metropolitan-district-council/leeds,Leeds City Council,30/06/2016,Environment & Housing,Leeds Building Services,Supplies and Services,Operational Materials,205,15-Jun-2016,1606-00063,0.00,239.40,R,A J H  Pump Supply & Repair Ltd,No
Http://opendatacommunities.org/id/metropolitan-district-council/leeds,Leeds City Council,30/06/2016,Environment & Housing,Leeds Building Services,Supplies and Services,Operational Materials,205,15-Jun-2016,1606-00064,0.00,35.60,R,A J H  Pump Supply & Repair Ltd,No
Http://opendatacommunities.org/id/metropolitan-district-council/leeds,Leeds City Council,30/06/2016,Environment & Housing,Leeds Building Services,Supplies and Services,Operational Materials,205,15-Jun-2016,1606-00065,0.00,372.89,R,A J H  Pump Supply & Repair Ltd,No
Http://opendatacommunities.org/id/metropolitan-district-council/leeds,Leeds City Council,30/06/2016,Environment & Housing,Leeds Building Services,Supplies and Services,Operational Materials,205,15-Jun-2016,1606-00066,0.00,395.00,R,A J H  Pump Supply & Repair Ltd,No
Http://opendatacommunities.org/id/metropolitan-district-council/leeds,Leeds City Council,30/06/2016,Environment & Housing,Leeds Building Services,Supplies and Services,Operational Materials,205,15-Jun-2016,1606-00067,0.00,102.98,R,A J H  Pump Supply & Repair Ltd,No
Http://opendatacommunities.org/id/metropolitan-district-council/leeds,Leeds City Council,30/06/2016,Environment & Housing,Leeds Building Services,Supplies and Services,Operational Materials,205,15-Jun-2016,1606-00068,0.00,42.00,R,A J H  Pump Supply & Repair Ltd,No
Http://opendatacommunities.org/id/metropolitan-district-council/leeds,Leeds City Council,30/06/2016,Environment & Housing,Leeds Building Services,Supplies and Services,Operational Materials,205,15-Jun-2016,1606-00069,0.00,126.00,R,A J H  Pump Supply & Repair Ltd,No
Http://opendatacommunities.org/id/metropolitan-district-council/leeds,Leeds City Council,30/06/2016,Environment & Housing,Leeds Building Services,Supplies and Services,Operational Materials,205,15-Jun-2016,1606-00070,0.00,115.00,R,A J H  Pump Supply & Repair Ltd,No
Http://opendatacommunities.org/id/metropolitan-district-council/leeds,Leeds City Council,30/06/2016,Environment & Housing,Leeds Building Services,Supplies and Services,Operational Materials,205,15-Jun-2016,1606-00071,0.00,115.00,R,A J H  Pump Supply & Repair Ltd,No
Http://opendatacommunities.org/id/metropolitan-district-council/leeds,Leeds City Council,30/06/2016,Environment & Housing,Leeds Building Services,Supplies and Services,Other Hired And Contracted Services,265,17-Jun-2016,1606-00072,0.00,380.00,R,A J H  Pump Supply & Repair Ltd,No
Http://opendatacommunities.org/id/metropolitan-district-council/leeds,Leeds City Council,30/06/2016,Environment & Housing,Leeds Building Services,Supplies and Services,Operational Materials,205,22-Jun-2016,1606-00073,0.00,111.04,R,A J H  Pump Supply & Repair Ltd,No
Http://opendatacommunities.org/id/metropolitan-district-council/leeds,Leeds City Council,30/06/2016,Environment & Housing,Leeds Building Services,Supplies and Services,Operational Materials,205,22-Jun-2016,1606-00074,0.00,150.00,R,A J H  Pump Supply & Repair Ltd,No
Http://opendatacommunities.org/id/metropolitan-district-council/leeds,Leeds City Council,30/06/2016,Environment & Housing,Leeds Building Services,Supplies and Services,Operational Materials,205,22-Jun-2016,1606-00075,0.00,227.60,R,A J H  Pump Supply & Repair Ltd,No
Http://opendatacommunities.org/id/metropolitan-district-council/leeds,Leeds City Council,30/06/2016,Environment & Housing,Leeds Building Services,Supplies and Services,Operational Materials,205,22-Jun-2016,1606-00076,0.00,518.11,R,A J H  Pump Supply & Repair Ltd,No
Http://opendatacommunities.org/id/metropolitan-district-council/leeds,Leeds City Council,30/06/2016,Environment & Housing,Leeds Building Services,Supplies and Services,Operational Materials,205,22-Jun-2016,1606-00077,0.00,875.00,R,A J H  Pump Supply & Repair Ltd,No
Http://opendatacommunities.org/id/metropolitan-district-council/leeds,Leeds City Council,30/06/2016,Environment & Housing,Leeds Building Services,Supplies and Services,Operational Materials,205,22-Jun-2016,1606-00078,0.00,625.00,R,A J H  Pump Supply & Repair Ltd,No
Http://opendatacommunities.org/id/metropolitan-district-council/leeds,Leeds City Council,30/06/2016,Environment & Housing,Leeds Building Services,Supplies and Services,Operational Materials,205,22-Jun-2016,1606-00079,0.00,34.75,R,A J H  Pump Supply & Repair Ltd,No
Http://opendatacommunities.org/id/metropolitan-district-council/leeds,Leeds City Council,30/06/2016,Environment & Housing,Leeds Building Services,Supplies and Services,Operational Materials,205,22-Jun-2016,1606-00080,0.00,99.00,R,A J H  Pump Supply & Repair Ltd,No
Http://opendatacommunities.org/id/metropolitan-district-council/leeds,Leeds City Council,30/06/2016,Environment & Housing,Leeds Building Services,Supplies and Services,Operational Materials,205,22-Jun-2016,1606-00081,0.00,28.15,R,A J H  Pump Supply & Repair Ltd,No
Http://opendatacommunities.org/id/metropolitan-district-council/leeds,Leeds City Council,30/06/2016,Environment & Housing,Leeds Building Services,Supplies and Services,Operational Materials,205,22-Jun-2016,1606-00082,0.00,57.79,R,A J H  Pump Supply & Repair Ltd,No
Http://opendatacommunities.org/id/metropolitan-district-council/leeds,Leeds City Council,30/06/2016,Environment & Housing,Leeds Building Services,Supplies and Services,Operational Materials,205,22-Jun-2016,1606-00083,0.00,122.00,R,A J H  Pump Supply & Repair Ltd,No
Http://opendatacommunities.org/id/metropolitan-district-council/leeds,Leeds City Council,30/06/2016,Environment & Housing,Leeds Building Services,Supplies and Services,Operational Materials,205,22-Jun-2016,1606-00084,0.00,864.00,R,A J H  Pump Supply & Repair Ltd,No
Http://opendatacommunities.org/id/metropolitan-district-council/leeds,Leeds City Council,30/06/2016,Environment & Housing,Leeds Building Services,Supplies and Services,Other Hired And Contracted Services,265,22-Jun-2016,1606-00085,0.00,2427.00,R,A J H  Pump Supply & Repair Ltd,No
Http://opendatacommunities.org/id/metropolitan-district-council/leeds,Leeds City Council,30/06/2016,Environment & Housing,Leeds Building Services,Supplies and Services,Operational Materials,205,22-Jun-2016,1606-00086,0.00,153.12,R,A J H  Pump Supply & Repair Ltd,No
Http://opendatacommunities.org/id/metropolitan-district-council/leeds,Leeds City Council,30/06/2016,Environment & Housing,Leeds Building Services,Supplies and Services,Operational Materials,205,22-Jun-2016,1606-00087,0.00,104.11,R,A J H  Pump Supply & Repair Ltd,No
Http://opendatacommunities.org/id/metropolitan-district-council/leeds,Leeds City Council,30/06/2016,Environment & Housing,Leeds Building Services,Supplies and Services,Operational Materials,205,22-Jun-2016,1606-00088,0.00,277.00,R,A J H  Pump Supply & Repair Ltd,No
Http://opendatacommunities.org/id/metropolitan-district-council/leeds,Leeds City Council,30/06/2016,Environment & Housing,Leeds Building Services,Supplies and Services,Other Hired And Contracted Services,265,22-Jun-2016,1606-00089,0.00,255.00,R,A J H  Pump Supply & Repair Ltd,No
Http://opendatacommunities.org/id/metropolitan-district-council/leeds,Leeds City Council,30/06/2016,Environment & Housing,Leeds Building Services,Supplies and Services,Operational Materials,205,22-Jun-2016,1606-00090,0.00,998.00,R,A J H  Pump Supply & Repair Ltd,No
Http://opendatacommunities.org/id/metropolitan-district-council/leeds,Leeds City Council,30/06/2016,Environment & Housing,Leeds Building Services,Supplies and Services,Operational Materials,205,24-Jun-2016,1606-00091,0.00,100.60,R,A J H  Pump Supply & Repair Ltd,No
Http://opendatacommunities.org/id/metropolitan-district-council/leeds,Leeds City Council,30/06/2016,Environment & Housing,Leeds Building Services,Supplies and Services,Operational Materials,205,24-Jun-2016,1606-00092,0.00,120.00,R,A J H  Pump Supply & Repair Ltd,No
Http://opendatacommunities.org/id/metropolitan-district-council/leeds,Leeds City Council,30/06/2016,Environment & Housing,Leeds Building Services,Supplies and Services,Operational Materials,205,24-Jun-2016,1606-00093,0.00,113.46,R,A J H  Pump Supply & Repair Ltd,No
Http://opendatacommunities.org/id/metropolitan-district-council/leeds,Leeds City Council,30/06/2016,Environment & Housing,Leeds Building Services,Supplies and Services,Operational Materials,205,24-Jun-2016,1606-00094,0.00,350.80,R,A J H  Pump Supply & Repair Ltd,No
Http://opendatacommunities.org/id/metropolitan-district-council/leeds,Leeds City Council,30/06/2016,Environment & Housing,Leeds Building Services,Supplies and Services,Operational Materials,205,24-Jun-2016,1606-00095,0.00,190.00,R,A J H  Pump Supply & Repair Ltd,No
Http://opendatacommunities.org/id/metropolitan-district-council/leeds,Leeds City Council,30/06/2016,Environment & Housing,Leeds Building Services,Supplies and Services,Operational Materials,205,24-Jun-2016,1606-00096,0.00,205.00,R,A J H  Pump Supply & Repair Ltd,No
Http://opendatacommunities.org/id/metropolitan-district-council/leeds,Leeds City Council,30/06/2016,Environment & Housing,Leeds Building Services,Supplies and Services,Operational Materials,205,24-Jun-2016,1606-00097,0.00,60.15,R,A J H  Pump Supply & Repair Ltd,No
Http://opendatacommunities.org/id/metropolitan-district-council/leeds,Leeds City Council,30/06/2016,Environment & Housing,Leeds Building Services,Supplies and Services,Operational Materials,205,24-Jun-2016,1606-00098,0.00,123.41,R,A J H  Pump Supply & Repair Ltd,No
Http://opendatacommunities.org/id/metropolitan-district-council/leeds,Leeds City Council,30/06/2016,Environment & Housing,Leeds Building Services,Supplies and Services,Operational Materials,205,24-Jun-2016,1606-00099,0.00,53.80,R,A J H  Pump Supply & Repair Ltd,No
Http://opendatacommunities.org/id/metropolitan-district-council/leeds,Leeds City Council,30/06/2016,Environment & Housing,Leeds Building Services,Supplies and Services,Operational Materials,205,24-Jun-2016,1606-00100,0.00,94.02,R,A J H  Pump Supply & Repair Ltd,No
Http://opendatacommunities.org/id/metropolitan-district-council/leeds,Leeds City Council,30/06/2016,Environment & Housing,Leeds Building Services,Supplies and Services,Operational Materials,205,24-Jun-2016,1606-00101,0.00,146.68,R,A J H  Pump Supply & Repair Ltd,No
Http://opendatacommunities.org/id/metropolitan-district-council/leeds,Leeds City Council,30/06/2016,Environment & Housing,Leeds Building Services,Supplies and Services,Operational Materials,205,24-Jun-2016,1606-00102,0.00,61.50,R,A J H  Pump Supply & Repair Ltd,No
Http://opendatacommunities.org/id/metropolitan-district-council/leeds,Leeds City Council,30/06/2016,Environment & Housing,Leeds Building Services,Supplies and Services,Operational Materials,205,24-Jun-2016,1606-00103,0.00,37.90,R,A J H  Pump Supply & Repair Ltd,No
Http://opendatacommunities.org/id/metropolitan-district-council/leeds,Leeds City Council,30/06/2016,Environment & Housing,Leeds Building Services,Supplies and Services,Operational Materials,205,24-Jun-2016,1606-00104,0.00,845.00,R,A J H  Pump Supply & Repair Ltd,No
Http://opendatacommunities.org/id/metropolitan-district-council/leeds,Leeds City Council,30/06/2016,Environment & Housing,Leeds Building Services,Supplies and Services,Operational Materials,205,24-Jun-2016,1606-00105,0.00,288.00,R,A J H  Pump Supply & Repair Ltd,No
Http://opendatacommunities.org/id/metropolitan-district-council/leeds,Leeds City Council,30/06/2016,Environment & Housing,Leeds Building Services,Supplies and Services,Operational Materials,205,24-Jun-2016,1606-00106,0.00,110.00,R,A J H  Pump Supply & Repair Ltd,No
Http://opendatacommunities.org/id/metropolitan-district-council/leeds,Leeds City Council,30/06/2016,Environment & Housing,Leeds Building Services,Supplies and Services,Operational Materials,205,24-Jun-2016,1606-00107,0.00,63.31,R,A J H  Pump Supply & Repair Ltd,No
Http://opendatacommunities.org/id/metropolitan-district-council/leeds,Leeds City Council,30/06/2016,Environment & Housing,Leeds Building Services,Supplies and Services,Operational Materials,205,24-Jun-2016,1606-00108,0.00,4.50,R,A J H  Pump Supply & Repair Ltd,No
Http://opendatacommunities.org/id/metropolitan-district-council/leeds,Leeds City Council,30/06/2016,Environment & Housing,Leeds Building Services,Supplies and Services,Operational Materials,205,24-Jun-2016,1606-00109,0.00,58.30,R,A J H  Pump Supply & Repair Ltd,No
Http://opendatacommunities.org/id/metropolitan-district-council/leeds,Leeds City Council,30/06/2016,Environment & Housing,Leeds Building Services,Supplies and Services,Operational Materials,205,24-Jun-2016,1606-00110,0.00,31.85,R,A J H  Pump Supply & Repair Ltd,No
Http://opendatacommunities.org/id/metropolitan-district-council/leeds,Leeds City Council,30/06/2016,Environment & Housing,Leeds Building Services,Supplies and Services,Operational Materials,205,24-Jun-2016,1606-00111,0.00,19.77,R,A J H  Pump Supply & Repair Ltd,No
Http://opendatacommunities.org/id/metropolitan-district-council/leeds,Leeds City Council,30/06/2016,Environment & Housing,Leeds Building Services,Supplies and Services,Operational Materials,205,24-Jun-2016,1606-00112,0.00,120.08,R,A J H  Pump Supply & Repair Ltd,No
Http://opendatacommunities.org/id/metropolitan-district-council/leeds,Leeds City Council,30/06/2016,Environment & Housing,Leeds Building Services,Supplies and Services,Operational Materials,205,30-Jun-2016,1606-00113,0.00,1600.00,R,A J H  Pump Supply & Repair Ltd,No
Http://opendatacommunities.org/id/metropolitan-district-council/leeds,Leeds City Council,30/06/2016,Environment & Housing,Parks and Countryside,Supplies and Services,Resaleable Materials,204,01-Jun-2016,1606-00114,0.00,480.00,R,A J Promotions,No
Http://opendatacommunities.org/id/metropolitan-district-council/leeds,Leeds City Council,30/06/2016,City Development,Libraries  Arts & Heritage,Supplies and Services,Art Galleries Total Stores,003,01-Jun-2016,1606-00115,0.00,570.82,R,A J Promotions,No
Http://opendatacommunities.org/id/metropolitan-district-council/leeds,Leeds City Council,30/06/2016,Environment & Housing,Parks and Countryside,Supplies and Services,Resaleable Materials,204,08-Jun-2016,1606-00116,0.00,988.70,R,A J Promotions,No
Http://opendatacommunities.org/id/metropolitan-district-council/leeds,Leeds City Council,30/06/2016,Environment & Housing,Parks and Countryside,Supplies and Services,Resaleable Materials,204,10-Jun-2016,1606-00117,0.00,650.00,R,A J Promotions,No
Http://opendatacommunities.org/id/metropolitan-district-council/leeds,Leeds City Council,30/06/2016,Environment & Housing,Parks and Countryside,Supplies and Services,Resaleable Materials,204,17-Jun-2016,1606-00118,0.00,575.40,R,A J Promotions,No
Http://opendatacommunities.org/id/metropolitan-district-council/leeds,Leeds City Council,30/06/2016,City Development,Libraries  Arts & Heritage,Supplies and Services,Resaleable Materials,204,17-Jun-2016,1606-00119,0.00,207.56,R,A J Promotions,No
Http://opendatacommunities.org/id/metropolitan-district-council/leeds,Leeds City Council,30/06/2016,City Development,Libraries  Arts & Heritage,Supplies and Services,Art Galleries Total Stores,003,17-Jun-2016,1606-00120,0.00,48.50,R,A J Promotions,No
Http://opendatacommunities.org/id/metropolitan-district-council/leeds,Leeds City Council,30/06/2016,Childrens Services,Learning Skills & Universal,Third Party Payments,Services Rendered By Other Organisations,511,03-Jun-2016,1606-00121,0.00,24.67,R,A K Walsh,No
Http://opendatacommunities.org/id/metropolitan-district-council/leeds,Leeds City Council,30/06/2016,Public Health,Public Health,Third Party Payments,Public Health Commissioned Services,526,01-Jun-2016,1606-00122,0.00,304.00,R,A Khan & K Muneer,No
Http://opendatacommunities.org/id/metropolitan-district-council/leeds,Leeds City Council,30/06/2016,Childrens Services,Learning Skills & Universal,Supplies and Services,Teaching Materials,202,16-Jun-2016,1606-00123,0.00,180.00,R,A Little Something Extra Ltd,No
Http://opendatacommunities.org/id/metropolitan-district-council/leeds,Leeds City Council,30/06/2016,Childrens Services,Learning Skills & Universal,Supplies and Services,Teaching Materials,202,16-Jun-2016,1606-00124,0.00,180.00,R,A Little Something Extra Ltd,No
Http://opendatacommunities.org/id/metropolitan-district-council/leeds,Leeds City Council,30/06/2016,Childrens Services,Learning Skills & Universal,Third Party Payments,Services Rendered By Voluntary Sector,505,24-Jun-2016,1606-00125,0.00,600.00,R,A Little Something Extra Ltd,No
Http://opendatacommunities.org/id/metropolitan-district-council/leeds,Leeds City Council,30/06/2016,Childrens Services,Learning Skills & Universal,Third Party Payments,Services Rendered By Voluntary Sector,505,24-Jun-2016,1606-00126,0.00,360.00,R,A Little Something Extra Ltd,No
Http://opendatacommunities.org/id/metropolitan-district-council/leeds,Leeds City Council,30/06/2016,Childrens Services,Learning Skills & Universal,Third Party Payments,Services Rendered By Voluntary Sector,505,24-Jun-2016,1606-00127,0.00,1080.00,R,A Little Something Extra Ltd,No
Http://opendatacommunities.org/id/metropolitan-district-council/leeds,Leeds City Council,30/06/2016,Childrens Services,Learning Skills & Universal,Supplies and Services,Teaching Materials,202,24-Jun-2016,1606-00128,0.00,60.00,R,A Little Something Extra Ltd,No
Http://opendatacommunities.org/id/metropolitan-district-council/leeds,Leeds City Council,30/06/2016,Childrens Services,Partnership Development & Leadership,Employees,Training & Development,70,24-Jun-2016,1606-00129,0.00,75.00,R,A Little Something Extra Ltd,No
Http://opendatacommunities.org/id/metropolitan-district-council/leeds,Leeds City Council,30/06/2016,Childrens Services,Learning Skills & Universal,Third Party Payments,Services Rendered By Other Organisations,511,03-Jun-2016,1606-00130,0.00,21.33,R,A Longbottom,No
Http://opendatacommunities.org/id/metropolitan-district-council/leeds,Leeds City Council,30/06/2016,Citizens and Communities,Customer Access,Supplies and Services,Other Hired And Contracted Services,265,02-Jun-2016,1606-00131,0.00,373.50,R,A Mohammed,No
Http://opendatacommunities.org/id/metropolitan-district-council/leeds,Leeds City Council,30/06/2016,Citizens and Communities,Customer Access,Supplies and Services,Other Hired And Contracted Services,265,02-Jun-2016,1606-00132,0.00,1430.87,R,A Mohammed,No
Http://opendatacommunities.org/id/metropolitan-district-council/leeds,Leeds City Council,30/06/2016,Citizens and Communities,Customer Access,Supplies and Services,Other Hired And Contracted Services,265,02-Jun-2016,1606-00133,0.00,45.00,R,A Musalam,No
Http://opendatacommunities.org/id/metropolitan-district-council/leeds,Leeds City Council,30/06/2016,Citizens and Communities,Customer Access,Supplies and Services,Other Hired And Contracted Services,265,30-Jun-2016,1606-00134,0.00,47.50,R,A Musalam,No
Http://opendatacommunities.org/id/metropolitan-district-council/leeds,Leeds City Council,30/06/2016,Citizens and Communities,Customer Access,Supplies and Services,Other Hired And Contracted Services,265,02-Jun-2016,1606-00135,0.00,340.25,R,A Namaki,No
Http://opendatacommunities.org/id/metropolitan-district-council/leeds,Leeds City Council,30/06/2016,Public Health,Public Health,Third Party Payments,Public Health Commissioned Services,526,06-Jun-2016,1606-00136,0.00,3045.80,R,A P Health,No
Http://opendatacommunities.org/id/metropolitan-district-council/leeds,Leeds City Council,30/06/2016,City Development,Libraries  Arts & Heritage,Supplies and Services,Books & Audio-Visual Materials,206,15-Jun-2016,1606-00137,0.00,161.48,R,A S Jhagra,No
Http://opendatacommunities.org/id/metropolitan-district-council/leeds,Leeds City Council,30/06/2016,Central & Corporate,Strategy And Improvement ,Supplies and Services,Supplies and Services,213,23-May-2016,1606-00138,0.00,193.80,R,A S T Systems,Yes
Http://opendatacommunities.org/id/metropolitan-district-council/leeds,Leeds City Council,30/06/2016,Childrens Services,Learning Skills & Universal,Third Party Payments,Services Rendered By Other Organisations,511,03-Jun-2016,1606-00139,0.00,75.67,R,A Walding,No
Http://opendatacommunities.org/id/metropolitan-district-council/leeds,Leeds City Council,30/06/2016,Environment & Housing,Parks and Countryside,Supplies and Services,Other Hired And Contracted Services,265,29-Jun-2016,1606-00140,0.00,200.00,R,A Wright,No
Http://opendatacommunities.org/id/metropolitan-district-council/leeds,Leeds City Council,30/06/2016,Environment & Housing,Waste Management,Capital,Furniture And Equipment,5,08-Jun-2016,1606-00141,0.00,2130.00,C,A&C Weber Uk Ltd,No
Http://opendatacommunities.org/id/metropolitan-district-council/leeds,Leeds City Council,30/06/2016,Citizens And Communities,Customer Access ,Supplies and Services,Supplies and Services,201,13-May-2016,1606-00142,0.00,63.91,R,A2b Office Technol,Yes
Http://opendatacommunities.org/id/metropolitan-district-council/leeds,Leeds City Council as Accountable Body,30/06/2016,Social Services Pooled Budgets,Leeds Community Equip Store Pooled Budgt,Supplies and Services,Other Equipment,203,17-Jun-2016,1606-00143,0.00,2188.70,R,Aal Ltd,No
Http://opendatacommunities.org/id/metropolitan-district-council/leeds,Leeds City Council,30/06/2016,Childrens Services,Learning Skills & Universal ,Supplies and Services,Supplies and Services,231,28-May-2016,1606-00144,0.00,84.31,R,Aardvark Archery,Yes
Http://opendatacommunities.org/id/metropolitan-district-council/leeds,Leeds City Council as Accountable Body,30/06/2016,Social Services Pooled Budgets,Leeds Community Equip Store Pooled Budgt,Supplies and Services,Other Equipment,203,17-Jun-2016,1606-00145,0.00,909.00,R,Aat (Gb) Ltd,No
Http://opendatacommunities.org/id/metropolitan-district-council/leeds,Leeds City Council as Accountable Body,30/06/2016,Social Services Pooled Budgets,Leeds Community Equip Store Pooled Budgt,Supplies and Services,Other Equipment,203,17-Jun-2016,1606-00146,0.00,909.00,R,Aat (Gb) Ltd,No
Http://opendatacommunities.org/id/metropolitan-district-council/leeds,Leeds City Council,30/06/2016,Central & Corporate,Finance,Transport,Public Transport Expenses,310,03-Jun-2016,1606-00147,0.00,204.00,R,Ab Cars (Garforth) Ltd,No
Http://opendatacommunities.org/id/metropolitan-district-council/leeds,Leeds City Council,30/06/2016,Central & Corporate,Finance,Transport,Public Transport Expenses,310,29-Jun-2016,1606-00148,0.00,221.00,R,Ab Cars (Garforth) Ltd,No
Http://opendatacommunities.org/id/metropolitan-district-council/leeds,Leeds City Council,30/06/2016,Central & Corporate,Finance,Transport,Public Transport Expenses,310,29-Jun-2016,1606-00149,0.00,-17.00,R,Ab Cars (Garforth) Ltd,No
Http://opendatacommunities.org/id/metropolitan-district-council/leeds,Leeds City Council,30/06/2016,Environment & Housing,Streetscene Environmental Services ,Supplies and Services,Supplies and Services,212,09-May-2016,1606-00150,0.00,13.50,R,Abacus Express,Yes
Http://opendatacommunities.org/id/metropolitan-district-council/leeds,Leeds City Council,30/06/2016,Environment & Housing,Streetscene Environmental Services ,Supplies and Services,Supplies and Services,212,24-May-2016,1606-00151,0.00,23.50,R,Abacus Express,Yes
Http://opendatacommunities.org/id/metropolitan-district-council/leeds,Leeds City Council,30/06/2016,Childrens Services,Safeguarding Targeted & Specialist,Support Services,Legal Disbursements,411,07-Jun-2016,1606-00152,0.00,31.02,R,Abacus Express Limited,No
Http://opendatacommunities.org/id/metropolitan-district-council/leeds,Leeds City Council,30/06/2016,Childrens Services,Safeguarding Targeted & Specialist,Support Services,Legal Disbursements,411,07-Jun-2016,1606-00153,0.00,31.02,R,Abacus Express Limited,No
Http://opendatacommunities.org/id/metropolitan-district-council/leeds,Leeds City Council,30/06/2016,Childrens Services,Safeguarding Targeted & Specialist,Support Services,Legal Disbursements,411,07-Jun-2016,1606-00154,0.00,31.02,R,Abacus Express Limited,No
Http://opendatacommunities.org/id/metropolitan-district-council/leeds,Leeds City Council,30/06/2016,Childrens Services,Safeguarding Targeted & Specialist,Support Services,Legal Disbursements,411,07-Jun-2016,1606-00155,0.00,31.02,R,Abacus Express Limited,No
Http://opendatacommunities.org/id/metropolitan-district-council/leeds,Leeds City Council,30/06/2016,City Development,Planning & Sustainable Development,Supplies and Services,Other Hired And Contracted Services,265,08-Jun-2016,1606-00156,0.00,14.51,R,Abacus Express Limited,No
Http://opendatacommunities.org/id/metropolitan-district-council/leeds,Leeds City Council,30/06/2016,Childrens Services,Safeguarding Targeted & Specialist,Support Services,Legal Disbursements,411,09-Jun-2016,1606-00157,0.00,37.63,R,Abacus Express Limited,No
Http://opendatacommunities.org/id/metropolitan-district-council/leeds,Leeds City Council,30/06/2016,Childrens Services,Safeguarding Targeted & Specialist,Support Services,Legal Disbursements,411,16-Jun-2016,1606-00158,0.00,15.59,R,Abacus Express Limited,No
Http://opendatacommunities.org/id/metropolitan-district-council/leeds,Leeds City Council,30/06/2016,Childrens Services,Safeguarding Targeted & Specialist,Support Services,Legal Disbursements,411,24-Jun-2016,1606-00159,0.00,31.02,R,Abacus Express Limited,No
Http://opendatacommunities.org/id/metropolitan-district-council/leeds,Leeds City Council,30/06/2016,Childrens Services,Safeguarding Targeted & Specialist,Support Services,Legal Disbursements,411,24-Jun-2016,1606-00160,0.00,18.28,R,Abacus Express Limited,No
Http://opendatacommunities.org/id/metropolitan-district-council/leeds,Leeds City Council,30/06/2016,Childrens Services,Safeguarding Targeted & Specialist,Support Services,Legal Disbursements,411,24-Jun-2016,1606-00161,0.00,15.59,R,Abacus Express Limited,No
Http://opendatacommunities.org/id/metropolitan-district-council/leeds,Leeds City Council,30/06/2016,Childrens Services,Safeguarding Targeted & Specialist,Support Services,Legal Disbursements,411,24-Jun-2016,1606-00162,0.00,15.59,R,Abacus Express Limited,No
Http://opendatacommunities.org/id/metropolitan-district-council/leeds,Leeds City Council,30/06/2016,Civic Enterprise Leeds,Business Support Centre,Supplies and Services,Computer Software & Equipment,214,17-Jun-2016,1606-00163,0.00,8182.00,R,Abacus Software Ltd,No
Http://opendatacommunities.org/id/metropolitan-district-council/leeds,Leeds City Council,30/06/2016,Adult Social Care,Services For Older People - 65 And Over,Third Party Payments,Nursing Care Dementia,574,29-Jun-2016,1606-00164,0.00,8724.71,R,Abbendon Nursing Home,No
Http://opendatacommunities.org/id/metropolitan-district-council/leeds,Leeds City Council,30/06/2016,Childrens Services,Learning Skills & Universal,Support Services,Internal Charges From Education & School,497,27-Jun-2016,1606-00165,0.00,1075.00,R,Abbey Grange C Of E Academy Trust,No
Http://opendatacommunities.org/id/metropolitan-district-council/leeds,Leeds City Council,30/06/2016,Childrens Services,Learning Skills & Universal,Support Services,Internal Charges From Education & School,497,27-Jun-2016,1606-00166,0.00,1575.00,R,Abbey Grange C Of E Academy Trust,No
Http://opendatacommunities.org/id/metropolitan-district-council/leeds,Leeds City Council,30/06/2016,Adult Social Care,Services For Older People - 65 And Over,Third Party Payments,Home Care,568,03-Jun-2016,1606-00167,0.00,1229.25,R,Abbeyfield The Dales Limited,No
Http://opendatacommunities.org/id/metropolitan-district-council/leeds,Leeds City Council,30/06/2016,Environment & Housing,Parks and Countryside,Supplies and Services,Other Hired And Contracted Services,265,10-Jun-2016,1606-00168,0.00,3100.00,R,Abbotts Memorials,No
Http://opendatacommunities.org/id/metropolitan-district-council/leeds,Leeds City Council,30/06/2016,Childrens Services,Learning Skills & Universal,Third Party Payments,Services Rendered By Other Organisations,511,03-Jun-2016,1606-00169,0.00,464.33,R,Abc Daycare And Ozone Out Of School,No
Http://opendatacommunities.org/id/metropolitan-district-council/leeds,Leeds City Council,30/06/2016,Childrens Services,Learning Skills & Universal,Third Party Payments,Services Rendered By Other Organisations,511,03-Jun-2016,1606-00170,0.00,1019.00,R,Abc Nursery At Lufc,No
Http://opendatacommunities.org/id/metropolitan-district-council/leeds,Leeds City Council,30/06/2016,Childrens Services,Learning Skills & Universal,Third Party Payments,Services Rendered By Other Organisations,511,03-Jun-2016,1606-00171,0.00,253.00,R,Abc@D'S Childcare Services,No
Http://opendatacommunities.org/id/metropolitan-district-council/leeds,Leeds City Council,30/06/2016,Citizens and Communities,Customer Access,Supplies and Services,Other Hired And Contracted Services,265,02-Jun-2016,1606-00172,0.00,55.00,R,Abdul Wadood Kazizadha,No
Http://opendatacommunities.org/id/metropolitan-district-council/leeds,Leeds City Council,30/06/2016,Citizens and Communities,Customer Access,Supplies and Services,Other Hired And Contracted Services,265,02-Jun-2016,1606-00173,0.00,61.00,R,Abdul Wadood Kazizadha,No
Http://opendatacommunities.org/id/metropolitan-district-council/leeds,Leeds City Council,30/06/2016,Citizens and Communities,Customer Access,Supplies and Services,Other Hired And Contracted Services,265,02-Jun-2016,1606-00174,0.00,22.75,R,Abdul Wadood Kazizadha,No
Http://opendatacommunities.org/id/metropolitan-district-council/leeds,Leeds City Council,30/06/2016,Environment & Housing,Parks and Countryside,Supplies and Services,Non-Recurring Grants,227,20-Jun-2016,1606-00175,0.00,550.00,R,Aberford And District Parish Council,No
Http://opendatacommunities.org/id/metropolitan-district-council/leeds,Leeds City Council,30/06/2016,Adult Social Care,Services For Older People - 65 And Over,Third Party Payments,Nursing Home,570,29-Jun-2016,1606-00176,0.00,13972.42,R,Aberford Hall,No
Http://opendatacommunities.org/id/metropolitan-district-council/leeds,Leeds City Council,30/06/2016,Adult Social Care,Services For Older People - 65 And Over,Third Party Payments,Nursing Care Dementia,574,29-Jun-2016,1606-00177,0.00,1501.20,R,Aberford Hall,No
Http://opendatacommunities.org/id/metropolitan-district-council/leeds,Leeds City Council,30/06/2016,Adult Social Care,Services For Older People - 65 And Over,Third Party Payments,Residential,580,29-Jun-2016,1606-00178,0.00,6365.64,R,Aberford Hall,No
Http://opendatacommunities.org/id/metropolitan-district-council/leeds,Leeds City Council,30/06/2016,Strategic Accounts,Miscellaneous,Supplies and Services,Non-Recurring Grants,227,27-Jun-2016,1606-00179,0.00,200.00,R,Abf The Soldiers Charity,No
Http://opendatacommunities.org/id/metropolitan-district-council/leeds,Leeds City Council,30/06/2016,Environment & Housing,Leeds Building Services,Supplies and Services,Operational Materials,205,10-Jun-2016,1606-00180,0.00,225.00,R,Abi Garage Doors Ltd,No
Http://opendatacommunities.org/id/metropolitan-district-council/leeds,Leeds City Council,30/06/2016,Childrens Services,Learning Skills & Universal ,Supplies and Services,Supplies and Services,206,11-May-2016,1606-00181,0.00,41.95,R,Absorbentmi,Yes
Http://opendatacommunities.org/id/metropolitan-district-council/leeds,Leeds City Council,30/06/2016,City Development,Economic Development ,Supplies and Services,Supplies and Services,256,05-May-2016,1606-00182,0.00,224.40,R,Ac Tours Ltd,Yes
Http://opendatacommunities.org/id/metropolitan-district-council/leeds,Leeds City Council,30/06/2016,Childrens Services,Safeguarding Targeted & Specialist,Employees,Agency Staff,8,03-Jun-2016,1606-00183,0.00,1444.22,R,Academic Appointments Ltd,No
Http://opendatacommunities.org/id/metropolitan-district-council/leeds,Leeds City Council,30/06/2016,Childrens Services,Safeguarding Targeted & Specialist,Employees,Agency Staff,8,03-Jun-2016,1606-00184,0.00,1817.34,R,Academic Appointments Ltd,No
Http://opendatacommunities.org/id/metropolitan-district-council/leeds,Leeds City Council,30/06/2016,Childrens Services,Learning Skills & Universal,Employees,Basic Pay,1,03-Jun-2016,1606-00185,0.00,2170.00,R,Academic Appointments Ltd,No
Http://opendatacommunities.org/id/metropolitan-district-council/leeds,Leeds City Council,30/06/2016,Childrens Services,Safeguarding Targeted & Specialist,Employees,Agency Staff,8,09-Jun-2016,1606-00186,0.00,1603.12,R,Academic Appointments Ltd,No
Http://opendatacommunities.org/id/metropolitan-district-council/leeds,Leeds City Council,30/06/2016,Childrens Services,Safeguarding Targeted & Specialist,Employees,Agency Staff,8,14-Jun-2016,1606-00187,0.00,376.10,R,Academic Appointments Ltd,No
Http://opendatacommunities.org/id/metropolitan-district-council/leeds,Leeds City Council,30/06/2016,Childrens Services,Safeguarding Targeted & Specialist,Employees,Agency Staff,8,23-Jun-2016,1606-00188,0.00,2003.90,R,Academic Appointments Ltd,No
Http://opendatacommunities.org/id/metropolitan-district-council/leeds,Leeds City Council,30/06/2016,Environment & Housing,Environmental Health,Capital,Construction,3,02-Jun-2016,1606-00189,0.00,5236.92,C,Accent Homes Ltd,No
Http://opendatacommunities.org/id/metropolitan-district-council/leeds,Leeds City Council,30/06/2016,Environment & Housing,Community Safety,Transport,Hire Of Movable Plant & Machinery,315,02-Jun-2016,1606-00190,0.00,1307.14,R,Access Hire Nationwide Ltd,No
Http://opendatacommunities.org/id/metropolitan-district-council/leeds,Leeds City Council,30/06/2016,Environment & Housing,Community Safety,Transport,Hire Of Movable Plant & Machinery,315,24-Jun-2016,1606-00191,0.00,1350.71,R,Access Hire Nationwide Ltd,No
Http://opendatacommunities.org/id/metropolitan-district-council/leeds,Leeds City Council,30/06/2016,Environment & Housing,Parks And Countryside ,Supplies and Services,Supplies and Services,205,03-May-2016,1606-00192,0.00,5.83,R,Access Locksmiths,Yes
Http://opendatacommunities.org/id/metropolitan-district-council/leeds,Leeds City Council,30/06/2016,Strategic Landlord,Property and Contracts,Premises,General Maintenance,104,03-Jun-2016,1606-00193,0.00,66.19,R,Access Locksmiths (Leeds) Limited,No
Http://opendatacommunities.org/id/metropolitan-district-council/leeds,Leeds City Council,30/06/2016,Strategic Landlord,Housing Management,Premises,General Maintenance,104,03-Jun-2016,1606-00194,0.00,207.40,R,Access Locksmiths (Leeds) Limited,No
Http://opendatacommunities.org/id/metropolitan-district-council/leeds,Leeds City Council,30/06/2016,Strategic Landlord,Housing Management,Premises,General Maintenance,104,03-Jun-2016,1606-00195,0.00,829.60,R,Access Locksmiths (Leeds) Limited,No
Http://opendatacommunities.org/id/metropolitan-district-council/leeds,Leeds City Council,30/06/2016,Strategic Landlord,Property and Contracts,Premises,General Maintenance,104,03-Jun-2016,1606-00196,0.00,371.00,R,Access Locksmiths (Leeds) Limited,No
Http://opendatacommunities.org/id/metropolitan-district-council/leeds,Leeds City Council,30/06/2016,Environment & Housing,Environmental Action (East North East),Supplies and Services,Other Hired And Contracted Services,265,03-Jun-2016,1606-00197,0.00,14.95,R,Access Locksmiths (Leeds) Limited,No
Http://opendatacommunities.org/id/metropolitan-district-council/leeds,Leeds City Council,30/06/2016,Strategic Landlord,Property and Contracts,Premises,General Maintenance,104,10-Jun-2016,1606-00198,0.00,93.40,R,Access Locksmiths (Leeds) Limited,No
Http://opendatacommunities.org/id/metropolitan-district-council/leeds,Leeds City Council,30/06/2016,Environment & Housing,Waste Management,Supplies and Services,Operational Furniture And Equipment,203,10-Jun-2016,1606-00199,0.00,521.50,R,Access Locksmiths (Leeds) Limited,No
Http://opendatacommunities.org/id/metropolitan-district-council/leeds,Leeds City Council,30/06/2016,Environment & Housing,Leeds Building Services,Supplies and Services,Operational Materials,205,10-Jun-2016,1606-00200,0.00,112.63,R,Access Locksmiths (Leeds) Limited,No
Http://opendatacommunities.org/id/metropolitan-district-council/leeds,Leeds City Council,30/06/2016,Strategic Landlord,Housing Management,Premises,General Maintenance,104,10-Jun-2016,1606-00201,0.00,17.50,R,Access Locksmiths (Leeds) Limited,No
Http://opendatacommunities.org/id/metropolitan-district-council/leeds,Leeds City Council,30/06/2016,Civic Enterprise Leeds,Commercial Services,Supplies and Services,Operational Furniture And Equipment,203,13-Jun-2016,1606-00202,0.00,109.50,R,Access Locksmiths (Leeds) Limited,No
Http://opendatacommunities.org/id/metropolitan-district-council/leeds,Leeds City Council,30/06/2016,Civic Enterprise Leeds,Commercial Services,Supplies and Services,Operational Furniture And Equipment,203,13-Jun-2016,1606-00203,0.00,54.88,R,Access Locksmiths (Leeds) Limited,No
Http://opendatacommunities.org/id/metropolitan-district-council/leeds,Leeds City Council,30/06/2016,Civic Enterprise Leeds,Commercial Services,Supplies and Services,Operational Materials,205,13-Jun-2016,1606-00204,0.00,365.00,R,Access Locksmiths (Leeds) Limited,No
Http://opendatacommunities.org/id/metropolitan-district-council/leeds,Leeds City Council,30/06/2016,Environment & Housing,Leeds Building Services,Supplies and Services,Operational Materials,205,14-Jun-2016,1606-00205,0.00,351.44,R,Access Locksmiths (Leeds) Limited,No
Http://opendatacommunities.org/id/metropolitan-district-council/leeds,Leeds City Council,30/06/2016,Strategic Landlord,Property and Contracts,Premises,General Maintenance,104,17-Jun-2016,1606-00206,0.00,72.42,R,Access Locksmiths (Leeds) Limited,No
Http://opendatacommunities.org/id/metropolitan-district-council/leeds,Leeds City Council,30/06/2016,Strategic Landlord,Property and Contracts,Premises,General Maintenance,104,17-Jun-2016,1606-00207,0.00,255.87,R,Access Locksmiths (Leeds) Limited,No
Http://opendatacommunities.org/id/metropolitan-district-council/leeds,Leeds City Council,30/06/2016,Strategic Landlord,Housing Management,Premises,Premises Security Services,162,17-Jun-2016,1606-00208,0.00,17.50,R,Access Locksmiths (Leeds) Limited,No
Http://opendatacommunities.org/id/metropolitan-district-council/leeds,Leeds City Council,30/06/2016,Environment & Housing,Leeds Building Services,Supplies and Services,Operational Materials,205,22-Jun-2016,1606-00209,0.00,8.68,R,Access Locksmiths (Leeds) Limited,No
Http://opendatacommunities.org/id/metropolitan-district-council/leeds,Leeds City Council,30/06/2016,Environment & Housing,Leeds Building Services,Supplies and Services,Operational Materials,205,22-Jun-2016,1606-00210,0.00,212.74,R,Access Locksmiths (Leeds) Limited,No
Http://opendatacommunities.org/id/metropolitan-district-council/leeds,Leeds City Council,30/06/2016,Environment & Housing,Leeds Building Services,Supplies and Services,Operational Materials,205,22-Jun-2016,1606-00211,0.00,56.25,R,Access Locksmiths (Leeds) Limited,No
Http://opendatacommunities.org/id/metropolitan-district-council/leeds,Leeds City Council,30/06/2016,Environment & Housing,Leeds Building Services,Supplies and Services,Operational Materials,205,22-Jun-2016,1606-00212,0.00,15.20,R,Access Locksmiths (Leeds) Limited,No
Http://opendatacommunities.org/id/metropolitan-district-council/leeds,Leeds City Council,30/06/2016,Environment & Housing,Leeds Building Services,Supplies and Services,Operational Materials,205,22-Jun-2016,1606-00213,0.00,76.83,R,Access Locksmiths (Leeds) Limited,No
Http://opendatacommunities.org/id/metropolitan-district-council/leeds,Leeds City Council,30/06/2016,Strategic Landlord,Property and Contracts,Premises,General Maintenance,104,24-Jun-2016,1606-00214,0.00,37.65,R,Access Locksmiths (Leeds) Limited,No
Http://opendatacommunities.org/id/metropolitan-district-council/leeds,Leeds City Council,30/06/2016,Strategic Landlord,Property and Contracts,Premises,General Maintenance,104,24-Jun-2016,1606-00215,0.00,121.91,R,Access Locksmiths (Leeds) Limited,No
Http://opendatacommunities.org/id/metropolitan-district-council/leeds,Leeds City Council,30/06/2016,Strategic Landlord,Property and Contracts,Premises,General Maintenance,104,24-Jun-2016,1606-00216,0.00,30.00,R,Access Locksmiths (Leeds) Limited,No
Http://opendatacommunities.org/id/metropolitan-district-council/leeds,Leeds City Council,30/06/2016,Environment & Housing,Leeds Building Services,Supplies and Services,Operational Materials,205,24-Jun-2016,1606-00217,0.00,25.58,R,Access Locksmiths (Leeds) Limited,No
Http://opendatacommunities.org/id/metropolitan-district-council/leeds,Leeds City Council,30/06/2016,Environment & Housing,Leeds Building Services,Supplies and Services,Operational Materials,205,24-Jun-2016,1606-00218,0.00,7.73,R,Access Locksmiths (Leeds) Limited,No
Http://opendatacommunities.org/id/metropolitan-district-council/leeds,Leeds City Council,30/06/2016,Environment & Housing,Leeds Building Services,Supplies and Services,Operational Materials,205,24-Jun-2016,1606-00219,0.00,5.28,R,Access Locksmiths (Leeds) Limited,No
Http://opendatacommunities.org/id/metropolitan-district-council/leeds,Leeds City Council,30/06/2016,Civic Enterprise Leeds,Commercial Services,Supplies and Services,Operational Materials,205,24-Jun-2016,1606-00220,0.00,10.61,R,Access Locksmiths (Leeds) Limited,No
Http://opendatacommunities.org/id/metropolitan-district-council/leeds,Leeds City Council,30/06/2016,Strategic Landlord,Housing Management,Premises,General Maintenance,104,24-Jun-2016,1606-00221,0.00,622.20,R,Access Locksmiths (Leeds) Limited,No
Http://opendatacommunities.org/id/metropolitan-district-council/leeds,Leeds City Council,30/06/2016,Strategic Landlord,Housing Management,Premises,General Maintenance,104,24-Jun-2016,1606-00222,0.00,259.25,R,Access Locksmiths (Leeds) Limited,No
Http://opendatacommunities.org/id/metropolitan-district-council/leeds,Leeds City Council,30/06/2016,Strategic Landlord,Housing Management,Premises,General Maintenance,104,24-Jun-2016,1606-00223,0.00,207.40,R,Access Locksmiths (Leeds) Limited,No
Http://opendatacommunities.org/id/metropolitan-district-council/leeds,Leeds City Council,30/06/2016,City Development,Libraries  Arts & Heritage,Supplies and Services,Bought In Professional Services,277,14-Jun-2016,1606-00224,0.00,741.67,R,Access Moving Image Ltd,No
Http://opendatacommunities.org/id/metropolitan-district-council/leeds,Leeds City Council,30/06/2016,Environment & Housing,Leeds Building Services,Supplies and Services,Operational Materials,205,02-Jun-2016,1606-00225,0.00,25.00,R,Access Opening Systems Limited,No
Http://opendatacommunities.org/id/metropolitan-district-council/leeds,Leeds City Council,30/06/2016,Environment & Housing,Leeds Building Services,Supplies and Services,Other Hired And Contracted Services,265,03-Jun-2016,1606-00226,0.00,85.00,R,Access Opening Systems Limited,No
Http://opendatacommunities.org/id/metropolitan-district-council/leeds,Leeds City Council,30/06/2016,Environment & Housing,Leeds Building Services,Supplies and Services,Other Hired And Contracted Services,265,03-Jun-2016,1606-00227,0.00,495.56,R,Access Opening Systems Limited,No
Http://opendatacommunities.org/id/metropolitan-district-council/leeds,Leeds City Council,30/06/2016,Environment & Housing,Leeds Building Services,Supplies and Services,Other Hired And Contracted Services,265,03-Jun-2016,1606-00228,0.00,85.00,R,Access Opening Systems Limited,No
Http://opendatacommunities.org/id/metropolitan-district-council/leeds,Leeds City Council,30/06/2016,Environment & Housing,Leeds Building Services,Supplies and Services,Other Hired And Contracted Services,265,03-Jun-2016,1606-00229,0.00,981.23,R,Access Opening Systems Limited,No
Http://opendatacommunities.org/id/metropolitan-district-council/leeds,Leeds City Council,30/06/2016,Environment & Housing,Leeds Building Services,Supplies and Services,Other Hired And Contracted Services,265,03-Jun-2016,1606-00230,0.00,85.00,R,Access Opening Systems Limited,No
Http://opendatacommunities.org/id/metropolitan-district-council/leeds,Leeds City Council,30/06/2016,Environment & Housing,Leeds Building Services,Supplies and Services,Operational Materials,205,03-Jun-2016,1606-00231,0.00,205.00,R,Access Opening Systems Limited,No
Http://opendatacommunities.org/id/metropolitan-district-council/leeds,Leeds City Council,30/06/2016,Environment & Housing,Leeds Building Services,Supplies and Services,Other Hired And Contracted Services,265,03-Jun-2016,1606-00232,0.00,623.14,R,Access Opening Systems Limited,No
Http://opendatacommunities.org/id/metropolitan-district-council/leeds,Leeds City Council,30/06/2016,Environment & Housing,Leeds Building Services,Supplies and Services,Other Hired And Contracted Services,265,08-Jun-2016,1606-00233,0.00,242.00,R,Access Opening Systems Limited,No
Http://opendatacommunities.org/id/metropolitan-district-council/leeds,Leeds City Council,30/06/2016,Adult Social Care,Other Generic Services,Supplies and Services,Operational Furniture And Equipment,203,08-Jun-2016,1606-00234,0.00,1923.24,R,Access Opening Systems Limited,No
Http://opendatacommunities.org/id/metropolitan-district-council/leeds,Leeds City Council,30/06/2016,Environment & Housing,Leeds Building Services,Supplies and Services,Other Hired And Contracted Services,265,08-Jun-2016,1606-00235,0.00,85.00,R,Access Opening Systems Limited,No
Http://opendatacommunities.org/id/metropolitan-district-council/leeds,Leeds City Council,30/06/2016,Environment & Housing,Leeds Building Services,Supplies and Services,Other Hired And Contracted Services,265,08-Jun-2016,1606-00236,0.00,432.12,R,Access Opening Systems Limited,No
Http://opendatacommunities.org/id/metropolitan-district-council/leeds,Leeds City Council,30/06/2016,Environment & Housing,Leeds Building Services,Supplies and Services,Other Hired And Contracted Services,265,10-Jun-2016,1606-00237,0.00,512.00,R,Access Opening Systems Limited,No
Http://opendatacommunities.org/id/metropolitan-district-council/leeds,Leeds City Council,30/06/2016,Environment & Housing,Leeds Building Services,Supplies and Services,Other Hired And Contracted Services,265,10-Jun-2016,1606-00238,0.00,2150.33,R,Access Opening Systems Limited,No
Http://opendatacommunities.org/id/metropolitan-district-council/leeds,Leeds City Council,30/06/2016,Environment & Housing,Leeds Building Services,Supplies and Services,Other Hired And Contracted Services,265,10-Jun-2016,1606-00239,0.00,166.75,R,Access Opening Systems Limited,No
Http://opendatacommunities.org/id/metropolitan-district-council/leeds,Leeds City Council,30/06/2016,Environment & Housing,Leeds Building Services,Supplies and Services,Other Hired And Contracted Services,265,10-Jun-2016,1606-00240,0.00,85.00,R,Access Opening Systems Limited,No
Http://opendatacommunities.org/id/metropolitan-district-council/leeds,Leeds City Council,30/06/2016,Environment & Housing,Leeds Building Services,Supplies and Services,Other Hired And Contracted Services,265,10-Jun-2016,1606-00241,0.00,85.00,R,Access Opening Systems Limited,No
Http://opendatacommunities.org/id/metropolitan-district-council/leeds,Leeds City Council,30/06/2016,Environment & Housing,Leeds Building Services,Supplies and Services,Other Hired And Contracted Services,265,10-Jun-2016,1606-00242,0.00,85.00,R,Access Opening Systems Limited,No
Http://opendatacommunities.org/id/metropolitan-district-council/leeds,Leeds City Council,30/06/2016,Environment & Housing,Leeds Building Services,Supplies and Services,Other Hired And Contracted Services,265,10-Jun-2016,1606-00243,0.00,85.00,R,Access Opening Systems Limited,No
Http://opendatacommunities.org/id/metropolitan-district-council/leeds,Leeds City Council,30/06/2016,Environment & Housing,Leeds Building Services,Supplies and Services,Other Hired And Contracted Services,265,10-Jun-2016,1606-00244,0.00,298.60,R,Access Opening Systems Limited,No
Http://opendatacommunities.org/id/metropolitan-district-council/leeds,Leeds City Council,30/06/2016,Environment & Housing,Leeds Building Services,Supplies and Services,Other Hired And Contracted Services,265,10-Jun-2016,1606-00245,0.00,86.20,R,Access Opening Systems Limited,No
Http://opendatacommunities.org/id/metropolitan-district-council/leeds,Leeds City Council,30/06/2016,Environment & Housing,Leeds Building Services,Supplies and Services,Operational Materials,205,10-Jun-2016,1606-00246,0.00,162.00,R,Access Opening Systems Limited,No
Http://opendatacommunities.org/id/metropolitan-district-council/leeds,Leeds City Council,30/06/2016,Environment & Housing,Leeds Building Services,Supplies and Services,Operational Materials,205,15-Jun-2016,1606-00247,0.00,50.00,R,Access Opening Systems Limited,No
Http://opendatacommunities.org/id/metropolitan-district-council/leeds,Leeds City Council,30/06/2016,Environment & Housing,Leeds Building Services,Supplies and Services,Operational Materials,205,15-Jun-2016,1606-00248,0.00,38.50,R,Access Opening Systems Limited,No
Http://opendatacommunities.org/id/metropolitan-district-council/leeds,Leeds City Council,30/06/2016,Environment & Housing,Leeds Building Services,Supplies and Services,Operational Materials,205,17-Jun-2016,1606-00249,0.00,135.00,R,Access Opening Systems Limited,No
Http://opendatacommunities.org/id/metropolitan-district-council/leeds,Leeds City Council,30/06/2016,Environment & Housing,Leeds Building Services,Supplies and Services,Other Hired And Contracted Services,265,21-Jun-2016,1606-00250,0.00,25.00,R,Access Opening Systems Limited,No
Http://opendatacommunities.org/id/metropolitan-district-council/leeds,Leeds City Council,30/06/2016,Environment & Housing,Leeds Building Services,Supplies and Services,Other Hired And Contracted Services,265,21-Jun-2016,1606-00251,0.00,205.00,R,Access Opening Systems Limited,No
Http://opendatacommunities.org/id/metropolitan-district-council/leeds,Leeds City Council,30/06/2016,Environment & Housing,Leeds Building Services,Supplies and Services,Other Hired And Contracted Services,265,21-Jun-2016,1606-00252,0.00,388.56,R,Access Opening Systems Limited,No
Http://opendatacommunities.org/id/metropolitan-district-council/leeds,Leeds City Council,30/06/2016,Environment & Housing,Leeds Building Services,Supplies and Services,Other Hired And Contracted Services,265,23-Jun-2016,1606-00253,0.00,91.25,R,Access Opening Systems Limited,No
Http://opendatacommunities.org/id/metropolitan-district-council/leeds,Leeds City Council,30/06/2016,Environment & Housing,Leeds Building Services,Supplies and Services,Other Hired And Contracted Services,265,23-Jun-2016,1606-00254,0.00,97.50,R,Access Opening Systems Limited,No
Http://opendatacommunities.org/id/metropolitan-district-council/leeds,Leeds City Council,30/06/2016,Environment & Housing,Leeds Building Services,Supplies and Services,Other Hired And Contracted Services,265,23-Jun-2016,1606-00255,0.00,391.25,R,Access Opening Systems Limited,No
Http://opendatacommunities.org/id/metropolitan-district-council/leeds,Leeds City Council,30/06/2016,Environment & Housing,Leeds Building Services,Supplies and Services,Other Hired And Contracted Services,265,23-Jun-2016,1606-00256,0.00,230.00,R,Access Opening Systems Limited,No
Http://opendatacommunities.org/id/metropolitan-district-council/leeds,Leeds City Council,30/06/2016,Environment & Housing,Leeds Building Services,Supplies and Services,Other Hired And Contracted Services,265,23-Jun-2016,1606-00257,0.00,85.00,R,Access Opening Systems Limited,No
Http://opendatacommunities.org/id/metropolitan-district-council/leeds,Leeds City Council,30/06/2016,Environment & Housing,Leeds Building Services,Supplies and Services,Other Hired And Contracted Services,265,23-Jun-2016,1606-00258,0.00,97.50,R,Access Opening Systems Limited,No
Http://opendatacommunities.org/id/metropolitan-district-council/leeds,Leeds City Council,30/06/2016,Environment & Housing,Leeds Building Services,Supplies and Services,Other Hired And Contracted Services,265,23-Jun-2016,1606-00259,0.00,110.00,R,Access Opening Systems Limited,No
Http://opendatacommunities.org/id/metropolitan-district-council/leeds,Leeds City Council,30/06/2016,Environment & Housing,Leeds Building Services,Supplies and Services,Other Hired And Contracted Services,265,23-Jun-2016,1606-00260,0.00,85.00,R,Access Opening Systems Limited,No
Http://opendatacommunities.org/id/metropolitan-district-council/leeds,Leeds City Council,30/06/2016,Environment & Housing,Leeds Building Services,Supplies and Services,Other Hired And Contracted Services,265,23-Jun-2016,1606-00261,0.00,852.50,R,Access Opening Systems Limited,No
Http://opendatacommunities.org/id/metropolitan-district-council/leeds,Leeds City Council,30/06/2016,Environment & Housing,Leeds Building Services,Supplies and Services,Other Hired And Contracted Services,265,23-Jun-2016,1606-00262,0.00,645.00,R,Access Opening Systems Limited,No
Http://opendatacommunities.org/id/metropolitan-district-council/leeds,Leeds City Council,30/06/2016,Environment & Housing,Leeds Building Services,Supplies and Services,Other Hired And Contracted Services,265,23-Jun-2016,1606-00263,0.00,380.50,R,Access Opening Systems Limited,No
Http://opendatacommunities.org/id/metropolitan-district-council/leeds,Leeds City Council,30/06/2016,Environment & Housing,Leeds Building Services,Supplies and Services,Other Hired And Contracted Services,265,23-Jun-2016,1606-00264,0.00,170.00,R,Access Opening Systems Limited,No
Http://opendatacommunities.org/id/metropolitan-district-council/leeds,Leeds City Council,30/06/2016,Environment & Housing,Leeds Building Services,Supplies and Services,Other Hired And Contracted Services,265,23-Jun-2016,1606-00265,0.00,85.00,R,Access Opening Systems Limited,No
Http://opendatacommunities.org/id/metropolitan-district-council/leeds,Leeds City Council,30/06/2016,Environment & Housing,Leeds Building Services,Supplies and Services,Other Hired And Contracted Services,265,23-Jun-2016,1606-00266,0.00,85.00,R,Access Opening Systems Limited,No
Http://opendatacommunities.org/id/metropolitan-district-council/leeds,Leeds City Council,30/06/2016,Environment & Housing,Leeds Building Services,Supplies and Services,Other Hired And Contracted Services,265,23-Jun-2016,1606-00267,0.00,85.00,R,Access Opening Systems Limited,No
Http://opendatacommunities.org/id/metropolitan-district-council/leeds,Leeds City Council,30/06/2016,Environment & Housing,Leeds Building Services,Supplies and Services,Other Hired And Contracted Services,265,23-Jun-2016,1606-00268,0.00,85.00,R,Access Opening Systems Limited,No
Http://opendatacommunities.org/id/metropolitan-district-council/leeds,Leeds City Council,30/06/2016,Environment & Housing,Leeds Building Services,Supplies and Services,Operational Materials,205,24-Jun-2016,1606-00269,0.00,45.00,R,Access Opening Systems Limited,No
Http://opendatacommunities.org/id/metropolitan-district-council/leeds,Leeds City Council,30/06/2016,Environment & Housing,Leeds Building Services,Supplies and Services,Operational Materials,205,29-Jun-2016,1606-00270,0.00,85.00,R,Access Opening Systems Limited,No
Http://opendatacommunities.org/id/metropolitan-district-council/leeds,Leeds City Council,30/06/2016,Insurance,Insurance,Supplies and Services,Insurance Claims,248,24-Jun-2016,1606-00271,0.00,1000.00,R,Accident Advice Solicitors,No
Http://opendatacommunities.org/id/metropolitan-district-council/leeds,Leeds City Council,30/06/2016,Insurance,Insurance,Supplies and Services,Insurance Claims,248,16-Jun-2016,1606-00272,0.00,6780.33,R,Accountant General Of The Senior Courts,No
Http://opendatacommunities.org/id/metropolitan-district-council/leeds,Leeds City Council,30/06/2016,Insurance,Insurance,Supplies and Services,Insurance Claims,248,16-Jun-2016,1606-00273,0.00,3900.00,R,Accountant General Of The Senior Courts,No
Http://opendatacommunities.org/id/metropolitan-district-council/leeds,Leeds City Council,30/06/2016,Insurance,Insurance,Supplies and Services,Insurance Claims,248,30-Jun-2016,1606-00274,0.00,720.00,R,Accountant General Of The Senior Courts,No
Http://opendatacommunities.org/id/metropolitan-district-council/leeds,Leeds City Council,30/06/2016,City Development,Recreation,Supplies and Services,Other Hired And Contracted Services,265,02-Jun-2016,1606-00275,0.00,139.50,R,Ace Container Services Limited,No
Http://opendatacommunities.org/id/metropolitan-district-council/leeds,Leeds City Council,30/06/2016,City Development,Recreation,Transport,External Hire -Occasional,304,30-Jun-2016,1606-00276,0.00,124.50,R,Ace Container Services Limited,No
Http://opendatacommunities.org/id/metropolitan-district-council/leeds,Leeds City Council,30/06/2016,City Development,Libraries  Arts & Heritage,Transport,Hire Of Movable Plant & Machinery,315,30-Jun-2016,1606-00277,0.00,45.00,R,Ace Container Services Limited,No
Http://opendatacommunities.org/id/metropolitan-district-council/leeds,Leeds City Council,30/06/2016,Environment & Housing,Parks and Countryside,Supplies and Services,Operational Materials,205,30-Jun-2016,1606-00278,0.00,3898.80,R,Ace Engineers (Morley) Ltd,No
Http://opendatacommunities.org/id/metropolitan-district-council/leeds,Leeds City Council,30/06/2016,Civic Enterprise Leeds,Commercial Services,Supplies and Services,Crockery  Cutlery & Utensils,221,15-Jun-2016,1606-00279,0.00,1313.00,R,Acme Facilities Group Ltd,No
Http://opendatacommunities.org/id/metropolitan-district-council/leeds,Leeds City Council,30/06/2016,Civic Enterprise Leeds,Commercial Services,Supplies and Services,Operational Furniture And Equipment,203,17-Jun-2016,1606-00280,0.00,1577.00,R,Acme Facilities Group Ltd,No
Http://opendatacommunities.org/id/metropolitan-district-council/leeds,Leeds City Council,30/06/2016,Civic Enterprise Leeds,Commercial Services,Supplies and Services,Operational Furniture And Equipment,203,17-Jun-2016,1606-00281,0.00,1373.00,R,Acme Facilities Group Ltd,No
Http://opendatacommunities.org/id/metropolitan-district-council/leeds,Leeds City Council,30/06/2016,Civic Enterprise Leeds,Commercial Services,Supplies and Services,Operational Furniture And Equipment,203,17-Jun-2016,1606-00282,0.00,1075.00,R,Acme Facilities Group Ltd,No
Http://opendatacommunities.org/id/metropolitan-district-council/leeds,Leeds City Council,30/06/2016,Civic Enterprise Leeds,Commercial Services,Supplies and Services,Operational Furniture And Equipment,203,17-Jun-2016,1606-00283,0.00,1892.00,R,Acme Facilities Group Ltd,No
Http://opendatacommunities.org/id/metropolitan-district-council/leeds,Leeds City Council,30/06/2016,Civic Enterprise Leeds,Commercial Services,Supplies and Services,Operational Furniture And Equipment,203,23-Jun-2016,1606-00284,0.00,117.50,R,Acme Facilities Group Ltd,No
Http://opendatacommunities.org/id/metropolitan-district-council/leeds,Leeds City Council,30/06/2016,Environment & Housing,Waste Management,Supplies and Services,Other Hired And Contracted Services,265,24-Jun-2016,1606-00285,0.00,200.00,R,Acorn Analytical Services Limited,No
Http://opendatacommunities.org/id/metropolitan-district-council/leeds,Leeds City Council,30/06/2016,Childrens Services,Safeguarding Targeted & Specialist,Third Party Payments,SEN Placements,566,02-Jun-2016,1606-00286,0.00,1948.78,R,Acorn Care And Education Ltd,No
Http://opendatacommunities.org/id/metropolitan-district-council/leeds,Leeds City Council,30/06/2016,Childrens Services,Safeguarding Targeted & Specialist,Third Party Payments,SEN Placements,566,02-Jun-2016,1606-00287,0.00,1948.78,R,Acorn Care And Education Ltd,No
Http://opendatacommunities.org/id/metropolitan-district-council/leeds,Leeds City Council,30/06/2016,Childrens Services,Safeguarding Targeted & Specialist,Third Party Payments,SEN Placements,566,03-Jun-2016,1606-00288,0.00,18138.67,R,Acorn Care And Education Ltd,No
Http://opendatacommunities.org/id/metropolitan-district-council/leeds,Leeds City Council,30/06/2016,Childrens Services,Safeguarding Targeted & Specialist,Third Party Payments,SEN Placements,566,03-Jun-2016,1606-00289,0.00,18138.67,R,Acorn Care And Education Ltd,No
Http://opendatacommunities.org/id/metropolitan-district-council/leeds,Leeds City Council,30/06/2016,City Development,Libraries  Arts & Heritage,Supplies and Services,Other Hired And Contracted Services,265,02-Jun-2016,1606-00290,0.00,2050.00,R,Acorn Event Solutions Ltd,No
Http://opendatacommunities.org/id/metropolitan-district-council/leeds,Leeds City Council,30/06/2016,Childrens Services,Safeguarding Targeted & Specialist,Third Party Payments,Independent Fostering Agencies,509,21-Jun-2016,1606-00291,0.00,4597.86,R,Acorn Fostering Services,No
Http://opendatacommunities.org/id/metropolitan-district-council/leeds,Leeds City Council,30/06/2016,Childrens Services,Safeguarding Targeted & Specialist,Third Party Payments,Independent Fostering Agencies,509,21-Jun-2016,1606-00292,0.00,3121.86,R,Acorn Fostering Services,No
Http://opendatacommunities.org/id/metropolitan-district-council/leeds,Leeds City Council,30/06/2016,Childrens Services,Safeguarding Targeted & Specialist,Third Party Payments,Independent Fostering Agencies,509,22-Jun-2016,1606-00293,0.00,5181.34,R,Acorn House (Fostering Services) Ltd,No
Http://opendatacommunities.org/id/metropolitan-district-council/leeds,Leeds City Council,30/06/2016,Childrens Services,Safeguarding Targeted & Specialist,Third Party Payments,Independent Fostering Agencies,509,29-Jun-2016,1606-00294,0.00,1906.43,R,Acorn House (Fostering Services) Ltd,No
Http://opendatacommunities.org/id/metropolitan-district-council/leeds,Leeds City Council,30/06/2016,City Development,Libraries  Arts & Heritage,Supplies and Services,Other Hired And Contracted Services,265,13-Jun-2016,1606-00295,0.00,8000.00,R,Acorn Scaffolding (Yorkshire) Ltd,No
Http://opendatacommunities.org/id/metropolitan-district-council/leeds,Leeds City Council,30/06/2016,City Development,Libraries  Arts & Heritage,Supplies and Services,Other Hired And Contracted Services,265,17-Jun-2016,1606-00296,0.00,1085.00,R,Acorn Scaffolding (Yorkshire) Ltd,No
Http://opendatacommunities.org/id/metropolitan-district-council/leeds,Leeds City Council,30/06/2016,Adult Social Care,Other Adult Services,Third Party Payments,Residential - Drugs & Alcohol,583,01-Jun-2016,1606-00297,0.00,2357.14,R,Acorn Treatment & Housing,No
Http://opendatacommunities.org/id/metropolitan-district-council/leeds,Leeds City Council,30/06/2016,Adult Social Care,Other Adult Services,Third Party Payments,Residential - Drugs & Alcohol,583,01-Jun-2016,1606-00298,0.00,2357.14,R,Acorn Treatment & Housing,No
Http://opendatacommunities.org/id/metropolitan-district-council/leeds,Leeds City Council,30/06/2016,Adult Social Care,Other Adult Services,Third Party Payments,Residential - Drugs & Alcohol,583,01-Jun-2016,1606-00299,0.00,2357.14,R,Acorn Treatment & Housing,No
Http://opendatacommunities.org/id/metropolitan-district-council/leeds,Leeds City Council,30/06/2016,Adult Social Care,Other Adult Services,Third Party Payments,Residential - Drugs & Alcohol,583,01-Jun-2016,1606-00300,0.00,157.14,R,Acorn Treatment & Housing,No
Http://opendatacommunities.org/id/metropolitan-district-council/leeds,Leeds City Council,30/06/2016,Childrens Services,Learning Skills & Universal,Third Party Payments,Services Rendered By Other Organisations,511,03-Jun-2016,1606-00301,0.00,280.00,R,Acorns Nursery,No
Http://opendatacommunities.org/id/metropolitan-district-council/leeds,Leeds City Council,30/06/2016,Adult Social Care,Services For Older People - 65 And Over,Third Party Payments,Nursing Home,570,29-Jun-2016,1606-00302,0.00,14162.52,R,Acre Green,No
Http://opendatacommunities.org/id/metropolitan-district-council/leeds,Leeds City Council,30/06/2016,Adult Social Care,Services For Older People Under 65 P/Dis,Third Party Payments,Nursing Home,570,29-Jun-2016,1606-00303,0.00,5159.84,R,Acre Green,No
Http://opendatacommunities.org/id/metropolitan-district-council/leeds,Leeds City Council,30/06/2016,Adult Social Care,Services For Older People Under 65 P/Dis,Third Party Payments,Nursing Care Dementia,574,29-Jun-2016,1606-00304,0.00,1122.48,R,Acre Green,No
Http://opendatacommunities.org/id/metropolitan-district-council/leeds,Leeds City Council,30/06/2016,Adult Social Care,Services For Adults Under 65 Mental/Dis,Third Party Payments,Residential,580,29-Jun-2016,1606-00305,0.00,1459.20,R,Acre Green,No
Http://opendatacommunities.org/id/metropolitan-district-council/leeds,Leeds City Council,30/06/2016,Adult Social Care,Services For Older People - 65 And Over,Third Party Payments,Residential,580,29-Jun-2016,1606-00306,0.00,13670.55,R,Acre Green,No
Http://opendatacommunities.org/id/metropolitan-district-council/leeds,Leeds City Council,30/06/2016,Adult Social Care,Services For Older People Under 65 P/Dis,Third Party Payments,Residential,580,29-Jun-2016,1606-00307,0.00,1823.36,R,Acre Green,No
Http://opendatacommunities.org/id/metropolitan-district-council/leeds,Leeds City Council,30/06/2016,Childrens Services,Learning Skills & Universal,Third Party Payments,Services Rendered By Other Organisations,511,03-Jun-2016,1606-00308,0.00,1284.00,R,Acre Wood Day Nursery,No
Http://opendatacommunities.org/id/metropolitan-district-council/leeds,Leeds City Council,30/06/2016,Environment & Housing,SP Contracts & SECC,Support Services,Systems Support ICT,834,29-Jun-2016,1606-00309,0.00,275.00,R,Act Systems,No
Http://opendatacommunities.org/id/metropolitan-district-council/leeds,Leeds City Council,30/06/2016,Environment & Housing,Leeds Building Services,Supplies and Services,Operational Materials,205,24-Jun-2016,1606-00310,0.00,32.30,R,Actavo Uk Limited,No
Http://opendatacommunities.org/id/metropolitan-district-council/leeds,Leeds City Council,30/06/2016,Adult Social Care,Services For Adults Under 65 Mental/Dis,Third Party Payments,Fees - Level 4,520,03-Jun-2016,1606-00311,0.00,350.00,R,Action First Recruitment Ltd,No
Http://opendatacommunities.org/id/metropolitan-district-council/leeds,Leeds City Council,30/06/2016,Adult Social Care,Services For Adults Under 65 Mental/Dis,Third Party Payments,Fees - Level 4,520,03-Jun-2016,1606-00312,0.00,1750.00,R,Action First Recruitment Ltd,No
Http://opendatacommunities.org/id/metropolitan-district-council/leeds,Leeds City Council,30/06/2016,Adult Social Care,Services For Adults Under 65 Mental/Dis,Third Party Payments,Fees - Level 4,520,03-Jun-2016,1606-00313,0.00,350.00,R,Action First Recruitment Ltd,No
Http://opendatacommunities.org/id/metropolitan-district-council/leeds,Leeds City Council,30/06/2016,Adult Social Care,Services For Adults Under 65 Mental/Dis,Third Party Payments,Fees - Level 4,520,03-Jun-2016,1606-00314,0.00,350.00,R,Action First Recruitment Ltd,No
Http://opendatacommunities.org/id/metropolitan-district-council/leeds,Leeds City Council,30/06/2016,Adult Social Care,Services For Adults Under 65 Mental/Dis,Third Party Payments,Fees - Level 4,520,03-Jun-2016,1606-00315,0.00,1750.00,R,Action First Recruitment Ltd,No
Http://opendatacommunities.org/id/metropolitan-district-council/leeds,Leeds City Council,30/06/2016,Adult Social Care,Services For Adults Under 65 Mental/Dis,Third Party Payments,Fees - Level 4,520,03-Jun-2016,1606-00316,0.00,1750.00,R,Action First Recruitment Ltd,No
Http://opendatacommunities.org/id/metropolitan-district-council/leeds,Leeds City Council,30/06/2016,Adult Social Care,Services For Adults Under 65 Mental/Dis,Third Party Payments,Fees - Level 4,520,03-Jun-2016,1606-00317,0.00,1400.00,R,Action First Recruitment Ltd,No
Http://opendatacommunities.org/id/metropolitan-district-council/leeds,Leeds City Council,30/06/2016,Adult Social Care,Services For Adults Under 65 Mental/Dis,Third Party Payments,Fees - Level 4,520,03-Jun-2016,1606-00318,0.00,700.00,R,Action First Recruitment Ltd,No
Http://opendatacommunities.org/id/metropolitan-district-council/leeds,Leeds City Council,30/06/2016,Adult Social Care,Services For Adults Under 65 Mental/Dis,Third Party Payments,Fees - Level 4,520,03-Jun-2016,1606-00319,0.00,1750.00,R,Action First Recruitment Ltd,No
Http://opendatacommunities.org/id/metropolitan-district-council/leeds,Leeds City Council,30/06/2016,Adult Social Care,Services For Adults Under 65 Mental/Dis,Third Party Payments,Fees - Level 4,520,10-Jun-2016,1606-00320,0.00,750.00,R,Action First Recruitment Ltd,No
Http://opendatacommunities.org/id/metropolitan-district-council/leeds,Leeds City Council,30/06/2016,Adult Social Care,Services For Adults Under 65 Mental/Dis,Third Party Payments,Fees - Level 4,520,10-Jun-2016,1606-00321,0.00,250.00,R,Action First Recruitment Ltd,No
Http://opendatacommunities.org/id/metropolitan-district-council/leeds,Leeds City Council,30/06/2016,Adult Social Care,Services For Adults Under 65 Mental/Dis,Third Party Payments,Fees - Level 4,520,10-Jun-2016,1606-00322,0.00,700.00,R,Action First Recruitment Ltd,No
Http://opendatacommunities.org/id/metropolitan-district-council/leeds,Leeds City Council,30/06/2016,Adult Social Care,Services For Adults Under 65 Mental/Dis,Third Party Payments,Fees - Level 4,520,10-Jun-2016,1606-00323,0.00,700.00,R,Action First Recruitment Ltd,No
Http://opendatacommunities.org/id/metropolitan-district-council/leeds,Leeds City Council,30/06/2016,Adult Social Care,Services For Adults Under 65 Mental/Dis,Third Party Payments,Fees - Level 4,520,10-Jun-2016,1606-00324,0.00,700.00,R,Action First Recruitment Ltd,No
Http://opendatacommunities.org/id/metropolitan-district-council/leeds,Leeds City Council,30/06/2016,Adult Social Care,Services For Adults Under 65 Mental/Dis,Third Party Payments,Fees - Level 4,520,10-Jun-2016,1606-00325,0.00,2800.00,R,Action First Recruitment Ltd,No
Http://opendatacommunities.org/id/metropolitan-district-council/leeds,Leeds City Council,30/06/2016,Adult Social Care,Services For Adults Under 65 Mental/Dis,Third Party Payments,Fees - Level 4,520,10-Jun-2016,1606-00326,0.00,1050.00,R,Action First Recruitment Ltd,No
Http://opendatacommunities.org/id/metropolitan-district-council/leeds,Leeds City Council,30/06/2016,Adult Social Care,Services For Adults Under 65 Mental/Dis,Third Party Payments,Fees - Level 4,520,10-Jun-2016,1606-00327,0.00,350.00,R,Action First Recruitment Ltd,No
Http://opendatacommunities.org/id/metropolitan-district-council/leeds,Leeds City Council,30/06/2016,Adult Social Care,Services For Adults Under 65 Mental/Dis,Third Party Payments,Fees - Level 4,520,17-Jun-2016,1606-00328,0.00,1750.00,R,Action First Recruitment Ltd,No
Http://opendatacommunities.org/id/metropolitan-district-council/leeds,Leeds City Council,30/06/2016,Adult Social Care,Services For Adults Under 65 Mental/Dis,Third Party Payments,Fees - Level 4,520,17-Jun-2016,1606-00329,0.00,350.00,R,Action First Recruitment Ltd,No
Http://opendatacommunities.org/id/metropolitan-district-council/leeds,Leeds City Council,30/06/2016,Adult Social Care,Services For Adults Under 65 Mental/Dis,Third Party Payments,Fees - Level 4,520,17-Jun-2016,1606-00330,0.00,2450.00,R,Action First Recruitment Ltd,No
Http://opendatacommunities.org/id/metropolitan-district-council/leeds,Leeds City Council,30/06/2016,Adult Social Care,Services For Adults Under 65 Mental/Dis,Third Party Payments,Fees - Level 4,520,17-Jun-2016,1606-00331,0.00,350.00,R,Action First Recruitment Ltd,No
Http://opendatacommunities.org/id/metropolitan-district-council/leeds,Leeds City Council,30/06/2016,Adult Social Care,Services For Adults Under 65 Mental/Dis,Third Party Payments,Fees - Level 4,520,17-Jun-2016,1606-00332,0.00,350.00,R,Action First Recruitment Ltd,No
Http://opendatacommunities.org/id/metropolitan-district-council/leeds,Leeds City Council,30/06/2016,Adult Social Care,Services For Adults Under 65 Mental/Dis,Third Party Payments,Fees - Level 4,520,17-Jun-2016,1606-00333,0.00,1050.00,R,Action First Recruitment Ltd,No
Http://opendatacommunities.org/id/metropolitan-district-council/leeds,Leeds City Council,30/06/2016,Adult Social Care,Services For Adults Under 65 Mental/Dis,Third Party Payments,Fees - Level 4,520,17-Jun-2016,1606-00334,0.00,350.00,R,Action First Recruitment Ltd,No
Http://opendatacommunities.org/id/metropolitan-district-council/leeds,Leeds City Council,30/06/2016,Adult Social Care,Services For Adults Under 65 Mental/Dis,Third Party Payments,Fees - Level 4,520,17-Jun-2016,1606-00335,0.00,700.00,R,Action First Recruitment Ltd,No
Http://opendatacommunities.org/id/metropolitan-district-council/leeds,Leeds City Council,30/06/2016,Adult Social Care,Services For Adults Under 65 Mental/Dis,Third Party Payments,Fees - Level 4,520,23-Jun-2016,1606-00336,0.00,500.00,R,Action First Recruitment Ltd,No
Http://opendatacommunities.org/id/metropolitan-district-council/leeds,Leeds City Council,30/06/2016,Adult Social Care,Services For Adults Under 65 Mental/Dis,Third Party Payments,Fees - Level 4,520,23-Jun-2016,1606-00337,0.00,250.00,R,Action First Recruitment Ltd,No
Http://opendatacommunities.org/id/metropolitan-district-council/leeds,Leeds City Council,30/06/2016,Adult Social Care,Services For Adults Under 65 Mental/Dis,Third Party Payments,Fees - Level 4,520,24-Jun-2016,1606-00338,0.00,1400.00,R,Action First Recruitment Ltd,No
Http://opendatacommunities.org/id/metropolitan-district-council/leeds,Leeds City Council,30/06/2016,Adult Social Care,Services For Adults Under 65 Mental/Dis,Third Party Payments,Fees - Level 4,520,24-Jun-2016,1606-00339,0.00,1750.00,R,Action First Recruitment Ltd,No
Http://opendatacommunities.org/id/metropolitan-district-council/leeds,Leeds City Council,30/06/2016,Adult Social Care,Services For Adults Under 65 Mental/Dis,Third Party Payments,Fees - Level 4,520,24-Jun-2016,1606-00340,0.00,350.00,R,Action First Recruitment Ltd,No
Http://opendatacommunities.org/id/metropolitan-district-council/leeds,Leeds City Council,30/06/2016,Adult Social Care,Services For Adults Under 65 Mental/Dis,Third Party Payments,Fees - Level 4,520,24-Jun-2016,1606-00341,0.00,1750.00,R,Action First Recruitment Ltd,No
Http://opendatacommunities.org/id/metropolitan-district-council/leeds,Leeds City Council,30/06/2016,Adult Social Care,Services For Adults Under 65 Mental/Dis,Third Party Payments,Fees - Level 4,520,24-Jun-2016,1606-00342,0.00,500.00,R,Action First Recruitment Ltd,No
Http://opendatacommunities.org/id/metropolitan-district-council/leeds,Leeds City Council,30/06/2016,Adult Social Care,Services For Adults Under 65 Mental/Dis,Third Party Payments,Fees - Level 4,520,24-Jun-2016,1606-00343,0.00,250.00,R,Action First Recruitment Ltd,No
Http://opendatacommunities.org/id/metropolitan-district-council/leeds,Leeds City Council,30/06/2016,Adult Social Care,Services For Older People Under 65 P/Dis,Third Party Payments,Payments To Voluntary Organisations,561,03-Jun-2016,1606-00344,0.00,57465.46,R,Action For Blind People,No
Http://opendatacommunities.org/id/metropolitan-district-council/leeds,Leeds City Council,30/06/2016,Childrens Services,Safeguarding Targeted & Specialist,Third Party Payments,Independent Fostering Agencies,509,16-Jun-2016,1606-00345,0.00,4776.48,R,Action For Children,No
Http://opendatacommunities.org/id/metropolitan-district-council/leeds,Leeds City Council,30/06/2016,Childrens Services,Safeguarding Targeted & Specialist,Third Party Payments,Independent Fostering Agencies,509,16-Jun-2016,1606-00346,0.00,5163.67,R,Action For Children,No
Http://opendatacommunities.org/id/metropolitan-district-council/leeds,Leeds City Council,30/06/2016,Childrens Services,Safeguarding Targeted & Specialist,Third Party Payments,Independent Fostering Agencies,509,16-Jun-2016,1606-00347,0.00,4776.48,R,Action For Children,No
Http://opendatacommunities.org/id/metropolitan-district-council/leeds,Leeds City Council,30/06/2016,Childrens Services,Safeguarding Targeted & Specialist,Third Party Payments,Independent Fostering Agencies,509,16-Jun-2016,1606-00348,0.00,5163.67,R,Action For Children,No
Http://opendatacommunities.org/id/metropolitan-district-council/leeds,Leeds City Council,30/06/2016,Childrens Services,Learning Skills & Universal,Third Party Payments,Services Rendered By Other Organisations,511,03-Jun-2016,1606-00349,0.00,368.00,R,Active Kids Day Nursery,No
Http://opendatacommunities.org/id/metropolitan-district-council/leeds,Leeds City Council,30/06/2016,Childrens Services,Safeguarding Targeted & Specialist,Third Party Payments,Section 17,551,07-Jun-2016,1606-00350,0.00,274.13,R,Active Kids Day Nursery,No
Http://opendatacommunities.org/id/metropolitan-district-council/leeds,Leeds City Council,30/06/2016,Childrens Services,Safeguarding Targeted & Specialist,Third Party Payments,Placement Support,550,10-Jun-2016,1606-00351,0.00,362.50,R,Active Kids Day Nursery,No
Http://opendatacommunities.org/id/metropolitan-district-council/leeds,Leeds City Council,30/06/2016,Environment & Housing,Waste Management,Supplies and Services,Recycling & Reuse Charges,234,03-Jun-2016,1606-00352,0.00,7461.79,R,Acumen Waste Services Ltd,No
Http://opendatacommunities.org/id/metropolitan-district-council/leeds,Leeds City Council,30/06/2016,Environment & Housing,Waste Management,Supplies and Services,Recycling & Reuse Charges,234,03-Jun-2016,1606-00353,0.00,8466.79,R,Acumen Waste Services Ltd,No
Http://opendatacommunities.org/id/metropolitan-district-council/leeds,Leeds City Council,30/06/2016,Environment & Housing,Waste Management,Supplies and Services,Recycling & Reuse Charges,234,03-Jun-2016,1606-00354,0.00,4738.91,R,Acumen Waste Services Ltd,No
Http://opendatacommunities.org/id/metropolitan-district-council/leeds,Leeds City Council,30/06/2016,Environment & Housing,Waste Management,Supplies and Services,Recycling & Reuse Charges,234,03-Jun-2016,1606-00355,0.00,2835.44,R,Acumen Waste Services Ltd,No
Http://opendatacommunities.org/id/metropolitan-district-council/leeds,Leeds City Council,30/06/2016,Environment & Housing,Waste Management,Supplies and Services,Recycling & Reuse Charges,234,03-Jun-2016,1606-00356,0.00,110.00,R,Acumen Waste Services Ltd,No
Http://opendatacommunities.org/id/metropolitan-district-council/leeds,Leeds City Council,30/06/2016,Environment & Housing,Waste Management,Supplies and Services,Recycling & Reuse Charges,234,03-Jun-2016,1606-00357,0.00,220.00,R,Acumen Waste Services Ltd,No
Http://opendatacommunities.org/id/metropolitan-district-council/leeds,Leeds City Council,30/06/2016,Environment & Housing,Waste Management,Supplies and Services,Recycling & Reuse Charges,234,10-Jun-2016,1606-00358,0.00,8535.13,R,Acumen Waste Services Ltd,No
Http://opendatacommunities.org/id/metropolitan-district-council/leeds,Leeds City Council,30/06/2016,Civic Enterprise Leeds,Business Support Centre,Supplies and Services,Other Hired And Contracted Services,265,02-Jun-2016,1606-00359,0.00,212.16,R,Ad3 Envelope Printers Limited,No
Http://opendatacommunities.org/id/metropolitan-district-council/leeds,Leeds City Council,30/06/2016,Civic Enterprise Leeds,Business Support Centre,Supplies and Services,Other Hired And Contracted Services,265,02-Jun-2016,1606-00360,0.00,645.00,R,Ad3 Envelope Printers Limited,No
Http://opendatacommunities.org/id/metropolitan-district-council/leeds,Leeds City Council,30/06/2016,Civic Enterprise Leeds,Business Support Centre,Supplies and Services,Other Hired And Contracted Services,265,22-Jun-2016,1606-00361,0.00,212.16,R,Ad3 Envelope Printers Limited,No
Http://opendatacommunities.org/id/metropolitan-district-council/leeds,Leeds City Council,30/06/2016,Civic Enterprise Leeds,Business Support Centre,Supplies and Services,Other Hired And Contracted Services,265,30-Jun-2016,1606-00362,0.00,75.14,R,Ad3 Envelope Printers Limited,No
Http://opendatacommunities.org/id/metropolitan-district-council/leeds,Leeds City Council,30/06/2016,Adult Social Care,Services For Older People - 65 And Over,Third Party Payments,Nursing Home,570,29-Jun-2016,1606-00363,0.00,2120.00,R,Adbolton Hall,No
Http://opendatacommunities.org/id/metropolitan-district-council/leeds,Leeds City Council,30/06/2016,Childrens Services,Safeguarding Targeted & Specialist,Supplies and Services,Conference Meetings,253,17-Jun-2016,1606-00364,0.00,416.00,R,Adcs,No
Http://opendatacommunities.org/id/metropolitan-district-council/leeds,Leeds City Council,30/06/2016,Childrens Services,Partnership Development & Leadership,Supplies and Services,Conference Meetings,253,17-Jun-2016,1606-00365,0.00,780.00,R,Adcs,No
Http://opendatacommunities.org/id/metropolitan-district-council/leeds,Leeds City Council,30/06/2016,Childrens Services,Partnership Development & Leadership,Supplies and Services,Conference Meetings,253,17-Jun-2016,1606-00366,0.00,416.00,R,Adcs,No
Http://opendatacommunities.org/id/metropolitan-district-council/leeds,Leeds City Council,30/06/2016,Childrens Services,Safeguarding Targeted & Specialist,Supplies and Services,Conference Meetings,253,22-Jun-2016,1606-00367,0.00,416.00,R,Adcs,No
Http://opendatacommunities.org/id/metropolitan-district-council/leeds,Leeds City Council,30/06/2016,Environment & Housing,Housing Leeds Service,Capital,Other Costs,7,14-Jun-2016,1606-00368,0.00,2219.42,C,Addleshaw Goddard Llp,No
Http://opendatacommunities.org/id/metropolitan-district-council/leeds,Leeds City Council,30/06/2016,Environment & Housing,Housing Leeds Service,Capital,Other Costs,7,17-Jun-2016,1606-00369,0.00,3105.00,C,Addleshaw Goddard Llp,No
Http://opendatacommunities.org/id/metropolitan-district-council/leeds,Leeds City Council,30/06/2016,Public Health,Public Health,Third Party Payments,Public Health Commissioned Services,526,01-Jun-2016,1606-00370,0.00,6359.74,R,Addlestone & Partners,No
Http://opendatacommunities.org/id/metropolitan-district-council/leeds,Leeds City Council,30/06/2016,Central & Corporate,Human Resources,Employees,Occupational Health,85,23-Jun-2016,1606-00371,0.00,30.00,R,Addlestone & Partners,No
Http://opendatacommunities.org/id/metropolitan-district-council/leeds,Leeds City Council,30/06/2016,Public Health,Public Health,Third Party Payments,Public Health Commissioned Services,526,24-Jun-2016,1606-00372,0.00,77.00,R,Addlestone & Partners,No
Http://opendatacommunities.org/id/metropolitan-district-council/leeds,Leeds City Council,30/06/2016,Central & Corporate,Technology ,Employees,Employees,8,29-Apr-2016,1606-00373,0.00,2300.00,R,Adecco Alfred Marks,Yes
Http://opendatacommunities.org/id/metropolitan-district-council/leeds,Leeds City Council,30/06/2016,Central & Corporate,Technology ,Employees,Employees,8,16-May-2016,1606-00374,0.00,5520.00,R,Adecco Alfred Marks,Yes
Http://opendatacommunities.org/id/metropolitan-district-council/leeds,Leeds City Council,30/06/2016,Central & Corporate,Technology ,Employees,Employees,8,19-May-2016,1606-00375,0.00,1840.00,R,Adecco Alfred Marks,Yes
Http://opendatacommunities.org/id/metropolitan-district-council/leeds,Leeds City Council,30/06/2016,Central & Corporate,Technology ,Employees,Employees,8,26-May-2016,1606-00376,0.00,2300.00,R,Adecco Alfred Marks,Yes
Http://opendatacommunities.org/id/metropolitan-district-council/leeds,Leeds City Council,30/06/2016,Childrens Services,Learning Skills & Universal,Third Party Payments,Services Rendered By Voluntary Sector,505,03-Jun-2016,1606-00377,0.00,632.67,R,Adel Pre School,No
Http://opendatacommunities.org/id/metropolitan-district-council/leeds,Leeds City Council,30/06/2016,Childrens Services,Safeguarding Targeted & Specialist,Supplies and Services,Food & Drink,231,10-Jun-2016,1606-00378,0.00,72.00,R,Adel Quaker Meeting,No
Http://opendatacommunities.org/id/metropolitan-district-council/leeds,Leeds City Council,30/06/2016,Childrens Services,Learning Skills & Universal,Third Party Payments,Services Rendered By Other Organisations,511,03-Jun-2016,1606-00379,0.00,35.67,R,Adele Thompson,No
Http://opendatacommunities.org/id/metropolitan-district-council/leeds,Leeds City Council,30/06/2016,Adult Social Care,Services For Older People - 65 And Over,Third Party Payments,Residential,580,29-Jun-2016,1606-00380,0.00,1173.68,R,Adeline Lodge,No
Http://opendatacommunities.org/id/metropolitan-district-council/leeds,Leeds City Council,30/06/2016,Adult Social Care,Services For Older People - 65 And Over,Third Party Payments,Nursing Home,570,29-Jun-2016,1606-00381,0.00,1056.32,R,Aden House,No
Http://opendatacommunities.org/id/metropolitan-district-council/leeds,Leeds City Council,30/06/2016,Adult Social Care,Services For Older People - 65 And Over,Third Party Payments,Residential Care Dementia,571,29-Jun-2016,1606-00382,0.00,1330.76,R,Aden House,No
Http://opendatacommunities.org/id/metropolitan-district-council/leeds,Leeds City Council,30/06/2016,Environment & Housing,Leeds Building Services,Supplies and Services,Operational Materials,205,01-Jun-2016,1606-00383,0.00,47.64,R,Adi Global,No
Http://opendatacommunities.org/id/metropolitan-district-council/leeds,Leeds City Council,30/06/2016,Environment & Housing,Leeds Building Services,Supplies and Services,Operational Materials,205,01-Jun-2016,1606-00384,0.00,995.17,R,Adi Global,No
Http://opendatacommunities.org/id/metropolitan-district-council/leeds,Leeds City Council,30/06/2016,Environment & Housing,Leeds Building Services,Supplies and Services,Operational Materials,205,01-Jun-2016,1606-00385,0.00,678.94,R,Adi Global,No
Http://opendatacommunities.org/id/metropolitan-district-council/leeds,Leeds City Council,30/06/2016,Environment & Housing,Leeds Building Services,Supplies and Services,Operational Materials,205,02-Jun-2016,1606-00386,0.00,138.45,R,Adi Global,No
Http://opendatacommunities.org/id/metropolitan-district-council/leeds,Leeds City Council,30/06/2016,Environment & Housing,Leeds Building Services,Supplies and Services,Operational Materials,205,02-Jun-2016,1606-00387,0.00,249.98,R,Adi Global,No
Http://opendatacommunities.org/id/metropolitan-district-council/leeds,Leeds City Council,30/06/2016,Environment & Housing,Leeds Building Services,Supplies and Services,Operational Materials,205,02-Jun-2016,1606-00388,0.00,415.83,R,Adi Global,No
Http://opendatacommunities.org/id/metropolitan-district-council/leeds,Leeds City Council,30/06/2016,Environment & Housing,Leeds Building Services,Supplies and Services,Operational Materials,205,03-Jun-2016,1606-00389,0.00,94.54,R,Adi Global,No
Http://opendatacommunities.org/id/metropolitan-district-council/leeds,Leeds City Council,30/06/2016,Environment & Housing,Leeds Building Services,Supplies and Services,Operational Materials,205,03-Jun-2016,1606-00390,0.00,94.54,R,Adi Global,No
Http://opendatacommunities.org/id/metropolitan-district-council/leeds,Leeds City Council,30/06/2016,Environment & Housing,Leeds Building Services,Supplies and Services,Operational Materials,205,08-Jun-2016,1606-00391,0.00,433.04,R,Adi Global,No
Http://opendatacommunities.org/id/metropolitan-district-council/leeds,Leeds City Council,30/06/2016,Environment & Housing,Leeds Building Services,Supplies and Services,Operational Materials,205,10-Jun-2016,1606-00392,0.00,197.32,R,Adi Global,No
Http://opendatacommunities.org/id/metropolitan-district-council/leeds,Leeds City Council,30/06/2016,Environment & Housing,Leeds Building Services,Supplies and Services,Operational Materials,205,10-Jun-2016,1606-00393,0.00,364.50,R,Adi Global,No
Http://opendatacommunities.org/id/metropolitan-district-council/leeds,Leeds City Council,30/06/2016,Environment & Housing,Leeds Building Services,Supplies and Services,Operational Materials,205,10-Jun-2016,1606-00394,0.00,74.74,R,Adi Global,No
Http://opendatacommunities.org/id/metropolitan-district-council/leeds,Leeds City Council,30/06/2016,Environment & Housing,Leeds Building Services,Supplies and Services,Operational Materials,205,10-Jun-2016,1606-00395,0.00,111.00,R,Adi Global,No
Http://opendatacommunities.org/id/metropolitan-district-council/leeds,Leeds City Council,30/06/2016,Environment & Housing,Leeds Building Services,Supplies and Services,Operational Materials,205,13-Jun-2016,1606-00396,0.00,53.71,R,Adi Global,No
Http://opendatacommunities.org/id/metropolitan-district-council/leeds,Leeds City Council,30/06/2016,Environment & Housing,Leeds Building Services,Supplies and Services,Operational Materials,205,13-Jun-2016,1606-00397,0.00,53.71,R,Adi Global,No
Http://opendatacommunities.org/id/metropolitan-district-council/leeds,Leeds City Council,30/06/2016,Environment & Housing,Leeds Building Services,Supplies and Services,Operational Materials,205,22-Jun-2016,1606-00398,0.00,43.83,R,Adi Global,No
Http://opendatacommunities.org/id/metropolitan-district-council/leeds,Leeds City Council,30/06/2016,Environment & Housing,Leeds Building Services,Supplies and Services,Operational Materials,205,24-Jun-2016,1606-00399,0.00,371.84,R,Adi Global,No
Http://opendatacommunities.org/id/metropolitan-district-council/leeds,Leeds City Council,30/06/2016,Environment & Housing,Community Safety ,Supplies and Services,Supplies and Services,265,10-May-2016,1606-00400,0.00,93.79,R,Adi-Gardiner Ltd,Yes
Http://opendatacommunities.org/id/metropolitan-district-council/leeds,Leeds City Council,30/06/2016,Civic Enterprise Leeds,Commercial Services,Transport,Vehicle Spares,345,21-Jun-2016,1606-00401,0.00,40.00,R,Adm Car Audio,No
Http://opendatacommunities.org/id/metropolitan-district-council/leeds,Leeds City Council,30/06/2016,Civic Enterprise Leeds,Commercial Services,Transport,Vehicle Spares,345,21-Jun-2016,1606-00402,0.00,10.00,R,Adm Car Audio,No
Http://opendatacommunities.org/id/metropolitan-district-council/leeds,Leeds City Council,30/06/2016,Civic Enterprise Leeds,Commercial Services,Transport,Vehicle Spares,345,21-Jun-2016,1606-00403,0.00,30.00,R,Adm Car Audio,No
Http://opendatacommunities.org/id/metropolitan-district-council/leeds,Leeds City Council,30/06/2016,Childrens Services,Partnership Development & Leadership,Employees,Training & Development,70,01-Jun-2016,1606-00404,0.00,1650.00,R,Adolescent And Childrens Trust,No
Http://opendatacommunities.org/id/metropolitan-district-council/leeds,Leeds City Council,30/06/2016,Childrens Services,Safeguarding Targeted & Specialist,Third Party Payments,Independent Fostering Agencies,509,10-Jun-2016,1606-00405,0.00,3000.00,R,Adolescent And Childrens Trust,No
Http://opendatacommunities.org/id/metropolitan-district-council/leeds,Leeds City Council,30/06/2016,Childrens Services,Safeguarding Targeted & Specialist,Third Party Payments,Placement Support,550,10-Jun-2016,1606-00406,0.00,1013.00,R,Adoption Matters Northwest,No
Http://opendatacommunities.org/id/metropolitan-district-council/leeds,Leeds City Council,30/06/2016,Childrens Services,Safeguarding Targeted & Specialist,Third Party Payments,Placement Support,550,10-Jun-2016,1606-00407,0.00,1317.00,R,Adoption Matters Northwest,No
Http://opendatacommunities.org/id/metropolitan-district-council/leeds,Leeds City Council,30/06/2016,Childrens Services,Safeguarding Targeted & Specialist,Supplies and Services,Memberships,226,27-Jun-2016,1606-00408,0.00,3509.55,R,Adoption Uk,No
Http://opendatacommunities.org/id/metropolitan-district-council/leeds,Leeds City Council as Accountable Body,30/06/2016,Social Services Pooled Budgets,Jcs For People With Learning Disabilitie,Third Party Payments,Residential,580,02-Jun-2016,1606-00409,0.00,2609.36,R,Adrian House,No
Http://opendatacommunities.org/id/metropolitan-district-council/leeds,Leeds City Council,30/06/2016,Environment & Housing,Strategic Housing Support,Supplies and Services,Other Hired And Contracted Services,265,14-Jun-2016,1606-00410,0.00,262.20,R,REDACTED PERSONAL DATA,No
Http://opendatacommunities.org/id/metropolitan-district-council/leeds,Leeds City Council,30/06/2016,Childrens Services,Learning Skills & Universal,Third Party Payments,Services Rendered By Other Organisations,511,03-Jun-2016,1606-00411,0.00,275.67,R,Adriana Wrzol,No
Http://opendatacommunities.org/id/metropolitan-district-council/leeds,Leeds City Council,30/06/2016,Strategic Landlord,Housing Management,Premises,HRA Responsive Repairs,106,01-Jun-2016,1606-00412,0.00,422.41,R,Adt Fire And Security Plc,No
Http://opendatacommunities.org/id/metropolitan-district-council/leeds,Leeds City Council,30/06/2016,Strategic Landlord,Housing Management,Premises,Premises Security Services,162,20-Jun-2016,1606-00413,0.00,85.00,R,Adt Fire And Security Plc,No
Http://opendatacommunities.org/id/metropolitan-district-council/leeds,Leeds City Council,30/06/2016,Strategic Landlord,Housing Management,Premises,Premises Security Services,162,20-Jun-2016,1606-00414,0.00,142.00,R,Adt Fire And Security Plc,No
Http://opendatacommunities.org/id/metropolitan-district-council/leeds,Leeds City Council,30/06/2016,Adult Social Care,Services For Adults Under 65 Mental/Dis,Third Party Payments,Nursing Home,570,29-Jun-2016,1606-00415,0.00,1541.96,R,Adult Supported Living Ltd,No
Http://opendatacommunities.org/id/metropolitan-district-council/leeds,Leeds City Council,30/06/2016,City Development,Libraries  Arts & Heritage,Supplies and Services,External Audit Fees,261,13-Jun-2016,1606-00416,0.00,85.00,R,Advance Stocks Ltd,No
Http://opendatacommunities.org/id/metropolitan-district-council/leeds,Leeds City Council,30/06/2016,City Development,Recreation,Supplies and Services,External Audit Fees,261,24-Jun-2016,1606-00417,0.00,85.00,R,Advance Stocks Ltd,No
Http://opendatacommunities.org/id/metropolitan-district-council/leeds,Leeds City Council,30/06/2016,Environment & Housing,Strategic Housing Support ,Supplies and Services,Supplies and Services,265,29-Apr-2016,1606-00418,0.00,99.99,R,Advance Training Acade,Yes
Http://opendatacommunities.org/id/metropolitan-district-council/leeds,Leeds City Council,30/06/2016,Environment & Housing,Strategic Housing Support ,Supplies and Services,Supplies and Services,265,09-May-2016,1606-00419,0.00,-99.99,R,Advance Training Acade,Yes
Http://opendatacommunities.org/id/metropolitan-district-council/leeds,Leeds City Council,30/06/2016,Childrens Services,Safeguarding Targeted & Specialist,Support Services,Legal Disbursements,411,16-Jun-2016,1606-00420,0.00,68.24,R,Advanced Child Care Assessments Ltd,No
Http://opendatacommunities.org/id/metropolitan-district-council/leeds,Leeds City Council,30/06/2016,Childrens Services,Safeguarding Targeted & Specialist,Support Services,Legal Disbursements,411,24-Jun-2016,1606-00421,0.00,429.66,R,Advanced Child Care Assessments Ltd,No
Http://opendatacommunities.org/id/metropolitan-district-council/leeds,Leeds City Council,30/06/2016,Childrens Services,Safeguarding Targeted & Specialist,Support Services,Legal Disbursements,411,30-Jun-2016,1606-00422,0.00,2205.54,R,Advanced Child Care Assessments Ltd,No
Http://opendatacommunities.org/id/metropolitan-district-council/leeds,Leeds City Council as Accountable Body,30/06/2016,Social Services Pooled Budgets,Jcs For People With Learning Disabilitie,Third Party Payments,Residential,580,29-Jun-2016,1606-00423,0.00,20213.48,R,Advitam Ltd,No
Http://opendatacommunities.org/id/metropolitan-district-council/leeds,Leeds City Council,30/06/2016,Adult Social Care,Services For Adults Under 65 Mental/Dis,Third Party Payments,Payments To Voluntary Organisations,561,02-Jun-2016,1606-00424,0.00,4551.13,R,Advonet,No
Http://opendatacommunities.org/id/metropolitan-district-council/leeds,Leeds City Council,30/06/2016,Adult Social Care,Services For Adults Under 65 Mental/Dis,Third Party Payments,Payments To Voluntary Organisations,561,02-Jun-2016,1606-00425,0.00,11397.06,R,Advonet,No
Http://opendatacommunities.org/id/metropolitan-district-council/leeds,Leeds City Council as Accountable Body,30/06/2016,Social Services Pooled Budgets,Jcs For People With Learning Disabilitie,Third Party Payments,Other Agency Services,561,16-Jun-2016,1606-00426,0.00,6567.66,R,Advonet,No
Http://opendatacommunities.org/id/metropolitan-district-council/leeds,Leeds City Council as Accountable Body,30/06/2016,Social Services Pooled Budgets,Jcs For People With Learning Disabilitie,Third Party Payments,Other Agency Services,561,16-Jun-2016,1606-00427,0.00,11372.30,R,Advonet,No
Http://opendatacommunities.org/id/metropolitan-district-council/leeds,Leeds City Council,30/06/2016,Adult Social Care,Services For Older People - 65 And Over,Third Party Payments,Payments To Voluntary Organisations,561,17-Jun-2016,1606-00428,0.00,83435.70,R,Advonet,No
Http://opendatacommunities.org/id/metropolitan-district-council/leeds,Leeds City Council,30/06/2016,Adult Social Care,Social Services Support Services,Employees,Training Costs,71,30-Jun-2016,1606-00429,0.00,540.00,R,Advonet,No
Http://opendatacommunities.org/id/metropolitan-district-council/leeds,Leeds City Council,30/06/2016,City Development,Economic Development,Capital,Other Costs,7,10-Jun-2016,1606-00430,0.00,10974.00,C,Aecom Limited,No
Http://opendatacommunities.org/id/metropolitan-district-council/leeds,Leeds City Council,30/06/2016,City Development,Economic Development,Capital,Other Costs,7,10-Jun-2016,1606-00431,0.00,10974.00,C,Aecom Limited,No
Http://opendatacommunities.org/id/metropolitan-district-council/leeds,Leeds City Council,30/06/2016,City Development,Economic Development,Premises,Maintenance Of Buildings,101,24-Jun-2016,1606-00432,0.00,2919.60,R,Aecom Limited,No
Http://opendatacommunities.org/id/metropolitan-district-council/leeds,Leeds City Council,30/06/2016,City Development,Libraries  Arts & Heritage,Supplies and Services,Other Hired And Contracted Services,265,10-Jun-2016,1606-00433,0.00,127.50,R,Aerial Extreme Ltd,No
Http://opendatacommunities.org/id/metropolitan-district-council/leeds,Leeds City Council,30/06/2016,Adult Social Care,Services For Adults Under 65 Mental/Dis,Third Party Payments,Home Care,568,02-Jun-2016,1606-00434,0.00,655.18,R,Affinity Trust,No
Http://opendatacommunities.org/id/metropolitan-district-council/leeds,Leeds City Council,30/06/2016,Adult Social Care,Services For Older People Under 65 P/Dis,Third Party Payments,Home Care,568,02-Jun-2016,1606-00435,0.00,127.84,R,Affinity Trust,No
Http://opendatacommunities.org/id/metropolitan-district-council/leeds,Leeds City Council,30/06/2016,Adult Social Care,Services For Older People Under 65 P/Dis,Third Party Payments,Home Care,568,02-Jun-2016,1606-00436,0.00,2283.36,R,Affinity Trust,No
Http://opendatacommunities.org/id/metropolitan-district-council/leeds,Leeds City Council,30/06/2016,Adult Social Care,Services For Adults Under 65 Mental/Dis,Third Party Payments,Home Care,568,02-Jun-2016,1606-00437,0.00,207.74,R,Affinity Trust,No
Http://opendatacommunities.org/id/metropolitan-district-council/leeds,Leeds City Council,30/06/2016,Adult Social Care,Services For Adults Under 65 Mental/Dis,Third Party Payments,Home Care,568,02-Jun-2016,1606-00438,0.00,319.60,R,Affinity Trust,No
Http://opendatacommunities.org/id/metropolitan-district-council/leeds,Leeds City Council,30/06/2016,Adult Social Care,Services For Older People Under 65 P/Dis,Third Party Payments,Home Care,568,02-Jun-2016,1606-00439,0.00,297.00,R,Affinity Trust,No
Http://opendatacommunities.org/id/metropolitan-district-council/leeds,Leeds City Council,30/06/2016,Adult Social Care,Services For Older People Under 65 P/Dis,Third Party Payments,Home Care,568,02-Jun-2016,1606-00440,0.00,465.08,R,Affinity Trust,No
Http://opendatacommunities.org/id/metropolitan-district-council/leeds,Leeds City Council,30/06/2016,Adult Social Care,Services For Older People - 65 And Over,Third Party Payments,Home Care,568,02-Jun-2016,1606-00441,0.00,1009.20,R,Affinity Trust,No
Http://opendatacommunities.org/id/metropolitan-district-council/leeds,Leeds City Council,30/06/2016,Adult Social Care,Services For Older People Under 65 P/Dis,Third Party Payments,Home Care,568,02-Jun-2016,1606-00442,0.00,134.56,R,Affinity Trust,No
Http://opendatacommunities.org/id/metropolitan-district-council/leeds,Leeds City Council,30/06/2016,Adult Social Care,Services For Older People Under 65 P/Dis,Third Party Payments,Home Care,568,02-Jun-2016,1606-00443,0.00,403.68,R,Affinity Trust,No
Http://opendatacommunities.org/id/metropolitan-district-council/leeds,Leeds City Council,30/06/2016,Adult Social Care,Services For Older People Under 65 P/Dis,Third Party Payments,Home Care,568,02-Jun-2016,1606-00444,0.00,526.68,R,Affinity Trust,No
Http://opendatacommunities.org/id/metropolitan-district-council/leeds,Leeds City Council as Accountable Body,30/06/2016,Social Services Pooled Budgets,Jcs For People With Learning Disabilitie,Third Party Payments,Home Care,568,13-Jun-2016,1606-00445,0.00,8121.98,R,Affinity Trust,No
Http://opendatacommunities.org/id/metropolitan-district-council/leeds,Leeds City Council as Accountable Body,30/06/2016,Social Services Pooled Budgets,Jcs For People With Learning Disabilitie,Third Party Payments,Day Centre,564,14-Jun-2016,1606-00446,0.00,810.00,R,Affinity Trust,No
Http://opendatacommunities.org/id/metropolitan-district-council/leeds,Leeds City Council as Accountable Body,30/06/2016,Social Services Pooled Budgets,Jcs For People With Learning Disabilitie,Third Party Payments,Home Care,568,14-Jun-2016,1606-00447,0.00,151.81,R,Affinity Trust,No
Http://opendatacommunities.org/id/metropolitan-district-council/leeds,Leeds City Council as Accountable Body,30/06/2016,Social Services Pooled Budgets,Jcs For People With Learning Disabilitie,Third Party Payments,Home Care,568,15-Jun-2016,1606-00448,0.00,3723.49,R,Affinity Trust,No
Http://opendatacommunities.org/id/metropolitan-district-council/leeds,Leeds City Council as Accountable Body,30/06/2016,Social Services Pooled Budgets,Jcs For People With Learning Disabilitie,Third Party Payments,Home Care,568,15-Jun-2016,1606-00449,0.00,255.68,R,Affinity Trust,No
Http://opendatacommunities.org/id/metropolitan-district-council/leeds,Leeds City Council as Accountable Body,30/06/2016,Social Services Pooled Budgets,Jcs For People With Learning Disabilitie,Third Party Payments,Home Care,568,15-Jun-2016,1606-00450,0.00,1211.04,R,Affinity Trust,No
Http://opendatacommunities.org/id/metropolitan-district-council/leeds,Leeds City Council as Accountable Body,30/06/2016,Social Services Pooled Budgets,Jcs For People With Learning Disabilitie,Third Party Payments,Home Care,568,15-Jun-2016,1606-00451,0.00,447.44,R,Affinity Trust,No
Http://opendatacommunities.org/id/metropolitan-district-council/leeds,Leeds City Council as Accountable Body,30/06/2016,Social Services Pooled Budgets,Jcs For People With Learning Disabilitie,Third Party Payments,Home Care,568,15-Jun-2016,1606-00452,0.00,511.36,R,Affinity Trust,No
Http://opendatacommunities.org/id/metropolitan-district-council/leeds,Leeds City Council as Accountable Body,30/06/2016,Social Services Pooled Budgets,Jcs For People With Learning Disabilitie,Third Party Payments,Home Care,568,15-Jun-2016,1606-00453,0.00,1062.67,R,Affinity Trust,No
Http://opendatacommunities.org/id/metropolitan-district-council/leeds,Leeds City Council as Accountable Body,30/06/2016,Social Services Pooled Budgets,Jcs For People With Learning Disabilitie,Third Party Payments,Home Care,568,15-Jun-2016,1606-00454,0.00,894.88,R,Affinity Trust,No
Http://opendatacommunities.org/id/metropolitan-district-council/leeds,Leeds City Council as Accountable Body,30/06/2016,Social Services Pooled Budgets,Jcs For People With Learning Disabilitie,Third Party Payments,Home Care,568,15-Jun-2016,1606-00455,0.00,575.28,R,Affinity Trust,No
Http://opendatacommunities.org/id/metropolitan-district-council/leeds,Leeds City Council as Accountable Body,30/06/2016,Social Services Pooled Budgets,Jcs For People With Learning Disabilitie,Third Party Payments,Home Care,568,15-Jun-2016,1606-00456,0.00,639.20,R,Affinity Trust,No
Http://opendatacommunities.org/id/metropolitan-district-council/leeds,Leeds City Council as Accountable Body,30/06/2016,Social Services Pooled Budgets,Jcs For People With Learning Disabilitie,Third Party Payments,Home Care,568,15-Jun-2016,1606-00457,0.00,408.00,R,Affinity Trust,No
Http://opendatacommunities.org/id/metropolitan-district-council/leeds,Leeds City Council as Accountable Body,30/06/2016,Social Services Pooled Budgets,Jcs For People With Learning Disabilitie,Third Party Payments,Home Care,568,15-Jun-2016,1606-00458,0.00,1134.58,R,Affinity Trust,No
Http://opendatacommunities.org/id/metropolitan-district-council/leeds,Leeds City Council as Accountable Body,30/06/2016,Social Services Pooled Budgets,Jcs For People With Learning Disabilitie,Third Party Payments,Home Care,568,15-Jun-2016,1606-00459,0.00,2428.96,R,Affinity Trust,No
Http://opendatacommunities.org/id/metropolitan-district-council/leeds,Leeds City Council as Accountable Body,30/06/2016,Social Services Pooled Budgets,Jcs For People With Learning Disabilitie,Third Party Payments,Home Care,568,15-Jun-2016,1606-00460,0.00,511.36,R,Affinity Trust,No
Http://opendatacommunities.org/id/metropolitan-district-council/leeds,Leeds City Council as Accountable Body,30/06/2016,Social Services Pooled Budgets,Jcs For People With Learning Disabilitie,Third Party Payments,Home Care,568,15-Jun-2016,1606-00461,0.00,127.84,R,Affinity Trust,No
Http://opendatacommunities.org/id/metropolitan-district-council/leeds,Leeds City Council as Accountable Body,30/06/2016,Social Services Pooled Budgets,Jcs For People With Learning Disabilitie,Third Party Payments,Home Care,568,15-Jun-2016,1606-00462,0.00,204.32,R,Affinity Trust,No
Http://opendatacommunities.org/id/metropolitan-district-council/leeds,Leeds City Council,30/06/2016,Childrens Services,Safeguarding Targeted & Specialist,Third Party Payments,Section 17,551,15-Jun-2016,1606-00463,0.00,2430.00,R,Affinity Trust,No
Http://opendatacommunities.org/id/metropolitan-district-council/leeds,Leeds City Council as Accountable Body,30/06/2016,Social Services Pooled Budgets,Jcs For People With Learning Disabilitie,Third Party Payments,Home Care,568,16-Jun-2016,1606-00464,0.00,47.94,R,Affinity Trust,No
Http://opendatacommunities.org/id/metropolitan-district-council/leeds,Leeds City Council as Accountable Body,30/06/2016,Social Services Pooled Budgets,Jcs For People With Learning Disabilitie,Third Party Payments,Home Care,568,16-Jun-2016,1606-00465,0.00,1006.74,R,Affinity Trust,No
Http://opendatacommunities.org/id/metropolitan-district-council/leeds,Leeds City Council as Accountable Body,30/06/2016,Social Services Pooled Budgets,Jcs For People With Learning Disabilitie,Third Party Payments,Home Care,568,16-Jun-2016,1606-00466,0.00,779.03,R,Affinity Trust,No
Http://opendatacommunities.org/id/metropolitan-district-council/leeds,Leeds City Council as Accountable Body,30/06/2016,Social Services Pooled Budgets,Jcs For People With Learning Disabilitie,Third Party Payments,Home Care,568,16-Jun-2016,1606-00467,0.00,300.00,R,Affinity Trust,No
Http://opendatacommunities.org/id/metropolitan-district-council/leeds,Leeds City Council as Accountable Body,30/06/2016,Social Services Pooled Budgets,Jcs For People With Learning Disabilitie,Third Party Payments,Home Care,568,16-Jun-2016,1606-00468,0.00,1382.27,R,Affinity Trust,No
Http://opendatacommunities.org/id/metropolitan-district-council/leeds,Leeds City Council as Accountable Body,30/06/2016,Social Services Pooled Budgets,Jcs For People With Learning Disabilitie,Third Party Payments,Home Care,568,16-Jun-2016,1606-00469,0.00,351.56,R,Affinity Trust,No
Http://opendatacommunities.org/id/metropolitan-district-council/leeds,Leeds City Council as Accountable Body,30/06/2016,Social Services Pooled Budgets,Jcs For People With Learning Disabilitie,Third Party Payments,Home Care,568,16-Jun-2016,1606-00470,0.00,255.00,R,Affinity Trust,No
Http://opendatacommunities.org/id/metropolitan-district-council/leeds,Leeds City Council as Accountable Body,30/06/2016,Social Services Pooled Budgets,Jcs For People With Learning Disabilitie,Third Party Payments,Home Care,568,16-Jun-2016,1606-00471,0.00,336.40,R,Affinity Trust,No
Http://opendatacommunities.org/id/metropolitan-district-council/leeds,Leeds City Council as Accountable Body,30/06/2016,Social Services Pooled Budgets,Jcs For People With Learning Disabilitie,Third Party Payments,Home Care,568,16-Jun-2016,1606-00472,0.00,765.00,R,Affinity Trust,No
Http://opendatacommunities.org/id/metropolitan-district-council/leeds,Leeds City Council as Accountable Body,30/06/2016,Social Services Pooled Budgets,Jcs For People With Learning Disabilitie,Third Party Payments,Day Centre,564,16-Jun-2016,1606-00473,0.00,416.64,R,Affinity Trust,No
Http://opendatacommunities.org/id/metropolitan-district-council/leeds,Leeds City Council as Accountable Body,30/06/2016,Social Services Pooled Budgets,Jcs For People With Learning Disabilitie,Third Party Payments,Home Care,568,16-Jun-2016,1606-00474,0.00,671.16,R,Affinity Trust,No
Http://opendatacommunities.org/id/metropolitan-district-council/leeds,Leeds City Council as Accountable Body,30/06/2016,Social Services Pooled Budgets,Jcs For People With Learning Disabilitie,Third Party Payments,Home Care,568,16-Jun-2016,1606-00475,0.00,1493.25,R,Affinity Trust,No
Http://opendatacommunities.org/id/metropolitan-district-council/leeds,Leeds City Council as Accountable Body,30/06/2016,Social Services Pooled Budgets,Jcs For People With Learning Disabilitie,Third Party Payments,Home Care,568,16-Jun-2016,1606-00476,0.00,941.92,R,Affinity Trust,No
Http://opendatacommunities.org/id/metropolitan-district-council/leeds,Leeds City Council as Accountable Body,30/06/2016,Social Services Pooled Budgets,Jcs For People With Learning Disabilitie,Third Party Payments,Day Centre,564,17-Jun-2016,1606-00477,0.00,630.00,R,Affinity Trust,No
Http://opendatacommunities.org/id/metropolitan-district-council/leeds,Leeds City Council as Accountable Body,30/06/2016,Social Services Pooled Budgets,Jcs For People With Learning Disabilitie,Third Party Payments,Home Care,568,21-Jun-2016,1606-00478,0.00,1050.00,R,Affinity Trust,No
Http://opendatacommunities.org/id/metropolitan-district-council/leeds,Leeds City Council as Accountable Body,30/06/2016,Social Services Pooled Budgets,Jcs For People With Learning Disabilitie,Third Party Payments,Home Care,568,21-Jun-2016,1606-00479,0.00,720.00,R,Affinity Trust,No
Http://opendatacommunities.org/id/metropolitan-district-council/leeds,Leeds City Council as Accountable Body,30/06/2016,Social Services Pooled Budgets,Jcs For People With Learning Disabilitie,Third Party Payments,Home Care,568,21-Jun-2016,1606-00480,0.00,2011.20,R,Affinity Trust,No
Http://opendatacommunities.org/id/metropolitan-district-council/leeds,Leeds City Council as Accountable Body,30/06/2016,Social Services Pooled Budgets,Jcs For People With Learning Disabilitie,Third Party Payments,Home Care,568,21-Jun-2016,1606-00481,0.00,194.88,R,Affinity Trust,No
Http://opendatacommunities.org/id/metropolitan-district-council/leeds,Leeds City Council as Accountable Body,30/06/2016,Social Services Pooled Budgets,Jcs For People With Learning Disabilitie,Third Party Payments,Home Care,568,21-Jun-2016,1606-00482,0.00,1080.00,R,Affinity Trust,No
Http://opendatacommunities.org/id/metropolitan-district-council/leeds,Leeds City Council as Accountable Body,30/06/2016,Social Services Pooled Budgets,Jcs For People With Learning Disabilitie,Third Party Payments,Home Care,568,21-Jun-2016,1606-00483,0.00,3316.88,R,Affinity Trust,No
Http://opendatacommunities.org/id/metropolitan-district-council/leeds,Leeds City Council as Accountable Body,30/06/2016,Social Services Pooled Budgets,Jcs For People With Learning Disabilitie,Third Party Payments,Day Centre,564,21-Jun-2016,1606-00484,0.00,569.84,R,Affinity Trust,No
Http://opendatacommunities.org/id/metropolitan-district-council/leeds,Leeds City Council,30/06/2016,Adult Social Care,Assessment And Care Management,Third Party Payments,Home Care,568,21-Jun-2016,1606-00485,0.00,134.56,R,Affinity Trust,No
Http://opendatacommunities.org/id/metropolitan-district-council/leeds,Leeds City Council as Accountable Body,30/06/2016,Social Services Pooled Budgets,Jcs For People With Learning Disabilitie,Third Party Payments,Home Care,568,22-Jun-2016,1606-00486,0.00,1560.00,R,Affinity Trust,No
Http://opendatacommunities.org/id/metropolitan-district-council/leeds,Leeds City Council as Accountable Body,30/06/2016,Social Services Pooled Budgets,Jcs For People With Learning Disabilitie,Third Party Payments,Home Care,568,22-Jun-2016,1606-00487,0.00,2274.60,R,Affinity Trust,No
Http://opendatacommunities.org/id/metropolitan-district-council/leeds,Leeds City Council as Accountable Body,30/06/2016,Social Services Pooled Budgets,Jcs For People With Learning Disabilitie,Third Party Payments,Home Care,568,22-Jun-2016,1606-00488,0.00,1599.98,R,Affinity Trust,No
Http://opendatacommunities.org/id/metropolitan-district-council/leeds,Leeds City Council as Accountable Body,30/06/2016,Social Services Pooled Budgets,Jcs For People With Learning Disabilitie,Third Party Payments,Home Care,568,22-Jun-2016,1606-00489,0.00,804.48,R,Affinity Trust,No
Http://opendatacommunities.org/id/metropolitan-district-council/leeds,Leeds City Council as Accountable Body,30/06/2016,Social Services Pooled Budgets,Jcs For People With Learning Disabilitie,Third Party Payments,Home Care,568,22-Jun-2016,1606-00490,0.00,1035.44,R,Affinity Trust,No
Http://opendatacommunities.org/id/metropolitan-district-council/leeds,Leeds City Council as Accountable Body,30/06/2016,Social Services Pooled Budgets,Jcs For People With Learning Disabilitie,Third Party Payments,Home Care,568,22-Jun-2016,1606-00491,0.00,1800.00,R,Affinity Trust,No
Http://opendatacommunities.org/id/metropolitan-district-council/leeds,Leeds City Council as Accountable Body,30/06/2016,Social Services Pooled Budgets,Jcs For People With Learning Disabilitie,Third Party Payments,Home Care,568,22-Jun-2016,1606-00492,0.00,1005.60,R,Affinity Trust,No
Http://opendatacommunities.org/id/metropolitan-district-council/leeds,Leeds City Council as Accountable Body,30/06/2016,Social Services Pooled Budgets,Jcs For People With Learning Disabilitie,Third Party Payments,Home Care,568,22-Jun-2016,1606-00493,0.00,360.00,R,Affinity Trust,No
Http://opendatacommunities.org/id/metropolitan-district-council/leeds,Leeds City Council as Accountable Body,30/06/2016,Social Services Pooled Budgets,Jcs For People With Learning Disabilitie,Third Party Payments,Home Care,568,22-Jun-2016,1606-00494,0.00,337.22,R,Affinity Trust,No
Http://opendatacommunities.org/id/metropolitan-district-council/leeds,Leeds City Council as Accountable Body,30/06/2016,Social Services Pooled Budgets,Jcs For People With Learning Disabilitie,Third Party Payments,Home Care,568,22-Jun-2016,1606-00495,0.00,1206.72,R,Affinity Trust,No
Http://opendatacommunities.org/id/metropolitan-district-council/leeds,Leeds City Council as Accountable Body,30/06/2016,Social Services Pooled Budgets,Jcs For People With Learning Disabilitie,Third Party Payments,Day Centre,564,22-Jun-2016,1606-00496,0.00,714.78,R,Affinity Trust,No
Http://opendatacommunities.org/id/metropolitan-district-council/leeds,Leeds City Council as Accountable Body,30/06/2016,Social Services Pooled Budgets,Jcs For People With Learning Disabilitie,Third Party Payments,Day Centre,564,22-Jun-2016,1606-00497,0.00,2346.40,R,Affinity Trust,No
Http://opendatacommunities.org/id/metropolitan-district-council/leeds,Leeds City Council as Accountable Body,30/06/2016,Social Services Pooled Budgets,Jcs For People With Learning Disabilitie,Third Party Payments,Day Centre,564,22-Jun-2016,1606-00498,0.00,1440.00,R,Affinity Trust,No
Http://opendatacommunities.org/id/metropolitan-district-council/leeds,Leeds City Council,30/06/2016,Adult Social Care,Services For Older People Under 65 P/Dis,Third Party Payments,Home Care,568,23-Jun-2016,1606-00499,0.00,623.22,R,Affinity Trust,No
Http://opendatacommunities.org/id/metropolitan-district-council/leeds,Leeds City Council,30/06/2016,Adult Social Care,Services For Older People Under 65 P/Dis,Third Party Payments,Home Care,568,23-Jun-2016,1606-00500,0.00,191.76,R,Affinity Trust,No
Http://opendatacommunities.org/id/metropolitan-district-council/leeds,Leeds City Council,30/06/2016,Adult Social Care,Services For Older People Under 65 P/Dis,Third Party Payments,Home Care,568,23-Jun-2016,1606-00501,0.00,2009.80,R,Affinity Trust,No
Http://opendatacommunities.org/id/metropolitan-district-council/leeds,Leeds City Council,30/06/2016,Adult Social Care,Services For Adults Under 65 Mental/Dis,Third Party Payments,Home Care,568,23-Jun-2016,1606-00502,0.00,319.60,R,Affinity Trust,No
Http://opendatacommunities.org/id/metropolitan-district-council/leeds,Leeds City Council,30/06/2016,Adult Social Care,Services For Older People - 65 And Over,Third Party Payments,Home Care,568,23-Jun-2016,1606-00503,0.00,319.60,R,Affinity Trust,No
Http://opendatacommunities.org/id/metropolitan-district-council/leeds,Leeds City Council,30/06/2016,Adult Social Care,Services For Older People Under 65 P/Dis,Third Party Payments,Home Care,568,23-Jun-2016,1606-00504,0.00,396.00,R,Affinity Trust,No
Http://opendatacommunities.org/id/metropolitan-district-council/leeds,Leeds City Council,30/06/2016,Adult Social Care,Services For Older People Under 65 P/Dis,Third Party Payments,Home Care,568,23-Jun-2016,1606-00505,0.00,498.30,R,Affinity Trust,No
Http://opendatacommunities.org/id/metropolitan-district-council/leeds,Leeds City Council,30/06/2016,Adult Social Care,Services For Older People Under 65 P/Dis,Third Party Payments,Home Care,568,23-Jun-2016,1606-00506,0.00,191.76,R,Affinity Trust,No
Http://opendatacommunities.org/id/metropolitan-district-council/leeds,Leeds City Council,30/06/2016,Adult Social Care,Services For Older People - 65 And Over,Third Party Payments,Home Care,568,23-Jun-2016,1606-00507,0.00,1076.48,R,Affinity Trust,No
Http://opendatacommunities.org/id/metropolitan-district-council/leeds,Leeds City Council as Accountable Body,30/06/2016,Social Services Pooled Budgets,Jcs For People With Learning Disabilitie,Third Party Payments,Home Care,568,28-Jun-2016,1606-00508,0.00,525.72,R,Affinity Trust,No
Http://opendatacommunities.org/id/metropolitan-district-council/leeds,Leeds City Council as Accountable Body,30/06/2016,Social Services Pooled Budgets,Jcs For People With Learning Disabilitie,Third Party Payments,Day Centre,564,28-Jun-2016,1606-00509,0.00,4052.48,R,Affinity Trust,No
Http://opendatacommunities.org/id/metropolitan-district-council/leeds,Leeds City Council as Accountable Body,30/06/2016,Social Services Pooled Budgets,Jcs For People With Learning Disabilitie,Third Party Payments,Sheltered Accommodation,569,29-Jun-2016,1606-00510,0.00,94669.79,R,Affinity Trust North Divisional Office,No
Http://opendatacommunities.org/id/metropolitan-district-council/leeds,Leeds City Council as Accountable Body,30/06/2016,Social Services Pooled Budgets,Jcs For People With Learning Disabilitie,Third Party Payments,Residential,580,29-Jun-2016,1606-00511,0.00,6193.32,R,Affinity Trust North Divisional Office,No
Http://opendatacommunities.org/id/metropolitan-district-council/leeds,Leeds City Council,30/06/2016,Environment & Housing,SP Contracts & SECC,Third Party Payments,Supporting Ppl - Block Gross Chargeable,514,10-Jun-2016,1606-00512,0.00,3957.68,R,Age Uk Leeds,No
Http://opendatacommunities.org/id/metropolitan-district-council/leeds,Leeds City Council,30/06/2016,Adult Social Care,Services For Older People Under 65 P/Dis,Third Party Payments,Residential,580,29-Jun-2016,1606-00513,0.00,5598.40,R,Agricola House,No
Http://opendatacommunities.org/id/metropolitan-district-council/leeds,Leeds City Council,30/06/2016,Childrens Services,Learning Skills & Universal,Supplies and Services,Teaching Materials,202,30-Jun-2016,1606-00514,0.00,35.94,R,Aid Training & Operations Ltd,No
Http://opendatacommunities.org/id/metropolitan-district-council/leeds,Leeds City Council,30/06/2016,Childrens Services,Safeguarding Targeted & Specialist,Transfer Payments,16 Plus Top Up Allowance,625,02-Jun-2016,1606-00515,0.00,20.00,R,REDACTED PERSONAL DATA,No
Http://opendatacommunities.org/id/metropolitan-district-council/leeds,Leeds City Council,30/06/2016,Childrens Services,Safeguarding Targeted & Specialist,Transfer Payments,16 Plus Top Up Allowance,625,09-Jun-2016,1606-00516,0.00,20.00,R,REDACTED PERSONAL DATA,No
Http://opendatacommunities.org/id/metropolitan-district-council/leeds,Leeds City Council,30/06/2016,Childrens Services,Safeguarding Targeted & Specialist,Transfer Payments,16 Plus Top Up Allowance,625,16-Jun-2016,1606-00517,0.00,20.00,R,REDACTED PERSONAL DATA,No
Http://opendatacommunities.org/id/metropolitan-district-council/leeds,Leeds City Council as Accountable Body,30/06/2016,Social Services Pooled Budgets,Leeds Community Equip Store Pooled Budgt,Supplies and Services,Other Equipment,203,02-Jun-2016,1606-00518,0.00,449.40,R,Aidapt Bathrooms Ltd,No
Http://opendatacommunities.org/id/metropolitan-district-council/leeds,Leeds City Council as Accountable Body,30/06/2016,Social Services Pooled Budgets,Leeds Community Equip Store Pooled Budgt,Supplies and Services,Other Equipment,203,10-Jun-2016,1606-00519,0.00,258.00,R,Aidapt Bathrooms Ltd,No
Http://opendatacommunities.org/id/metropolitan-district-council/leeds,Leeds City Council as Accountable Body,30/06/2016,Social Services Pooled Budgets,Leeds Community Equip Store Pooled Budgt,Supplies and Services,Other Equipment,203,23-Jun-2016,1606-00520,0.00,93.00,R,Aidapt Bathrooms Ltd,No
Http://opendatacommunities.org/id/metropolitan-district-council/leeds,Leeds City Council as Accountable Body,30/06/2016,Social Services Pooled Budgets,Leeds Community Equip Store Pooled Budgt,Supplies and Services,Other Equipment,203,23-Jun-2016,1606-00521,0.00,538.00,R,Aidapt Bathrooms Ltd,No
Http://opendatacommunities.org/id/metropolitan-district-council/leeds,Leeds City Council as Accountable Body,30/06/2016,Social Services Pooled Budgets,Leeds Community Equip Store Pooled Budgt,Supplies and Services,Other Equipment,203,15-Jun-2016,1606-00522,0.00,5371.00,R,Aidservice Ltd,No
Http://opendatacommunities.org/id/metropolitan-district-council/leeds,Leeds City Council as Accountable Body,30/06/2016,Social Services Pooled Budgets,Jcs For People With Learning Disabilitie,Supplies and Services,Other Equipment,203,24-Jun-2016,1606-00523,0.00,360.00,R,Aidservice Ltd,No
Http://opendatacommunities.org/id/metropolitan-district-council/leeds,Leeds City Council,30/06/2016,Central & Corporate,Technology ,Supplies and Services,Supplies and Services,226,20-May-2016,1606-00524,0.00,116.17,R,Aiim Inc,Yes
Http://opendatacommunities.org/id/metropolitan-district-council/leeds,Leeds City Council,30/06/2016,Environment & Housing,Leeds Building Services,Supplies and Services,Operational Materials,205,03-Jun-2016,1606-00525,0.00,22.09,R,Air Conditioning Accessories,No
Http://opendatacommunities.org/id/metropolitan-district-council/leeds,Leeds City Council,30/06/2016,Environment & Housing,Leeds Building Services,Supplies and Services,Operational Materials,205,03-Jun-2016,1606-00526,0.00,16.19,R,Air Conditioning Accessories,No
Http://opendatacommunities.org/id/metropolitan-district-council/leeds,Leeds City Council,30/06/2016,Environment & Housing,Leeds Building Services,Supplies and Services,Operational Materials,205,03-Jun-2016,1606-00527,0.00,211.35,R,Air Conditioning Accessories,No
Http://opendatacommunities.org/id/metropolitan-district-council/leeds,Leeds City Council,30/06/2016,Environment & Housing,Leeds Building Services,Supplies and Services,Operational Materials,205,03-Jun-2016,1606-00528,0.00,422.52,R,Air Conditioning Accessories,No
Http://opendatacommunities.org/id/metropolitan-district-council/leeds,Leeds City Council,30/06/2016,Environment & Housing,Leeds Building Services,Supplies and Services,Operational Materials,205,03-Jun-2016,1606-00529,0.00,135.00,R,Air Conditioning Accessories,No
Http://opendatacommunities.org/id/metropolitan-district-council/leeds,Leeds City Council,30/06/2016,Environment & Housing,Leeds Building Services,Supplies and Services,Operational Materials,205,09-Jun-2016,1606-00530,0.00,14.40,R,Air Conditioning Accessories,No
Http://opendatacommunities.org/id/metropolitan-district-council/leeds,Leeds City Council,30/06/2016,Environment & Housing,Leeds Building Services,Supplies and Services,Operational Materials,205,09-Jun-2016,1606-00531,0.00,386.04,R,Air Conditioning Accessories,No
Http://opendatacommunities.org/id/metropolitan-district-council/leeds,Leeds City Council,30/06/2016,Environment & Housing,Leeds Building Services,Supplies and Services,Operational Materials,205,09-Jun-2016,1606-00532,0.00,102.00,R,Air Conditioning Accessories,No
Http://opendatacommunities.org/id/metropolitan-district-council/leeds,Leeds City Council,30/06/2016,Environment & Housing,Leeds Building Services,Supplies and Services,Operational Materials,205,17-Jun-2016,1606-00533,0.00,5.59,R,Air Conditioning Accessories,No
Http://opendatacommunities.org/id/metropolitan-district-council/leeds,Leeds City Council,30/06/2016,Environment & Housing,Leeds Building Services,Supplies and Services,Operational Materials,205,17-Jun-2016,1606-00534,0.00,33.00,R,Air Conditioning Accessories,No
Http://opendatacommunities.org/id/metropolitan-district-council/leeds,Leeds City Council,30/06/2016,Environment & Housing,Leeds Building Services,Supplies and Services,Operational Materials,205,17-Jun-2016,1606-00535,0.00,257.01,R,Air Conditioning Accessories,No
Http://opendatacommunities.org/id/metropolitan-district-council/leeds,Leeds City Council,30/06/2016,Environment & Housing,Leeds Building Services,Supplies and Services,Operational Materials,205,17-Jun-2016,1606-00536,0.00,83.61,R,Air Conditioning Accessories,No
Http://opendatacommunities.org/id/metropolitan-district-council/leeds,Leeds City Council,30/06/2016,Environment & Housing,Leeds Building Services,Supplies and Services,Operational Materials,205,24-Jun-2016,1606-00537,0.00,45.64,R,Air Conditioning Accessories,No
Http://opendatacommunities.org/id/metropolitan-district-council/leeds,Leeds City Council,30/06/2016,Environment & Housing,Leeds Building Services,Supplies and Services,Operational Materials,205,24-Jun-2016,1606-00538,0.00,17.09,R,Air Conditioning Accessories,No
Http://opendatacommunities.org/id/metropolitan-district-council/leeds,Leeds City Council,30/06/2016,Environment & Housing,Leeds Building Services,Supplies and Services,Operational Materials,205,24-Jun-2016,1606-00539,0.00,169.26,R,Air Conditioning Accessories,No
Http://opendatacommunities.org/id/metropolitan-district-council/leeds,Leeds City Council,30/06/2016,Environment & Housing,Leeds Building Services,Supplies and Services,Operational Materials,205,24-Jun-2016,1606-00540,0.00,66.00,R,Air Conditioning Accessories,No
Http://opendatacommunities.org/id/metropolitan-district-council/leeds,Leeds City Council,30/06/2016,Civic Enterprise Leeds,Commercial Services ,Supplies and Services,Supplies and Services,203,04-May-2016,1606-00541,0.00,85.90,R,Air Force Pneumati,Yes
Http://opendatacommunities.org/id/metropolitan-district-council/leeds,Leeds City Council,30/06/2016,City Development,Economic Development ,Premises,Premises,102,27-May-2016,1606-00542,0.00,94.90,R,Air Force Pneumati,Yes
Http://opendatacommunities.org/id/metropolitan-district-council/leeds,Leeds City Council,30/06/2016,City Development,Economic Development ,Premises,Premises,102,27-May-2016,1606-00543,0.00,18.72,R,Air Force Pneumati,Yes
Http://opendatacommunities.org/id/metropolitan-district-council/leeds,Leeds City Council,30/06/2016,Environment & Housing,Environmental Health,Supplies and Services,Other Hired And Contracted Services,265,09-Jun-2016,1606-00544,0.00,13.63,R,Air Liquide Uk,No
Http://opendatacommunities.org/id/metropolitan-district-council/leeds,Leeds City Council,30/06/2016,Environment & Housing,Environmental Health,Supplies and Services,Other Hired And Contracted Services,265,09-Jun-2016,1606-00545,0.00,13.63,R,Air Liquide Uk,No
Http://opendatacommunities.org/id/metropolitan-district-council/leeds,Leeds City Council,30/06/2016,Environment & Housing,Environmental Health,Supplies and Services,Other Hired And Contracted Services,265,09-Jun-2016,1606-00546,0.00,62.58,R,Air Liquide Uk,No
Http://opendatacommunities.org/id/metropolitan-district-council/leeds,Leeds City Council,30/06/2016,Environment & Housing,Leeds Building Services,Supplies and Services,Operational Materials,205,15-Jun-2016,1606-00547,0.00,10.00,R,Air Liquide Uk,No
Http://opendatacommunities.org/id/metropolitan-district-council/leeds,Leeds City Council,30/06/2016,Environment & Housing,Parks and Countryside,Supplies and Services,Operational Furniture And Equipment,203,02-Jun-2016,1606-00548,0.00,213.05,R,Air Solutions (Leeds) Ltd,No
Http://opendatacommunities.org/id/metropolitan-district-council/leeds,Leeds City Council,30/06/2016,Adult Social Care,Services For Adults Under 65 Mental/Dis,Third Party Payments,Residential,580,29-Jun-2016,1606-00549,0.00,6028.00,R,Aire House,No
Http://opendatacommunities.org/id/metropolitan-district-council/leeds,Leeds City Council as Accountable Body,30/06/2016,Social Services Pooled Budgets,Jcs For People With Learning Disabilitie,Third Party Payments,Residential,580,29-Jun-2016,1606-00550,0.00,3059.84,R,Aire House,No
Http://opendatacommunities.org/id/metropolitan-district-council/leeds,Leeds City Council,30/06/2016,City Development,Economic Development,Supplies and Services,Grants To Businesses,243,10-Jun-2016,1606-00551,0.00,2500.00,R,Aire Place Studios Cic,No
Http://opendatacommunities.org/id/metropolitan-district-council/leeds,Leeds City Council,30/06/2016,City Development,Economic Development,Capital,Other Costs,7,14-Jun-2016,1606-00552,0.00,461003.61,C,Aire Valley Land Llp,No
Http://opendatacommunities.org/id/metropolitan-district-council/leeds,Leeds City Council,30/06/2016,City Development,Economic Development,Capital,Other Costs,7,24-Jun-2016,1606-00553,0.00,248481.97,C,Aire Valley Land Llp,No
Http://opendatacommunities.org/id/metropolitan-district-council/leeds,Leeds City Council,30/06/2016,Adult Social Care,Services For Older People - 65 And Over,Third Party Payments,Residential Care Dementia,571,29-Jun-2016,1606-00554,0.00,31095.80,R,Aire View Residential Home,No
Http://opendatacommunities.org/id/metropolitan-district-council/leeds,Leeds City Council,30/06/2016,Adult Social Care,Services For Older People - 65 And Over,Third Party Payments,Residential,580,29-Jun-2016,1606-00555,0.00,15406.00,R,Aire View Residential Home,No
Http://opendatacommunities.org/id/metropolitan-district-council/leeds,Leeds City Council,30/06/2016,Public Health,Public Health,Third Party Payments,Public Health Commissioned Services,526,01-Jun-2016,1606-00556,0.00,3028.46,R,Aireborough Family Practice,No
Http://opendatacommunities.org/id/metropolitan-district-council/leeds,Leeds City Council,30/06/2016,Adult Social Care,Services For Older People - 65 And Over,Third Party Payments,Residential Care Dementia,571,29-Jun-2016,1606-00557,0.00,2175.36,R,Airedale (Goldsborough),No
Http://opendatacommunities.org/id/metropolitan-district-council/leeds,Leeds City Council,30/06/2016,Adult Social Care,Services For Older People - 65 And Over,Third Party Payments,Residential,580,29-Jun-2016,1606-00558,0.00,30896.19,R,Airedale (Goldsborough),No
Http://opendatacommunities.org/id/metropolitan-district-council/leeds,Leeds City Council,30/06/2016,Adult Social Care,Services For Older People Under 65 P/Dis,Third Party Payments,Residential,580,29-Jun-2016,1606-00559,0.00,2772.29,R,Airedale (Goldsborough),No
Http://opendatacommunities.org/id/metropolitan-district-council/leeds,Leeds City Council,30/06/2016,Civic Enterprise Leeds,Commercial Services,Supplies and Services,Operational Furniture And Equipment,203,09-Jun-2016,1606-00560,0.00,2394.00,R,Airedale Catering Equipment Ltd,No
Http://opendatacommunities.org/id/metropolitan-district-council/leeds,Leeds City Council,30/06/2016,Civic Enterprise Leeds,Commercial Services,Supplies and Services,Operational Furniture And Equipment,203,23-Jun-2016,1606-00561,0.00,2394.00,R,Airedale Catering Equipment Ltd,No
Http://opendatacommunities.org/id/metropolitan-district-council/leeds,Leeds City Council,30/06/2016,Civic Enterprise Leeds,Commercial Services,Supplies and Services,Operational Furniture And Equipment,203,24-Jun-2016,1606-00562,0.00,597.00,R,Airedale Catering Equipment Ltd,No
Http://opendatacommunities.org/id/metropolitan-district-council/leeds,Leeds City Council,30/06/2016,Adult Social Care,Assessment And Care Management,Employees,Training Costs,71,21-Jun-2016,1606-00563,0.00,300.00,R,Airedale Community Trading (Act) Ltd,No
Http://opendatacommunities.org/id/metropolitan-district-council/leeds,Leeds City Council,30/06/2016,Adult Social Care,Assessment And Care Management,Employees,Training Costs,71,21-Jun-2016,1606-00564,0.00,300.00,R,Airedale Community Trading (Act) Ltd,No
Http://opendatacommunities.org/id/metropolitan-district-council/leeds,Leeds City Council,30/06/2016,Adult Social Care,Assessment And Care Management,Employees,Training Costs,71,21-Jun-2016,1606-00565,0.00,300.00,R,Airedale Community Trading (Act) Ltd,No
Http://opendatacommunities.org/id/metropolitan-district-council/leeds,Leeds City Council,30/06/2016,Adult Social Care,Assessment And Care Management,Employees,Training Costs,71,21-Jun-2016,1606-00566,0.00,300.00,R,Airedale Community Trading (Act) Ltd,No
Http://opendatacommunities.org/id/metropolitan-district-council/leeds,Leeds City Council,30/06/2016,Adult Social Care,Assessment And Care Management,Employees,Training Costs,71,21-Jun-2016,1606-00567,0.00,300.00,R,Airedale Community Trading (Act) Ltd,No
Http://opendatacommunities.org/id/metropolitan-district-council/leeds,Leeds City Council,30/06/2016,Adult Social Care,Assessment And Care Management,Employees,Training Costs,71,21-Jun-2016,1606-00568,0.00,390.00,R,Airedale Community Trading (Act) Ltd,No
Http://opendatacommunities.org/id/metropolitan-district-council/leeds,Leeds City Council,30/06/2016,City Development,Recreation,Supplies and Services,Operational Materials,205,30-Jun-2016,1606-00569,0.00,3685.00,R,Airspace Solutions.Com Limited,No
Http://opendatacommunities.org/id/metropolitan-district-council/leeds,Leeds City Council,30/06/2016,Adult Social Care,Services For Adults Under 65 Mental/Dis,Third Party Payments,Fees - Level 4,520,01-Jun-2016,1606-00570,0.00,261.00,R,Ait Mitra,No
Http://opendatacommunities.org/id/metropolitan-district-council/leeds,Leeds City Council,30/06/2016,Adult Social Care,Services For Adults Under 65 Mental/Dis,Third Party Payments,Fees - Level 4,520,01-Jun-2016,1606-00571,0.00,175.00,R,Ait Mitra,No
Http://opendatacommunities.org/id/metropolitan-district-council/leeds,Leeds City Council,30/06/2016,Adult Social Care,Services For Adults Under 65 Mental/Dis,Third Party Payments,Fees - Level 4,520,01-Jun-2016,1606-00572,0.00,175.00,R,Ait Mitra,No
Http://opendatacommunities.org/id/metropolitan-district-council/leeds,Leeds City Council,30/06/2016,Adult Social Care,Services For Adults Under 65 Mental/Dis,Third Party Payments,Fees - Level 4,520,01-Jun-2016,1606-00573,0.00,175.00,R,Ait Mitra,No
Http://opendatacommunities.org/id/metropolitan-district-council/leeds,Leeds City Council,30/06/2016,Adult Social Care,Services For Adults Under 65 Mental/Dis,Third Party Payments,Fees - Level 4,520,01-Jun-2016,1606-00574,0.00,175.00,R,Ait Mitra,No
Http://opendatacommunities.org/id/metropolitan-district-council/leeds,Leeds City Council,30/06/2016,Adult Social Care,Services For Adults Under 65 Mental/Dis,Third Party Payments,Fees - Level 4,520,01-Jun-2016,1606-00575,0.00,175.00,R,Ait Mitra,No
Http://opendatacommunities.org/id/metropolitan-district-council/leeds,Leeds City Council,30/06/2016,Adult Social Care,Services For Adults Under 65 Mental/Dis,Third Party Payments,Services Provided By Other NHS Bodies,522,02-Jun-2016,1606-00576,0.00,175.00,R,Ait Mitra,No
Http://opendatacommunities.org/id/metropolitan-district-council/leeds,Leeds City Council,30/06/2016,Adult Social Care,Services For Adults Under 65 Mental/Dis,Third Party Payments,Fees - Level 4,520,03-Jun-2016,1606-00577,0.00,175.00,R,Ait Mitra,No
Http://opendatacommunities.org/id/metropolitan-district-council/leeds,Leeds City Council,30/06/2016,Adult Social Care,Services For Adults Under 65 Mental/Dis,Third Party Payments,Fees - Level 4,520,03-Jun-2016,1606-00578,0.00,175.00,R,Ait Mitra,No
Http://opendatacommunities.org/id/metropolitan-district-council/leeds,Leeds City Council,30/06/2016,Adult Social Care,Services For Adults Under 65 Mental/Dis,Third Party Payments,Fees - Level 4,520,03-Jun-2016,1606-00579,0.00,175.00,R,Ait Mitra,No
Http://opendatacommunities.org/id/metropolitan-district-council/leeds,Leeds City Council,30/06/2016,Adult Social Care,Services For Adults Under 65 Mental/Dis,Third Party Payments,Fees - Level 4,520,03-Jun-2016,1606-00580,0.00,175.00,R,Ait Mitra,No
Http://opendatacommunities.org/id/metropolitan-district-council/leeds,Leeds City Council,30/06/2016,Adult Social Care,Services For Adults Under 65 Mental/Dis,Third Party Payments,Fees - Level 4,520,03-Jun-2016,1606-00581,0.00,175.00,R,Ait Mitra,No
Http://opendatacommunities.org/id/metropolitan-district-council/leeds,Leeds City Council,30/06/2016,Adult Social Care,Services For Adults Under 65 Mental/Dis,Third Party Payments,Fees - Level 4,520,03-Jun-2016,1606-00582,0.00,175.00,R,Ait Mitra,No
Http://opendatacommunities.org/id/metropolitan-district-council/leeds,Leeds City Council,30/06/2016,Adult Social Care,Services For Adults Under 65 Mental/Dis,Third Party Payments,Fees - Level 4,520,03-Jun-2016,1606-00583,0.00,175.00,R,Ait Mitra,No
Http://opendatacommunities.org/id/metropolitan-district-council/leeds,Leeds City Council,30/06/2016,Adult Social Care,Services For Adults Under 65 Mental/Dis,Third Party Payments,Services Provided By Other NHS Bodies,522,03-Jun-2016,1606-00584,0.00,175.00,R,Ait Mitra,No
Http://opendatacommunities.org/id/metropolitan-district-council/leeds,Leeds City Council,30/06/2016,Adult Social Care,Services For Adults Under 65 Mental/Dis,Third Party Payments,Fees - Level 4,520,03-Jun-2016,1606-00585,0.00,175.00,R,Ait Mitra,No
Http://opendatacommunities.org/id/metropolitan-district-council/leeds,Leeds City Council,30/06/2016,Adult Social Care,Services For Adults Under 65 Mental/Dis,Third Party Payments,Fees - Level 4,520,08-Jun-2016,1606-00586,0.00,175.00,R,Ait Mitra,No
Http://opendatacommunities.org/id/metropolitan-district-council/leeds,Leeds City Council,30/06/2016,Adult Social Care,Services For Adults Under 65 Mental/Dis,Third Party Payments,Fees - Level 4,520,08-Jun-2016,1606-00587,0.00,175.00,R,Ait Mitra,No
Http://opendatacommunities.org/id/metropolitan-district-council/leeds,Leeds City Council,30/06/2016,Adult Social Care,Services For Adults Under 65 Mental/Dis,Third Party Payments,Fees - Level 4,520,08-Jun-2016,1606-00588,0.00,175.00,R,Ait Mitra,No
Http://opendatacommunities.org/id/metropolitan-district-council/leeds,Leeds City Council,30/06/2016,Adult Social Care,Services For Adults Under 65 Mental/Dis,Third Party Payments,Fees - Level 4,520,08-Jun-2016,1606-00589,0.00,261.00,R,Ait Mitra,No
Http://opendatacommunities.org/id/metropolitan-district-council/leeds,Leeds City Council,30/06/2016,Adult Social Care,Services For Adults Under 65 Mental/Dis,Third Party Payments,Services Provided By Other NHS Bodies,522,08-Jun-2016,1606-00590,0.00,175.00,R,Ait Mitra,No
Http://opendatacommunities.org/id/metropolitan-district-council/leeds,Leeds City Council,30/06/2016,Adult Social Care,Services For Adults Under 65 Mental/Dis,Third Party Payments,Services Provided By Other NHS Bodies,522,08-Jun-2016,1606-00591,0.00,175.00,R,Ait Mitra,No
Http://opendatacommunities.org/id/metropolitan-district-council/leeds,Leeds City Council,30/06/2016,Adult Social Care,Services For Adults Under 65 Mental/Dis,Third Party Payments,Fees - Level 4,520,08-Jun-2016,1606-00592,0.00,175.00,R,Ait Mitra,No
Http://opendatacommunities.org/id/metropolitan-district-council/leeds,Leeds City Council,30/06/2016,Adult Social Care,Services For Adults Under 65 Mental/Dis,Third Party Payments,Services Provided By Other NHS Bodies,522,08-Jun-2016,1606-00593,0.00,175.00,R,Ait Mitra,No
Http://opendatacommunities.org/id/metropolitan-district-council/leeds,Leeds City Council,30/06/2016,Adult Social Care,Services For Adults Under 65 Mental/Dis,Third Party Payments,Fees - Level 4,520,10-Jun-2016,1606-00594,0.00,175.00,R,Ait Mitra,No
Http://opendatacommunities.org/id/metropolitan-district-council/leeds,Leeds City Council,30/06/2016,Adult Social Care,Services For Adults Under 65 Mental/Dis,Third Party Payments,Fees - Level 4,520,10-Jun-2016,1606-00595,0.00,175.00,R,Ait Mitra,No
Http://opendatacommunities.org/id/metropolitan-district-council/leeds,Leeds City Council,30/06/2016,Adult Social Care,Services For Adults Under 65 Mental/Dis,Third Party Payments,Fees - Level 4,520,10-Jun-2016,1606-00596,0.00,175.00,R,Ait Mitra,No
Http://opendatacommunities.org/id/metropolitan-district-council/leeds,Leeds City Council,30/06/2016,Adult Social Care,Services For Adults Under 65 Mental/Dis,Third Party Payments,Fees - Level 4,520,10-Jun-2016,1606-00597,0.00,175.00,R,Ait Mitra,No
Http://opendatacommunities.org/id/metropolitan-district-council/leeds,Leeds City Council,30/06/2016,Adult Social Care,Services For Adults Under 65 Mental/Dis,Third Party Payments,Services Provided By Other NHS Bodies,522,15-Jun-2016,1606-00598,0.00,175.00,R,Ait Mitra,No
Http://opendatacommunities.org/id/metropolitan-district-council/leeds,Leeds City Council,30/06/2016,Adult Social Care,Services For Adults Under 65 Mental/Dis,Third Party Payments,Services Provided By Other NHS Bodies,522,15-Jun-2016,1606-00599,0.00,175.00,R,Ait Mitra,No
Http://opendatacommunities.org/id/metropolitan-district-council/leeds,Leeds City Council,30/06/2016,Adult Social Care,Services For Adults Under 65 Mental/Dis,Third Party Payments,Services Provided By Other NHS Bodies,522,15-Jun-2016,1606-00600,0.00,175.00,R,Ait Mitra,No
Http://opendatacommunities.org/id/metropolitan-district-council/leeds,Leeds City Council,30/06/2016,Adult Social Care,Services For Adults Under 65 Mental/Dis,Third Party Payments,Services Provided By Other NHS Bodies,522,15-Jun-2016,1606-00601,0.00,175.00,R,Ait Mitra,No
Http://opendatacommunities.org/id/metropolitan-district-council/leeds,Leeds City Council,30/06/2016,Adult Social Care,Services For Adults Under 65 Mental/Dis,Third Party Payments,Services Provided By Other NHS Bodies,522,16-Jun-2016,1606-00602,0.00,261.00,R,Ait Mitra,No
Http://opendatacommunities.org/id/metropolitan-district-council/leeds,Leeds City Council,30/06/2016,Adult Social Care,Services For Adults Under 65 Mental/Dis,Third Party Payments,Services Provided By Other NHS Bodies,522,16-Jun-2016,1606-00603,0.00,175.00,R,Ait Mitra,No
Http://opendatacommunities.org/id/metropolitan-district-council/leeds,Leeds City Council,30/06/2016,Adult Social Care,Services For Adults Under 65 Mental/Dis,Third Party Payments,Services Provided By Other NHS Bodies,522,16-Jun-2016,1606-00604,0.00,175.00,R,Ait Mitra,No
Http://opendatacommunities.org/id/metropolitan-district-council/leeds,Leeds City Council,30/06/2016,Adult Social Care,Services For Adults Under 65 Mental/Dis,Third Party Payments,Services Provided By Other NHS Bodies,522,16-Jun-2016,1606-00605,0.00,175.00,R,Ait Mitra,No
Http://opendatacommunities.org/id/metropolitan-district-council/leeds,Leeds City Council,30/06/2016,Adult Social Care,Services For Adults Under 65 Mental/Dis,Third Party Payments,Services Provided By Other NHS Bodies,522,16-Jun-2016,1606-00606,0.00,175.00,R,Ait Mitra,No
Http://opendatacommunities.org/id/metropolitan-district-council/leeds,Leeds City Council,30/06/2016,Adult Social Care,Services For Adults Under 65 Mental/Dis,Third Party Payments,Services Provided By Other NHS Bodies,522,16-Jun-2016,1606-00607,0.00,175.00,R,Ait Mitra,No
Http://opendatacommunities.org/id/metropolitan-district-council/leeds,Leeds City Council,30/06/2016,Adult Social Care,Services For Adults Under 65 Mental/Dis,Third Party Payments,Services Provided By Other NHS Bodies,522,16-Jun-2016,1606-00608,0.00,175.00,R,Ait Mitra,No
Http://opendatacommunities.org/id/metropolitan-district-council/leeds,Leeds City Council,30/06/2016,Adult Social Care,Services For Adults Under 65 Mental/Dis,Third Party Payments,Services Provided By Other NHS Bodies,522,16-Jun-2016,1606-00609,0.00,175.00,R,Ait Mitra,No
Http://opendatacommunities.org/id/metropolitan-district-council/leeds,Leeds City Council,30/06/2016,Adult Social Care,Services For Adults Under 65 Mental/Dis,Third Party Payments,Services Provided By Other NHS Bodies,522,16-Jun-2016,1606-00610,0.00,175.00,R,Ait Mitra,No
Http://opendatacommunities.org/id/metropolitan-district-council/leeds,Leeds City Council,30/06/2016,Adult Social Care,Services For Adults Under 65 Mental/Dis,Third Party Payments,Services Provided By Other NHS Bodies,522,16-Jun-2016,1606-00611,0.00,175.00,R,Ait Mitra,No
Http://opendatacommunities.org/id/metropolitan-district-council/leeds,Leeds City Council,30/06/2016,Adult Social Care,Services For Adults Under 65 Mental/Dis,Third Party Payments,Services Provided By Other NHS Bodies,522,16-Jun-2016,1606-00612,0.00,175.00,R,Ait Mitra,No
Http://opendatacommunities.org/id/metropolitan-district-council/leeds,Leeds City Council,30/06/2016,Adult Social Care,Services For Adults Under 65 Mental/Dis,Third Party Payments,Services Provided By Other NHS Bodies,522,21-Jun-2016,1606-00613,0.00,175.00,R,Ait Mitra,No
Http://opendatacommunities.org/id/metropolitan-district-council/leeds,Leeds City Council,30/06/2016,Adult Social Care,Services For Adults Under 65 Mental/Dis,Third Party Payments,Services Provided By Other NHS Bodies,522,21-Jun-2016,1606-00614,0.00,175.00,R,Ait Mitra,No
Http://opendatacommunities.org/id/metropolitan-district-council/leeds,Leeds City Council,30/06/2016,Adult Social Care,Services For Adults Under 65 Mental/Dis,Third Party Payments,Services Provided By Other NHS Bodies,522,21-Jun-2016,1606-00615,0.00,175.00,R,Ait Mitra,No
Http://opendatacommunities.org/id/metropolitan-district-council/leeds,Leeds City Council,30/06/2016,Adult Social Care,Services For Adults Under 65 Mental/Dis,Third Party Payments,Services Provided By Other NHS Bodies,522,21-Jun-2016,1606-00616,0.00,175.00,R,Ait Mitra,No
Http://opendatacommunities.org/id/metropolitan-district-council/leeds,Leeds City Council,30/06/2016,Adult Social Care,Services For Adults Under 65 Mental/Dis,Third Party Payments,Services Provided By Other NHS Bodies,522,21-Jun-2016,1606-00617,0.00,175.00,R,Ait Mitra,No
Http://opendatacommunities.org/id/metropolitan-district-council/leeds,Leeds City Council,30/06/2016,Adult Social Care,Services For Adults Under 65 Mental/Dis,Third Party Payments,Services Provided By Other NHS Bodies,522,21-Jun-2016,1606-00618,0.00,175.00,R,Ait Mitra,No
Http://opendatacommunities.org/id/metropolitan-district-council/leeds,Leeds City Council,30/06/2016,Adult Social Care,Services For Adults Under 65 Mental/Dis,Third Party Payments,Services Provided By Other NHS Bodies,522,21-Jun-2016,1606-00619,0.00,175.00,R,Ait Mitra,No
Http://opendatacommunities.org/id/metropolitan-district-council/leeds,Leeds City Council,30/06/2016,Adult Social Care,Services For Adults Under 65 Mental/Dis,Third Party Payments,Services Provided By Other NHS Bodies,522,21-Jun-2016,1606-00620,0.00,175.00,R,Ait Mitra,No
Http://opendatacommunities.org/id/metropolitan-district-council/leeds,Leeds City Council,30/06/2016,Adult Social Care,Services For Adults Under 65 Mental/Dis,Third Party Payments,Services Provided By Other NHS Bodies,522,21-Jun-2016,1606-00621,0.00,175.00,R,Ait Mitra,No
Http://opendatacommunities.org/id/metropolitan-district-council/leeds,Leeds City Council,30/06/2016,Adult Social Care,Services For Adults Under 65 Mental/Dis,Third Party Payments,Services Provided By Other NHS Bodies,522,21-Jun-2016,1606-00622,0.00,175.00,R,Ait Mitra,No
Http://opendatacommunities.org/id/metropolitan-district-council/leeds,Leeds City Council,30/06/2016,Adult Social Care,Services For Adults Under 65 Mental/Dis,Third Party Payments,Services Provided By Other NHS Bodies,522,21-Jun-2016,1606-00623,0.00,175.00,R,Ait Mitra,No
Http://opendatacommunities.org/id/metropolitan-district-council/leeds,Leeds City Council,30/06/2016,Adult Social Care,Services For Adults Under 65 Mental/Dis,Third Party Payments,Services Provided By Other NHS Bodies,522,21-Jun-2016,1606-00624,0.00,190.00,R,Ait Mitra,No
Http://opendatacommunities.org/id/metropolitan-district-council/leeds,Leeds City Council,30/06/2016,Adult Social Care,Services For Adults Under 65 Mental/Dis,Third Party Payments,Services Provided By Other NHS Bodies,522,21-Jun-2016,1606-00625,0.00,175.00,R,Ait Mitra,No
Http://opendatacommunities.org/id/metropolitan-district-council/leeds,Leeds City Council,30/06/2016,Adult Social Care,Services For Adults Under 65 Mental/Dis,Third Party Payments,Services Provided By Other NHS Bodies,522,24-Jun-2016,1606-00626,0.00,175.00,R,Ait Mitra,No
Http://opendatacommunities.org/id/metropolitan-district-council/leeds,Leeds City Council,30/06/2016,Adult Social Care,Services For Adults Under 65 Mental/Dis,Third Party Payments,Services Provided By Other NHS Bodies,522,24-Jun-2016,1606-00627,0.00,175.00,R,Ait Mitra,No
Http://opendatacommunities.org/id/metropolitan-district-council/leeds,Leeds City Council,30/06/2016,Adult Social Care,Services For Adults Under 65 Mental/Dis,Third Party Payments,Services Provided By Other NHS Bodies,522,24-Jun-2016,1606-00628,0.00,175.00,R,Ait Mitra,No
Http://opendatacommunities.org/id/metropolitan-district-council/leeds,Leeds City Council,30/06/2016,Adult Social Care,Services For Adults Under 65 Mental/Dis,Third Party Payments,Services Provided By Other NHS Bodies,522,24-Jun-2016,1606-00629,0.00,175.00,R,Ait Mitra,No
Http://opendatacommunities.org/id/metropolitan-district-council/leeds,Leeds City Council as Accountable Body,30/06/2016,Social Services Pooled Budgets,Jcs For People With Learning Disabilitie,Third Party Payments,Residential,580,29-Jun-2016,1606-00630,0.00,6173.24,R,Aitch Care Homes,No
Http://opendatacommunities.org/id/metropolitan-district-council/leeds,Leeds City Council,30/06/2016,Adult Social Care,Services For Older People - 65 And Over,Third Party Payments,Home Care,568,10-Jun-2016,1606-00631,0.00,17.12,R,Aj Social Care,No
Http://opendatacommunities.org/id/metropolitan-district-council/leeds,Leeds City Council,30/06/2016,Adult Social Care,Services For Older People - 65 And Over,Third Party Payments,Home Care,568,28-Jun-2016,1606-00632,0.00,16244.38,R,Aj Social Care,No
Http://opendatacommunities.org/id/metropolitan-district-council/leeds,Leeds City Council,30/06/2016,Adult Social Care,Services For Older People Under 65 P/Dis,Third Party Payments,Home Care,568,28-Jun-2016,1606-00633,0.00,7519.13,R,Aj Social Care,No
Http://opendatacommunities.org/id/metropolitan-district-council/leeds,Leeds City Council,30/06/2016,Environment & Housing,Leeds Building Services,Supplies and Services,Operational Furniture And Equipment,203,02-Jun-2016,1606-00634,0.00,41.00,R,Ajm Fixings & Power Tools Ltd,No
Http://opendatacommunities.org/id/metropolitan-district-council/leeds,Leeds City Council,30/06/2016,Environment & Housing,Leeds Building Services,Supplies and Services,Stores - Central And Other Depots,005,02-Jun-2016,1606-00635,0.00,237.60,R,Ajm Fixings & Power Tools Ltd,No
Http://opendatacommunities.org/id/metropolitan-district-council/leeds,Leeds City Council,30/06/2016,Environment & Housing,Leeds Building Services,Supplies and Services,Operational Furniture And Equipment,203,02-Jun-2016,1606-00636,0.00,338.00,R,Ajm Fixings & Power Tools Ltd,No
Http://opendatacommunities.org/id/metropolitan-district-council/leeds,Leeds City Council,30/06/2016,Environment & Housing,Leeds Building Services,Supplies and Services,Stores - Central And Other Depots,005,03-Jun-2016,1606-00637,0.00,534.05,R,Ajm Fixings & Power Tools Ltd,No
Http://opendatacommunities.org/id/metropolitan-district-council/leeds,Leeds City Council,30/06/2016,Environment & Housing,Leeds Building Services,Supplies and Services,Stores - Central And Other Depots,005,10-Jun-2016,1606-00638,0.00,661.00,R,Ajm Fixings & Power Tools Ltd,No
Http://opendatacommunities.org/id/metropolitan-district-council/leeds,Leeds City Council,30/06/2016,Environment & Housing,Leeds Building Services,Supplies and Services,Operational Furniture And Equipment,203,10-Jun-2016,1606-00639,0.00,291.40,R,Ajm Fixings & Power Tools Ltd,No
Http://opendatacommunities.org/id/metropolitan-district-council/leeds,Leeds City Council,30/06/2016,Environment & Housing,Leeds Building Services,Supplies and Services,Operational Furniture And Equipment,203,10-Jun-2016,1606-00640,0.00,398.61,R,Ajm Fixings & Power Tools Ltd,No
Http://opendatacommunities.org/id/metropolitan-district-council/leeds,Leeds City Council,30/06/2016,Environment & Housing,Leeds Building Services,Supplies and Services,Operational Furniture And Equipment,203,10-Jun-2016,1606-00641,0.00,257.40,R,Ajm Fixings & Power Tools Ltd,No
Http://opendatacommunities.org/id/metropolitan-district-council/leeds,Leeds City Council,30/06/2016,Environment & Housing,Leeds Building Services,Supplies and Services,Operational Furniture And Equipment,203,10-Jun-2016,1606-00642,0.00,204.75,R,Ajm Fixings & Power Tools Ltd,No
Http://opendatacommunities.org/id/metropolitan-district-council/leeds,Leeds City Council,30/06/2016,Environment & Housing,Leeds Building Services,Supplies and Services,Operational Furniture And Equipment,203,15-Jun-2016,1606-00643,0.00,165.89,R,Ajm Fixings & Power Tools Ltd,No
Http://opendatacommunities.org/id/metropolitan-district-council/leeds,Leeds City Council,30/06/2016,Environment & Housing,Leeds Building Services,Supplies and Services,Operational Furniture And Equipment,203,15-Jun-2016,1606-00644,0.00,129.00,R,Ajm Fixings & Power Tools Ltd,No
Http://opendatacommunities.org/id/metropolitan-district-council/leeds,Leeds City Council,30/06/2016,Environment & Housing,Leeds Building Services,Supplies and Services,Stores - Central And Other Depots,005,17-Jun-2016,1606-00645,0.00,335.50,R,Ajm Fixings & Power Tools Ltd,No
Http://opendatacommunities.org/id/metropolitan-district-council/leeds,Leeds City Council,30/06/2016,Environment & Housing,Leeds Building Services,Supplies and Services,Operational Furniture And Equipment,203,21-Jun-2016,1606-00646,0.00,399.00,R,Ajm Fixings & Power Tools Ltd,No
Http://opendatacommunities.org/id/metropolitan-district-council/leeds,Leeds City Council,30/06/2016,Environment & Housing,Leeds Building Services,Supplies and Services,Operational Furniture And Equipment,203,21-Jun-2016,1606-00647,0.00,235.00,R,Ajm Fixings & Power Tools Ltd,No
Http://opendatacommunities.org/id/metropolitan-district-council/leeds,Leeds City Council,30/06/2016,Environment & Housing,Leeds Building Services,Supplies and Services,Operational Materials,205,23-Jun-2016,1606-00648,0.00,33.65,R,Ajm Fixings & Power Tools Ltd,No
Http://opendatacommunities.org/id/metropolitan-district-council/leeds,Leeds City Council,30/06/2016,Environment & Housing,Leeds Building Services,Supplies and Services,Clothing & Uniforms,241,24-Jun-2016,1606-00649,0.00,280.50,R,Ajm Fixings & Power Tools Ltd,No
Http://opendatacommunities.org/id/metropolitan-district-council/leeds,Leeds City Council,30/06/2016,Environment & Housing,Leeds Building Services,Supplies and Services,Stores - Central And Other Depots,005,24-Jun-2016,1606-00650,0.00,345.60,R,Ajm Fixings & Power Tools Ltd,No
Http://opendatacommunities.org/id/metropolitan-district-council/leeds,Leeds City Council,30/06/2016,Environment & Housing,Leeds Building Services,Supplies and Services,Operational Furniture And Equipment,203,24-Jun-2016,1606-00651,0.00,58.55,R,Ajm Fixings & Power Tools Ltd,No
Http://opendatacommunities.org/id/metropolitan-district-council/leeds,Leeds City Council,30/06/2016,Adult Social Care,Services For Older People - 65 And Over,Third Party Payments,Nursing Home,570,29-Jun-2016,1606-00652,0.00,1261.04,R,Akari Care Ltd,No
Http://opendatacommunities.org/id/metropolitan-district-council/leeds,Leeds City Council,30/06/2016,Childrens Services,Safeguarding Targeted & Specialist,Supplies and Services,General Amenity For Clients/Residents,285,30-Jun-2016,1606-00653,0.00,5.00,R,REDACTED PERSONAL DATA,No
Http://opendatacommunities.org/id/metropolitan-district-council/leeds,Leeds City Council,30/06/2016,Childrens Services,Safeguarding Targeted & Specialist,Transport,Public Transport Expenses,310,30-Jun-2016,1606-00654,0.00,24.80,R,REDACTED PERSONAL DATA,No
Http://opendatacommunities.org/id/metropolitan-district-council/leeds,Leeds City Council,30/06/2016,Environment & Housing,Parks and Countryside,Supplies and Services,Operational Materials,205,03-Jun-2016,1606-00655,0.00,1646.96,R,Akc Systems Ltd,No
Http://opendatacommunities.org/id/metropolitan-district-council/leeds,Leeds City Council,30/06/2016,Environment & Housing,Parks and Countryside,Supplies and Services,Operational Materials,205,24-Jun-2016,1606-00656,0.00,503.35,R,Akc Systems Ltd,No
Http://opendatacommunities.org/id/metropolitan-district-council/leeds,Leeds City Council,30/06/2016,Central & Corporate,Democratic Services ,Supplies and Services,Supplies and Services,267,19-May-2016,1606-00657,0.00,670.00,R,Alan Brown Flowers,Yes
Http://opendatacommunities.org/id/metropolitan-district-council/leeds,Leeds City Council,30/06/2016,Childrens Services,Learning Skills & Universal,Supplies and Services,Bought In Professional Services,277,15-Jun-2016,1606-00658,0.00,250.00,R,Alan Pergusey,No
Http://opendatacommunities.org/id/metropolitan-district-council/leeds,Leeds City Council,30/06/2016,Childrens Services,Learning Skills & Universal,Third Party Payments,Services Rendered By Other Organisations,511,03-Jun-2016,1606-00659,0.00,40.33,R,Alanna Cardiss,No
Http://opendatacommunities.org/id/metropolitan-district-council/leeds,Leeds City Council,30/06/2016,Environment & Housing,Waste Management,Supplies and Services,Other Hired And Contracted Services,265,03-Jun-2016,1606-00660,0.00,116.75,R,Alcontrol Uk Ltd,No
Http://opendatacommunities.org/id/metropolitan-district-council/leeds,Leeds City Council,30/06/2016,Childrens Services,Safeguarding Targeted & Specialist,Support Services,Legal Disbursements,411,16-Jun-2016,1606-00661,0.00,252.00,R,Alere Toxicology Plc,No
Http://opendatacommunities.org/id/metropolitan-district-council/leeds,Leeds City Council,30/06/2016,Childrens Services,Safeguarding Targeted & Specialist,Support Services,Legal Disbursements,411,16-Jun-2016,1606-00662,0.00,72.00,R,Alere Toxicology Plc,No
Http://opendatacommunities.org/id/metropolitan-district-council/leeds,Leeds City Council,30/06/2016,Childrens Services,Safeguarding Targeted & Specialist,Support Services,Legal Disbursements,411,30-Jun-2016,1606-00663,0.00,25.00,R,Alere Toxicology Plc,No
Http://opendatacommunities.org/id/metropolitan-district-council/leeds,Leeds City Council,30/06/2016,Childrens Services,Safeguarding Targeted & Specialist,Supplies and Services,General Amenity For Clients/Residents,285,03-Jun-2016,1606-00664,0.00,19.95,R,REDACTED PERSONAL DATA,No
Http://opendatacommunities.org/id/metropolitan-district-council/leeds,Leeds City Council,30/06/2016,Childrens Services,Safeguarding Targeted & Specialist,Transport,Public Transport Expenses,310,03-Jun-2016,1606-00665,0.00,4.80,R,REDACTED PERSONAL DATA,No
Http://opendatacommunities.org/id/metropolitan-district-council/leeds,Leeds City Council,30/06/2016,Childrens Services,Safeguarding Targeted & Specialist,Support Services,Legal Disbursements,411,08-Jun-2016,1606-00666,0.00,451.00,R,Alex Taylor,No
Http://opendatacommunities.org/id/metropolitan-district-council/leeds,Leeds City Council,30/06/2016,Childrens Services,Safeguarding Targeted & Specialist,Support Services,Legal Disbursements,411,17-Jun-2016,1606-00667,0.00,632.00,R,Alex Taylor,No
Http://opendatacommunities.org/id/metropolitan-district-council/leeds,Leeds City Council,30/06/2016,Adult Social Care,Services For Older People Under 65 P/Dis,Third Party Payments,Residential,580,06-Jun-2016,1606-00668,0.00,1783.64,R,Alexander Residential Home,No
Http://opendatacommunities.org/id/metropolitan-district-council/leeds,Leeds City Council,30/06/2016,Adult Social Care,Services For Older People - 65 And Over,Third Party Payments,Residential Care Dementia,571,29-Jun-2016,1606-00669,0.00,6248.58,R,Alexander Residential Home,No
Http://opendatacommunities.org/id/metropolitan-district-council/leeds,Leeds City Council,30/06/2016,Adult Social Care,Services For Older People Under 65 P/Dis,Third Party Payments,Residential,580,29-Jun-2016,1606-00670,0.00,1250.12,R,Alexander Residential Home,No
Http://opendatacommunities.org/id/metropolitan-district-council/leeds,Leeds City Council,30/06/2016,Adult Social Care,Services For Older People - 65 And Over,Third Party Payments,Residential,580,29-Jun-2016,1606-00671,0.00,14193.70,R,Alexander Residential Home,No
Http://opendatacommunities.org/id/metropolitan-district-council/leeds,Leeds City Council,30/06/2016,Adult Social Care,Services For Older People Under 65 P/Dis,Third Party Payments,Residential Care Dementia,571,30-Jun-2016,1606-00672,0.00,3556.00,R,Alexander Residential Home,No
Http://opendatacommunities.org/id/metropolitan-district-council/leeds,Leeds City Council,30/06/2016,Adult Social Care,Services For Older People - 65 And Over,Third Party Payments,Residential,580,30-Jun-2016,1606-00673,0.00,10960.00,R,Alexander Residential Home,No
Http://opendatacommunities.org/id/metropolitan-district-council/leeds,Leeds City Council,30/06/2016,Citizens and Communities,Customer Access,Supplies and Services,Other Hired And Contracted Services,265,02-Jun-2016,1606-00674,0.00,998.75,R,Alexandra Costenco,No
Http://opendatacommunities.org/id/metropolitan-district-council/leeds,Leeds City Council,30/06/2016,Citizens and Communities,Customer Access,Supplies and Services,Other Hired And Contracted Services,265,02-Jun-2016,1606-00675,0.00,331.00,R,Alexandra Costenco,No
Http://opendatacommunities.org/id/metropolitan-district-council/leeds,Leeds City Council,30/06/2016,Adult Social Care,Services For Older People - 65 And Over,Third Party Payments,Residential Care Dementia,571,29-Jun-2016,1606-00676,0.00,1511.28,R,Alexandra Court,No
Http://opendatacommunities.org/id/metropolitan-district-council/leeds,Leeds City Council,30/06/2016,Adult Social Care,Services For Older People - 65 And Over,Third Party Payments,Residential,580,29-Jun-2016,1606-00677,0.00,14096.37,R,Alexandra Court,No
Http://opendatacommunities.org/id/metropolitan-district-council/leeds,Leeds City Council,30/06/2016,Citizens and Communities,Customer Access,Supplies and Services,Other Hired And Contracted Services,265,02-Jun-2016,1606-00678,0.00,1105.00,R,Alexandra Hirst,No
Http://opendatacommunities.org/id/metropolitan-district-council/leeds,Leeds City Council,30/06/2016,Childrens Services,Learning Skills & Universal,Third Party Payments,Services Rendered By Other Organisations,511,03-Jun-2016,1606-00679,0.00,31.67,R,Alexandra Leigh,No
Http://opendatacommunities.org/id/metropolitan-district-council/leeds,Leeds City Council,30/06/2016,Environment & Housing,Leeds Building Services,Supplies and Services,Other Hired And Contracted Services,265,03-Jun-2016,1606-00680,0.00,6903.54,R,Alfred Bagnall & Sons (Leeds) Ltd,No
Http://opendatacommunities.org/id/metropolitan-district-council/leeds,Leeds City Council,30/06/2016,Environment & Housing,Leeds Building Services,Supplies and Services,Other Hired And Contracted Services,265,10-Jun-2016,1606-00681,0.00,3000.00,R,Alfred Bagnall & Sons (Leeds) Ltd,No
Http://opendatacommunities.org/id/metropolitan-district-council/leeds,Leeds City Council,30/06/2016,Citizens and Communities,Communities,Supplies and Services,Other Hired And Contracted Services,265,27-Jun-2016,1606-00682,0.00,450.00,R,Alfred Bagnall & Sons (Leeds) Ltd,No
Http://opendatacommunities.org/id/metropolitan-district-council/leeds,Leeds City Council,30/06/2016,Childrens Services,Safeguarding Targeted & Specialist,Third Party Payments,Section 17,551,02-Jun-2016,1606-00683,0.00,53.90,R,REDACTED PERSONAL DATA,No
Http://opendatacommunities.org/id/metropolitan-district-council/leeds,Leeds City Council,30/06/2016,Childrens Services,Safeguarding Targeted & Specialist,Third Party Payments,Section 17,551,09-Jun-2016,1606-00684,0.00,53.90,R,REDACTED PERSONAL DATA,No
Http://opendatacommunities.org/id/metropolitan-district-council/leeds,Leeds City Council,30/06/2016,Childrens Services,Safeguarding Targeted & Specialist,Third Party Payments,Section 17,551,16-Jun-2016,1606-00685,0.00,53.90,R,REDACTED PERSONAL DATA,No
Http://opendatacommunities.org/id/metropolitan-district-council/leeds,Leeds City Council,30/06/2016,Childrens Services,Safeguarding Targeted & Specialist,Third Party Payments,Section 17,551,23-Jun-2016,1606-00686,0.00,53.90,R,REDACTED PERSONAL DATA,No
Http://opendatacommunities.org/id/metropolitan-district-council/leeds,Leeds City Council,30/06/2016,Childrens Services,Learning Skills & Universal,Third Party Payments,Services Rendered By Other Organisations,511,03-Jun-2016,1606-00687,0.00,25.67,R,Alison Brook,No
Http://opendatacommunities.org/id/metropolitan-district-council/leeds,Leeds City Council,30/06/2016,City Development,Libraries  Arts & Heritage,Supplies and Services,Other Hired And Contracted Services,265,10-Jun-2016,1606-00688,0.00,100.00,R,Alison Smith,No
Http://opendatacommunities.org/id/metropolitan-district-council/leeds,Leeds City Council,30/06/2016,Civic Enterprise Leeds,Commercial Services,Supplies and Services,Other Hired And Contracted Services,265,03-Jun-2016,1606-00689,0.00,61.75,R,REDACTED PERSONAL DATA,No
Http://opendatacommunities.org/id/metropolitan-district-council/leeds,Leeds City Council,30/06/2016,Civic Enterprise Leeds,Commercial Services,Supplies and Services,Other Hired And Contracted Services,265,03-Jun-2016,1606-00690,0.00,211.38,R,REDACTED PERSONAL DATA,No
Http://opendatacommunities.org/id/metropolitan-district-council/leeds,Leeds City Council,30/06/2016,City Development,Economic Development,Supplies and Services,Publication And Promotion,267,17-Jun-2016,1606-00691,0.00,2790.50,R,Alive And Kicking Theatre Company Ltd,No
Http://opendatacommunities.org/id/metropolitan-district-council/leeds,Leeds City Council,30/06/2016,City Development,Economic Development,Supplies and Services,Publication And Promotion,267,17-Jun-2016,1606-00692,0.00,1000.00,R,Alive And Kicking Theatre Company Ltd,No
Http://opendatacommunities.org/id/metropolitan-district-council/leeds,Leeds City Council,30/06/2016,Childrens Services,Safeguarding Targeted & Specialist,Transfer Payments,Leaving Care Allowances,634,24-Jun-2016,1606-00693,0.00,75.00,R,All Abode,No
Http://opendatacommunities.org/id/metropolitan-district-council/leeds,Leeds City Council,30/06/2016,Environment & Housing,Leeds Building Services,Supplies and Services,Other Hired And Contracted Services,265,10-Jun-2016,1606-00694,0.00,195.00,R,All Clear Solutions Ltd,No
Http://opendatacommunities.org/id/metropolitan-district-council/leeds,Leeds City Council,30/06/2016,Environment & Housing,Leeds Building Services,Supplies and Services,Other Hired And Contracted Services,265,17-Jun-2016,1606-00695,0.00,195.00,R,All Clear Solutions Ltd,No
Http://opendatacommunities.org/id/metropolitan-district-council/leeds,Leeds City Council,30/06/2016,Environment & Housing,Leeds Building Services,Supplies and Services,Other Hired And Contracted Services,265,17-Jun-2016,1606-00696,0.00,195.00,R,All Clear Solutions Ltd,No
Http://opendatacommunities.org/id/metropolitan-district-council/leeds,Leeds City Council,30/06/2016,City Development,Recreation,Employees,Training & Development,70,17-Jun-2016,1606-00697,0.00,395.00,R,All England Netball Association Ltd,No
Http://opendatacommunities.org/id/metropolitan-district-council/leeds,Leeds City Council,30/06/2016,Adult Social Care,Home Care Services,Premises,General Maintenance,104,20-Jun-2016,1606-00698,0.00,60.00,R,All Safe & Secure Ltd,No
Http://opendatacommunities.org/id/metropolitan-district-council/leeds,Leeds City Council,30/06/2016,Adult Social Care,Services For Older People - 65 And Over,Third Party Payments,Home Care,568,01-Jun-2016,1606-00699,0.00,519.00,R,All Seasons,No
Http://opendatacommunities.org/id/metropolitan-district-council/leeds,Leeds City Council,30/06/2016,Adult Social Care,Services For Older People - 65 And Over,Third Party Payments,Home Care,568,20-Jun-2016,1606-00700,0.00,2778.25,R,All Seasons,No
Http://opendatacommunities.org/id/metropolitan-district-council/leeds,Leeds City Council,30/06/2016,Childrens Services,Learning Skills & Universal,Third Party Payments,Services Rendered By Other Organisations,511,03-Jun-2016,1606-00701,0.00,408.33,R,All Stars Childcare,No
Http://opendatacommunities.org/id/metropolitan-district-council/leeds,Leeds City Council as Accountable Body,30/06/2016,Social Services Pooled Budgets,Jcs For People With Learning Disabilitie,Third Party Payments,Sheltered Accommodation,569,29-Jun-2016,1606-00702,0.00,9368.81,R,Allerton Avenue,No
Http://opendatacommunities.org/id/metropolitan-district-council/leeds,Leeds City Council,30/06/2016,Environment & Housing,Parks and Countryside,Supplies and Services,Non-Recurring Grants,227,20-Jun-2016,1606-00703,0.00,1000.00,R,Allerton Bywater Parish Council,No
Http://opendatacommunities.org/id/metropolitan-district-council/leeds,Leeds City Council,30/06/2016,Strategic Accounts,Miscellaneous,Supplies and Services,Non-Recurring Grants,227,27-Jun-2016,1606-00704,0.00,300.00,R,Allerton Bywater Parish Council,No
Http://opendatacommunities.org/id/metropolitan-district-council/leeds,Leeds City Council,30/06/2016,Public Health,Public Health,Third Party Payments,Public Health Commissioned Services,526,01-Jun-2016,1606-00705,0.00,2568.74,R,Allerton Medical Centre,No
Http://opendatacommunities.org/id/metropolitan-district-council/leeds,Leeds City Council,30/06/2016,Environment & Housing,Parks and Countryside,Supplies and Services,Operational Materials,205,17-Jun-2016,1606-00706,0.00,5.00,R,Allflex Europe (Uk) Ltd,No
Http://opendatacommunities.org/id/metropolitan-district-council/leeds,Leeds City Council,30/06/2016,Environment & Housing,Parks and Countryside,Supplies and Services,Operational Materials,205,24-Jun-2016,1606-00707,0.00,20.00,R,Allflex Europe (Uk) Ltd,No
Http://opendatacommunities.org/id/metropolitan-district-council/leeds,Leeds City Council,30/06/2016,Central & Corporate,Finance,Supplies and Services,Bank Charges,263,01-Jun-2016,1606-00708,0.00,-127.63,R,Alliance & Leicester Commercial Bank,No
Http://opendatacommunities.org/id/metropolitan-district-council/leeds,Leeds City Council,30/06/2016,Strategic Landlord,Housing Management,Supplies and Services,Other Hired And Contracted Services,265,06-Jun-2016,1606-00709,0.00,310.60,R,Alliance & Leicester Commercial Bank,No
Http://opendatacommunities.org/id/metropolitan-district-council/leeds,Leeds City Council,30/06/2016,Central & Corporate,Finance,Supplies and Services,Bank Charges,263,06-Jun-2016,1606-00710,0.00,2.53,R,Alliance & Leicester Commercial Bank,No
Http://opendatacommunities.org/id/metropolitan-district-council/leeds,Leeds City Council,30/06/2016,Central & Corporate,Finance,Supplies and Services,Bank Charges,263,06-Jun-2016,1606-00711,0.00,357.72,R,Alliance & Leicester Commercial Bank,No
Http://opendatacommunities.org/id/metropolitan-district-council/leeds,Leeds City Council,30/06/2016,Central & Corporate,Finance,Supplies and Services,Bank Charges,263,06-Jun-2016,1606-00712,0.00,1003.83,R,Alliance & Leicester Commercial Bank,No
Http://opendatacommunities.org/id/metropolitan-district-council/leeds,Leeds City Council,30/06/2016,Central & Corporate,Finance,Supplies and Services,Bank Charges,263,06-Jun-2016,1606-00713,0.00,100.14,R,Alliance & Leicester Commercial Bank,No
Http://opendatacommunities.org/id/metropolitan-district-council/leeds,Leeds City Council,30/06/2016,City Development,Highways,Supplies and Services,Other Hired And Contracted Services,265,14-Jun-2016,1606-00714,0.00,13598.63,R,Allied Exploration & Geotechnics Ltd,No
Http://opendatacommunities.org/id/metropolitan-district-council/leeds,Leeds City Council,30/06/2016,City Development,Highways,Supplies and Services,Other Hired And Contracted Services,265,23-Jun-2016,1606-00715,0.00,561.90,R,Allied Exploration & Geotechnics Ltd,No
Http://opendatacommunities.org/id/metropolitan-district-council/leeds,Leeds City Council,30/06/2016,City Development,Highways,Supplies and Services,Other Hired And Contracted Services,265,23-Jun-2016,1606-00716,0.00,1361.70,R,Allied Exploration & Geotechnics Ltd,No
Http://opendatacommunities.org/id/metropolitan-district-council/leeds,Leeds City Council,30/06/2016,City Development,Highways,Supplies and Services,Other Hired And Contracted Services,265,30-Jun-2016,1606-00717,0.00,2783.20,R,Allied Exploration & Geotechnics Ltd,No
Http://opendatacommunities.org/id/metropolitan-district-council/leeds,Leeds City Council as Accountable Body,30/06/2016,Social Services Pooled Budgets,Jcs For People With Learning Disabilitie,Third Party Payments,Home Care,568,01-Jun-2016,1606-00718,0.00,894.40,R,Allied Healthcare,No
Http://opendatacommunities.org/id/metropolitan-district-council/leeds,Leeds City Council as Accountable Body,30/06/2016,Social Services Pooled Budgets,Jcs For People With Learning Disabilitie,Third Party Payments,Home Care,568,01-Jun-2016,1606-00719,0.00,122.32,R,Allied Healthcare,No
Http://opendatacommunities.org/id/metropolitan-district-council/leeds,Leeds City Council as Accountable Body,30/06/2016,Social Services Pooled Budgets,Jcs For People With Learning Disabilitie,Third Party Payments,Home Care,568,01-Jun-2016,1606-00720,0.00,858.92,R,Allied Healthcare,No
Http://opendatacommunities.org/id/metropolitan-district-council/leeds,Leeds City Council as Accountable Body,30/06/2016,Social Services Pooled Budgets,Jcs For People With Learning Disabilitie,Third Party Payments,Home Care,568,01-Jun-2016,1606-00721,0.00,155.68,R,Allied Healthcare,No
Http://opendatacommunities.org/id/metropolitan-district-council/leeds,Leeds City Council as Accountable Body,30/06/2016,Social Services Pooled Budgets,Jcs For People With Learning Disabilitie,Third Party Payments,Home Care,568,01-Jun-2016,1606-00722,0.00,1012.86,R,Allied Healthcare,No
Http://opendatacommunities.org/id/metropolitan-district-council/leeds,Leeds City Council as Accountable Body,30/06/2016,Social Services Pooled Budgets,Jcs For People With Learning Disabilitie,Third Party Payments,Home Care,568,01-Jun-2016,1606-00723,0.00,177.92,R,Allied Healthcare,No
Http://opendatacommunities.org/id/metropolitan-district-council/leeds,Leeds City Council,30/06/2016,Adult Social Care,Services For Older People - 65 And Over,Third Party Payments,Home Care,568,03-Jun-2016,1606-00724,0.00,428.75,R,Allied Healthcare,No
Http://opendatacommunities.org/id/metropolitan-district-council/leeds,Leeds City Council,30/06/2016,Adult Social Care,Services For Older People Under 65 P/Dis,Third Party Payments,Home Care,568,03-Jun-2016,1606-00725,0.00,113.49,R,Allied Healthcare,No
Http://opendatacommunities.org/id/metropolitan-district-council/leeds,Leeds City Council,30/06/2016,Adult Social Care,Services For Older People - 65 And Over,Third Party Payments,Home Care,568,03-Jun-2016,1606-00726,0.00,2482.91,R,Allied Healthcare,No
Http://opendatacommunities.org/id/metropolitan-district-council/leeds,Leeds City Council,30/06/2016,Adult Social Care,Services For Older People - 65 And Over,Third Party Payments,Home Care,568,03-Jun-2016,1606-00727,0.00,6.31,R,Allied Healthcare,No
Http://opendatacommunities.org/id/metropolitan-district-council/leeds,Leeds City Council,30/06/2016,Adult Social Care,Other Generic Services,Third Party Payments,Home Care,568,16-Jun-2016,1606-00728,0.00,6429.44,R,Allied Healthcare,No
Http://opendatacommunities.org/id/metropolitan-district-council/leeds,Leeds City Council,30/06/2016,Adult Social Care,Services For Older People - 65 And Over,Third Party Payments,Home Care,568,16-Jun-2016,1606-00729,0.00,326.40,R,Allied Healthcare,No
Http://opendatacommunities.org/id/metropolitan-district-council/leeds,Leeds City Council as Accountable Body,30/06/2016,Social Services Pooled Budgets,Jcs For People With Learning Disabilitie,Third Party Payments,Home Care,568,17-Jun-2016,1606-00730,0.00,98.20,R,Allied Healthcare,No
Http://opendatacommunities.org/id/metropolitan-district-council/leeds,Leeds City Council as Accountable Body,30/06/2016,Social Services Pooled Budgets,Jcs For People With Learning Disabilitie,Third Party Payments,Home Care,568,17-Jun-2016,1606-00731,0.00,592.36,R,Allied Healthcare,No
Http://opendatacommunities.org/id/metropolitan-district-council/leeds,Leeds City Council as Accountable Body,30/06/2016,Social Services Pooled Budgets,Jcs For People With Learning Disabilitie,Third Party Payments,Home Care,568,20-Jun-2016,1606-00732,0.00,558.48,R,Allied Healthcare,No
Http://opendatacommunities.org/id/metropolitan-district-council/leeds,Leeds City Council as Accountable Body,30/06/2016,Social Services Pooled Budgets,Jcs For People With Learning Disabilitie,Third Party Payments,Home Care,568,20-Jun-2016,1606-00733,0.00,231.56,R,Allied Healthcare,No
Http://opendatacommunities.org/id/metropolitan-district-council/leeds,Leeds City Council,30/06/2016,Adult Social Care,Other Generic Services,Third Party Payments,Home Care,568,21-Jun-2016,1606-00734,0.00,16806.58,R,Allied Healthcare,No
Http://opendatacommunities.org/id/metropolitan-district-council/leeds,Leeds City Council as Accountable Body,30/06/2016,Social Services Pooled Budgets,Jcs For People With Learning Disabilitie,Third Party Payments,Home Care,568,22-Jun-2016,1606-00735,0.00,117.85,R,Allied Healthcare,No
Http://opendatacommunities.org/id/metropolitan-district-council/leeds,Leeds City Council as Accountable Body,30/06/2016,Social Services Pooled Budgets,Jcs For People With Learning Disabilitie,Third Party Payments,Home Care,568,22-Jun-2016,1606-00736,0.00,466.48,R,Allied Healthcare,No
Http://opendatacommunities.org/id/metropolitan-district-council/leeds,Leeds City Council,30/06/2016,Adult Social Care,Services For Older People Under 65 P/Dis,Third Party Payments,Home Care,568,24-Jun-2016,1606-00737,0.00,8344.65,R,Allied Healthcare,No
Http://opendatacommunities.org/id/metropolitan-district-council/leeds,Leeds City Council,30/06/2016,Adult Social Care,Services For Older People - 65 And Over,Third Party Payments,Home Care,568,24-Jun-2016,1606-00738,0.00,18590.22,R,Allied Healthcare,No
Http://opendatacommunities.org/id/metropolitan-district-council/leeds,Leeds City Council,30/06/2016,Adult Social Care,Services For Older People Under 65 P/Dis,Third Party Payments,Home Care,568,24-Jun-2016,1606-00739,0.00,3319.06,R,Allied Healthcare,No
Http://opendatacommunities.org/id/metropolitan-district-council/leeds,Leeds City Council,30/06/2016,Adult Social Care,Services For Older People - 65 And Over,Third Party Payments,Home Care,568,24-Jun-2016,1606-00740,0.00,20266.42,R,Allied Healthcare,No
Http://opendatacommunities.org/id/metropolitan-district-council/leeds,Leeds City Council,30/06/2016,Adult Social Care,Services For Older People Under 65 P/Dis,Third Party Payments,Home Care,568,24-Jun-2016,1606-00741,0.00,2255.06,R,Allied Healthcare,No
Http://opendatacommunities.org/id/metropolitan-district-council/leeds,Leeds City Council,30/06/2016,Adult Social Care,Services For Older People - 65 And Over,Third Party Payments,Home Care,568,24-Jun-2016,1606-00742,0.00,7632.59,R,Allied Healthcare,No
Http://opendatacommunities.org/id/metropolitan-district-council/leeds,Leeds City Council as Accountable Body,30/06/2016,Social Services Pooled Budgets,Jcs For People With Learning Disabilitie,Third Party Payments,Home Care,568,28-Jun-2016,1606-00743,0.00,16091.96,R,Allied Healthcare,No
Http://opendatacommunities.org/id/metropolitan-district-council/leeds,Leeds City Council as Accountable Body,30/06/2016,Social Services Pooled Budgets,Jcs For People With Learning Disabilitie,Third Party Payments,Home Care,568,29-Jun-2016,1606-00744,0.00,15801.40,R,Allied Healthcare,No
Http://opendatacommunities.org/id/metropolitan-district-council/leeds,Leeds City Council as Accountable Body,30/06/2016,Social Services Pooled Budgets,Jcs For People With Learning Disabilitie,Third Party Payments,Home Care,568,29-Jun-2016,1606-00745,0.00,90.58,R,Allied Healthcare,No
Http://opendatacommunities.org/id/metropolitan-district-council/leeds,Leeds City Council,30/06/2016,Public Health,Public Health,Third Party Payments,Public Health Commissioned Services,526,06-Jun-2016,1606-00746,0.00,485.75,R,Allied Pharmacy Ltd,No
Http://opendatacommunities.org/id/metropolitan-district-council/leeds,Leeds City Council,30/06/2016,Strategic Landlord,Housing Management,Supplies and Services,Other Hired And Contracted Services,265,30-Jun-2016,1606-00747,0.00,5400.00,R,Allpay Limted,No
Http://opendatacommunities.org/id/metropolitan-district-council/leeds,Leeds City Council,30/06/2016,Central & Corporate,Democratic Services,Transport,Fuel (Non LCC Supplies),321,07-Jun-2016,1606-00748,0.00,138.46,R,Allstar Business Solutions Ltd,No
Http://opendatacommunities.org/id/metropolitan-district-council/leeds,Leeds City Council,30/06/2016,Childrens Services,Learning Skills & Universal,Transport,Fuel (Non LCC Supplies),321,07-Jun-2016,1606-00749,0.00,1672.78,R,Allstar Business Solutions Ltd,No
Http://opendatacommunities.org/id/metropolitan-district-council/leeds,Leeds City Council,30/06/2016,Environment & Housing,Parks and Countryside,Transport,Fuel (Non LCC Supplies),321,07-Jun-2016,1606-00750,0.00,130.99,R,Allstar Business Solutions Ltd,No
Http://opendatacommunities.org/id/metropolitan-district-council/leeds,Leeds City Council,30/06/2016,City Development,Highways,Transport,Fuel (Non LCC Supplies),321,07-Jun-2016,1606-00751,0.00,460.59,R,Allstar Business Solutions Ltd,No
Http://opendatacommunities.org/id/metropolitan-district-council/leeds,Leeds City Council,30/06/2016,Environment & Housing,Waste Management,Transport,Fuel (Non LCC Supplies),321,07-Jun-2016,1606-00752,0.00,1.20,R,Allstar Business Solutions Ltd,No
Http://opendatacommunities.org/id/metropolitan-district-council/leeds,Leeds City Council,30/06/2016,Environment & Housing,Leeds Building Services,Transport,Fuel (Non LCC Supplies),321,13-Jun-2016,1606-00753,0.00,38.16,R,Allstar Business Solutions Ltd,No
Http://opendatacommunities.org/id/metropolitan-district-council/leeds,Leeds City Council,30/06/2016,Strategic Landlord,Property and Contracts,Premises,General Maintenance,104,23-Jun-2016,1606-00754,0.00,166.67,R,Al-Murad Diy Ltd,No
Http://opendatacommunities.org/id/metropolitan-district-council/leeds,Leeds City Council,30/06/2016,Strategic Landlord,Property and Contracts,Premises,General Maintenance,104,23-Jun-2016,1606-00755,0.00,166.67,R,Al-Murad Diy Ltd,No
